Ref No,Fund Type,Dept,Cost Centre Description    ,Description    ,Creditor Name    ,GL Code Net Amount,Payment date        
2,Revenue,CCHD,Bed purchasing - Under 65s PWLD - North,Residential Homes,.,6873.04, 07-Aug-2012
3,Revenue,CCHD,Supporting People Programme,Grants to Voluntary Bodies,1625 Independent People,17214.75, 01-Aug-2012
4,Revenue,CCHD,Supporting People Programme,Grants to Voluntary Bodies,1625 Independent People,17214.75, 31-Aug-2012
5,Revenue,CCHD,Bed purchasing - Phys Dis - North,Nursing Homes,26 Severn Road,7692.28, 07-Aug-2012
6,Revenue,CCHD,Home Care - Elderly - North,Other Small Contracts,3 Trees Community Support Ltd,47.28, 21-Aug-2012
7,Revenue,CCHD,Day Care - North,Private & Voluntary Day Care,3 Trees Community Support Ltd,78.8, 21-Aug-2012
8,Revenue,CCHD,Home Care - LD Under 65 - South,Private & Voluntary Home Care,3 Trees Community Support Ltd,110.32, 21-Aug-2012
9,Revenue,CCHD,PWLD Home Care - Under 65 - KH,Private & Voluntary Home Care,3 Trees Community Support Ltd,271.86, 21-Aug-2012
10,Revenue,CCHD,Home Care - Elderly - North,Other Small Contracts,3 Trees Community Support Ltd,47.28, 21-Aug-2012
11,Revenue,CCHD,Day Care - North,Private & Voluntary Day Care,3 Trees Community Support Ltd,82.74, 21-Aug-2012
12,Revenue,CCHD,Home Care - LD Under 65 - South,Private & Voluntary Home Care,3 Trees Community Support Ltd,110.32, 21-Aug-2012
13,Revenue,CCHD,PWLD Home Care - Under 65 - KH,Private & Voluntary Home Care,3 Trees Community Support Ltd,267.92, 21-Aug-2012
14,Revenue,CCHD,Supported Living - PS,Private & Voluntary Home Care,3 Trees Community Support Ltd,1163.27, 06-Aug-2012
15,Revenue,CCHD,Supported Living (S28a) North,Private & Voluntary Home Care,3 Trees Community Support Ltd,6187.8, 17-Aug-2012
16,Revenue,CCHD,Supported Living - PS,Private & Voluntary Home Care,3 Trees Community Support Ltd,2379.36, 06-Aug-2012
17,Revenue,CCHD,Purchase of Non-Res Care - KD,Private & Voluntary Day Care,3 Trees Community Support Ltd,1538.21, 09-Aug-2012
18,Revenue,CCHD,Supported Living - PS,Private & Voluntary Home Care,3 Trees Community Support Ltd,582.61, 28-Aug-2012
19,Revenue,CCHD,Supported Living - KD,Private & Voluntary Home Care,3 Trees Community Support Ltd,2830.11, 20-Aug-2012
20,Revenue,CCHD,Purchase of Non-Res Care - KD,Private & Voluntary Day Care,3 Trees Community Support Ltd,1701.28, 20-Aug-2012
21,Revenue,CCHD,Purchase of Non-Res Care - KD,Private & Voluntary Day Care,3 Trees Community Support Ltd,1555.12, 23-Aug-2012
22,Revenue,CCHD,Purchase of Non-Res Care - KD,Private & Voluntary Day Care,3 Trees Community Support Ltd,1371.68, 23-Aug-2012
23,Revenue,CCHD,Purchase of Non-Res Care - KD,Private & Voluntary Day Care,3 Trees Community Support Ltd,7292.94, 20-Aug-2012
24,Revenue,CCHD,Purchase of Non-Res Care - PS,Private & Voluntary Day Care,3 Trees Community Support Ltd,3134.92, 29-Aug-2012
25,Revenue,CCHD,Supported Living - KD,Private & Voluntary Home Care,3 Trees Community Support Ltd,7984.9, 23-Aug-2012
26,Revenue,CCHD,Purchase of Non-Res Care - KD,Private & Voluntary Day Care,3 Trees Community Support Ltd,4479.24, 23-Aug-2012
27,Revenue,CCHD,Bed Purchasing - Elderly S117- North,Residential Homes,3Rd Floor Westbury House,1716, 07-Aug-2012
28,Revenue,CCHD,Charlton,Maintenance by Contractor,A E Horder (Contracting) Limited,3012.95, 23-Aug-2012
29,Revenue,CCHD,Woodleaze,Operational Equipment,A E Horder (Contracting) Limited,874.29, 31-Aug-2012
30,Revenue,CCHD,Day Care - North,Private & Voluntary Day Care,Action on Hearing Loss,550.56, 03-Aug-2012
31,Revenue,CCHD,Day Care - North,Private & Voluntary Day Care,Action on Hearing Loss,650.55, 03-Aug-2012
32,Revenue,CCHD,Day Care - North,Private & Voluntary Day Care,Age UK South Gloucestershire,1192.52, 06-Aug-2012
33,Revenue,CCHD,Day Care - North,Private & Voluntary Day Care,Age UK South Gloucestershire,1022.16, 14-Aug-2012
34,Revenue,CCHD,Day Care - South,Private & Voluntary Day Care,Age UK South Gloucestershire,511.08, 09-Aug-2012
35,Revenue,CCHD,Day Care - South,Private & Voluntary Day Care,Age UK South Gloucestershire,511.08, 10-Aug-2012
36,Revenue,CCHD,Day Care - South,Private & Voluntary Day Care,Age UK South Gloucestershire,1427.88, 06-Aug-2012
37,Revenue,CCHD,Day Care - South,Private & Voluntary Day Care,Age UK South Gloucestershire,1427.88, 14-Aug-2012
38,Revenue,CCHD,Elderly MH Day Care South,Private & Voluntary Day Care,Age UK South Gloucestershire,851.8, 24-Aug-2012
39,Revenue,CCHD,Home Care - Elderly - South,Other Small Contracts,Agincare Chippenham,1335.15, 14-Aug-2012
40,Revenue,CCHD,Home Care - Elderly - South,Other Small Contracts,Agincare Chippenham,1265.49, 03-Aug-2012
41,Revenue,CCHD,Home Care - Elderly - South,Other Small Contracts,Agincare Chippenham,1389.33, 03-Aug-2012
42,Revenue,CCHD,Day Care - South,Private & Voluntary Day Care,Agincare Chippenham,34.83, 03-Aug-2012
43,Revenue,CCHD,Home Care - Elderly - South,Other Small Contracts,Agincare Chippenham,1319.67, 07-Aug-2012
44,Revenue,CCHD,Home Care - Elderly - South,Other Small Contracts,Agincare UK Limited,878.49, 06-Aug-2012
45,Revenue,CCHD,Home Care - Elderly - North,Other Small Contracts,Agincare UK Limited,58.05, 06-Aug-2012
46,Revenue,CCHD,Day Care - South,Private & Voluntary Day Care,Agincare UK Limited,158.67, 06-Aug-2012
47,Revenue,CCHD,Elderly MH Day Care North,Private & Voluntary Day Care,Agincare UK Limited,108.36, 06-Aug-2012
48,Revenue,CCHD,Home Care - Elderly - South,Other Small Contracts,Agincare UK Limited,824.31, 06-Aug-2012
49,Revenue,CCHD,Home Care - Elderly - North,Other Small Contracts,Agincare UK Limited,58.05, 06-Aug-2012
50,Revenue,CCHD,Day Care - South,Private & Voluntary Day Care,Agincare UK Limited,239.94, 06-Aug-2012
51,Revenue,CCHD,Elderly MH Day Care North,Private & Voluntary Day Care,Agincare UK Limited,108.36, 06-Aug-2012
52,Revenue,CCHD,Home Care - Elderly - South,Other Small Contracts,Agincare UK Limited,727.56, 07-Aug-2012
53,Revenue,CCHD,Home Care - Elderly - North,Other Small Contracts,Agincare UK Limited,65.79, 07-Aug-2012
54,Revenue,CCHD,Day Care - South,Private & Voluntary Day Care,Agincare UK Limited,162.54, 07-Aug-2012
55,Revenue,CCHD,Elderly MH Day Care North,Private & Voluntary Day Care,Agincare UK Limited,108.36, 07-Aug-2012
56,Revenue,CCHD,Home Care - Elderly - South,Other Small Contracts,Agincare UK Limited,835.92, 29-Aug-2012
57,Revenue,CCHD,Home Care - Elderly - North,Other Small Contracts,Agincare UK Limited,46.44, 29-Aug-2012
58,Revenue,CCHD,Day Care - South,Private & Voluntary Day Care,Agincare UK Limited,201.24, 29-Aug-2012
59,Revenue,CCHD,Elderly MH Day Care North,Private & Voluntary Day Care,Agincare UK Limited,89.01, 29-Aug-2012
60,Revenue,CCHD,S117 Placements PCT,Residential Homes,Alexandra House,6810.28, 07-Aug-2012
61,Revenue,CCHD,Elderly MH Day Care North,Private & Voluntary Day Care,Alzheimer`s Society Bristol,643.68, 30-Aug-2012
62,Revenue,CCHD,Elderly MH Day Care North,Private & Voluntary Day Care,Alzheimer`s Society Bristol,643.68, 30-Aug-2012
63,Revenue,CCHD,Elderly MH Day Care North,Private & Voluntary Day Care,Alzheimer`s Society Bristol,929.76, 30-Aug-2012
64,Revenue,CCHD,Elderly MH Day Care South,Private & Voluntary Day Care,Alzheimer`s Society Bristol,929.76, 30-Aug-2012
65,Revenue,CCHD,Elderly MH Day Care North,Private & Voluntary Day Care,Alzheimer`s Society Bristol,500.64, 30-Aug-2012
66,Revenue,CCHD,Day Care - South,Private & Voluntary Day Care,Alzheimer`s Society Bristol,572.16, 30-Aug-2012
67,Revenue,CCHD,Elderly MH Day Care South,Private & Voluntary Day Care,Alzheimer`s Society Bristol,643.68, 30-Aug-2012
68,Revenue,CCHD,Bed Purchasing - Elderly S117- North,Private & Voluntary Day Care,Alzheimer`s Society Bristol,572.16, 30-Aug-2012
69,Revenue,CCHD,Southmead Hospital Purchasing,Nursing Homes,Ambleside Nusing Ho!,6019.7, 07-Aug-2012
70,Revenue,CCHD,Frenchay Hospital Purchasing,Residential Homes,Anbridge Care Home,828.88, 07-Aug-2012
71,Revenue,CCHD,Bed purchasing - Under 65s PWLD - North,Residential Homes,Ark Care Homes Ltd,10505.24, 07-Aug-2012
72,Revenue,CCHD,Bed Purchasing - Elderly - South,Residential Homes,Ashbourne House Care Home Limited,6043.69, 07-Aug-2012
73,Revenue,CCHD,Bed and Breakfast,Bed & Breakfast,Ashley Guest Houses Ltd,936, 24-Aug-2012
74,Revenue,CCHD,Bed and Breakfast,Bed & Breakfast,Ashley Guest Houses Ltd,840, 31-Aug-2012
75,Revenue,CCHD,Bed and Breakfast,Bed & Breakfast,Ashley Guest Houses Ltd,1008, 03-Aug-2012
76,Revenue,CCHD,Bed and Breakfast,Bed & Breakfast,Ashley Guest Houses Ltd,1128, 10-Aug-2012
77,Revenue,CCHD,Bed and Breakfast,Bed & Breakfast,Ashley Guest Houses Ltd,1176, 17-Aug-2012
78,Revenue,CCHD,Bed Purchasing - S28A - Over 65- North,Residential Homes,Aspects &  Milestones Trust,3882.32, 07-Aug-2012
79,Revenue,CCHD,Bed Purchasing - Elderly - South,Residential Homes,Aspects &  Milestones Trust,1398.4, 07-Aug-2012
80,Revenue,CCHD,Bed Purchasing - Under 65s PWLD - South,Residential Homes,Aspects &  Milestones Trust,6090.6, 07-Aug-2012
81,Revenue,CCHD,Bed Purchasing - Elderly S117- North,Residential Homes,Aspects &  Milestones Trust,1325.92, 07-Aug-2012
82,Revenue,CCHD,Bed Purchasing - Elderly S117- North,Nursing Homes,Aspects &  Milestones Trust,1944.08, 07-Aug-2012
83,Revenue,CCHD,Bed purchasing - Elderly MH - North,Nursing Homes,Aspects &  Milestones Trust,2318.24, 07-Aug-2012
84,Revenue,CCHD,Bed purchasing - Elderly PWLD - North,Residential Homes,Aspects &  Milestones Trust,3554.88, 07-Aug-2012
85,Revenue,CCHD,Bed Purchasing - Under 65s PWLD - South,Residential Homes,Aspects &  Milestones Trust,5227.12, 07-Aug-2012
86,Revenue,CCHD,Bed Purchasing - Under 65s PWLD - South,Residential Homes,Aspects &  Milestones Trust,5683.72, 07-Aug-2012
87,Revenue,CCHD,Bed Purchasing - Under 65s PWLD - South,Nursing Homes,Aspects &  Milestones Trust,2766.32, 07-Aug-2012
88,Revenue,CCHD,Bed Purchasing - Elderly S117- North,Nursing Homes,Aspects &  Milestones Trust,1944, 07-Aug-2012
89,Revenue,CCHD,Bed purchasing - Elderly MH - North,Nursing Homes,Aspects &  Milestones Trust,1430.08, 07-Aug-2012
90,Revenue,CCHD,Bed purchasing - Elderly MH - North,Nursing Homes,Aspects &  Milestones Trust,1475.2, 07-Aug-2012
91,Revenue,CCHD,Section 117 Placements MH Younger,Nursing Homes,Aspects &  Milestones Trust,2832, 07-Aug-2012
92,Revenue,CCHD,Bed purchasing - Elderly PWLD - South,Residential Homes,Aspects &  Milestones Trust,3199.56, 07-Aug-2012
93,Revenue,CCHD,South Glos Users in South Glos Homes,Nursing Homes,Aspects &  Milestones Trust,869.6, 07-Aug-2012
94,Revenue,CCHD,South Glos Users in South Glos Homes,Nursing Homes,Aspects &  Milestones Trust,869.6, 07-Aug-2012
95,Revenue,CCHD,South Glos Users in South Glos Homes,Nursing Homes,Aspects &  Milestones Trust,869.6, 07-Aug-2012
96,Revenue,CCHD,Bed Purchasing - Elderly S117- North,Residential Homes,Aspects &  Milestones Trust,1716, 07-Aug-2012
97,Revenue,CCHD,Bed purchasing - Elderly PWLD - South,Residential Homes,Aspects &  Milestones Trust,4357.8, 07-Aug-2012
98,Revenue,CCHD,Bed purchasing -S28A  Under 65 - North,Nursing Homes,Aspects &  Milestones Trust,5800.72, 07-Aug-2012
99,Revenue,CCHD,Bed purchasing -S28A  Under 65 - North,Residential Homes,Aspects &  Milestones Trust,5183.96, 07-Aug-2012
100,Revenue,CCHD,Bed Purchasing - Under 65s PWLD - South,Residential Homes,Aspects &  Milestones Trust,6990.64, 07-Aug-2012
101,Revenue,CCHD,Bed purchasing - S28A Under 65 - South,Residential Homes,Aspects &  Milestones Trust,5327.8, 07-Aug-2012
102,Revenue,CCHD,Bed Purchasing - Under 65s PWLD - South,Residential Homes,Aspects &  Milestones Trust,5721.6, 07-Aug-2012
103,Revenue,CCHD,Bed purchasing - Under 65s PWLD - North,Residential Homes,Aspects &  Milestones Trust,3843.72, 07-Aug-2012
104,Revenue,CCHD,Bed purchasing - S28A Under 65 - South,Nursing Homes,Aspects &  Milestones Trust,7576.08, 07-Aug-2012
105,Revenue,CCHD,MH Purchasing - Younger,Residential Homes,Aspects &  Milestones Trust,847.2, 07-Aug-2012
106,Revenue,CCHD,Bed purchasing - Elderly PWLD - South,Residential Homes,Aspects &  Milestones Trust,5276.32, 07-Aug-2012
107,Revenue,CCHD,Bed purchasing - Elderly PWLD - South,Residential Homes,Aspects &  Milestones Trust,3791.92, 07-Aug-2012
108,Revenue,CCHD,Bed purchasing - Elderly PWLD - South,Residential Homes,Aspects &  Milestones Trust,16007.7, 07-Aug-2012
109,Revenue,CCHD,Bed purchasing - Elderly PWLD - North,Residential Homes,Aspects &  Milestones Trust,4732.52, 07-Aug-2012
110,Revenue,CCHD,Bed purchasing -S28A  Under 65 - North,Residential Homes,Aspects &  Milestones Trust,5268.68, 07-Aug-2012
111,Revenue,CCHD,Bed purchasing -S28A  Under 65 - North,Residential Homes,Aspects &  Milestones Trust,6125.96, 07-Aug-2012
112,Revenue,CCHD,Bed purchasing -S28A  Under 65 - North,Nursing Homes,Aspects &  Milestones Trust,6213.88, 07-Aug-2012
113,Revenue,CCHD,Bed Purchasing - Under 65s PWLD - South,Residential Homes,Aspects &  Milestones Trust,3699.6, 07-Aug-2012
114,Revenue,CCHD,Bed purchasing -S28A  Under 65 - North,Residential Homes,Aspects &  Milestones Trust,6125.96, 07-Aug-2012
115,Revenue,CCHD,Bed purchasing - S28A Under 65 - South,Residential Homes,Aspects &  Milestones Trust,4856.92, 07-Aug-2012
116,Revenue,CCHD,Bed Purchasing - S28A - Over 65- North,Residential Homes,Aspects &  Milestones Trust,4732.76, 07-Aug-2012
117,Revenue,CCHD,Bed Purchasing - LD S28A- Over 65- South,Residential Homes,Aspects &  Milestones Trust,4015.52, 07-Aug-2012
118,Revenue,CCHD,Bed purchasing -S28A  Under 65 - North,Residential Homes,Aspects &  Milestones Trust,6125.96, 07-Aug-2012
119,Revenue,CCHD,Bed Purchasing - S28A - Over 65- North,Residential Homes,Aspects &  Milestones Trust,4239.2, 07-Aug-2012
120,Revenue,CCHD,Bed purchasing -S28A  Under 65 - North,Residential Homes,Aspects &  Milestones Trust,6125.96, 07-Aug-2012
121,Revenue,CCHD,Bed Purchasing - LD S28A- Over 65- South,Residential Homes,Aspects &  Milestones Trust,3905.44, 07-Aug-2012
122,Revenue,CCHD,Bed purchasing - S28A Under 65 - South,Residential Homes,Aspects &  Milestones Trust,5052.2, 07-Aug-2012
123,Revenue,CCHD,Bed purchasing - S28A Under 65 - South,Residential Homes,Aspects &  Milestones Trust,6626.28, 07-Aug-2012
124,Revenue,CCHD,Bed purchasing - S28A Under 65 - South,Residential Homes,Aspects &  Milestones Trust,4047.8, 07-Aug-2012
125,Revenue,CCHD,Bed Purchasing - LD S28A- Over 65- South,Residential Homes,Aspects &  Milestones Trust,5824.28, 07-Aug-2012
126,Revenue,CCHD,Bed Purchasing - S28A - Over 65- North,Residential Homes,Aspects &  Milestones Trust,3397.72, 07-Aug-2012
127,Revenue,CCHD,Bed Purchasing - LD S28A- Over 65- South,Residential Homes,Aspects &  Milestones Trust,4760.52, 07-Aug-2012
128,Revenue,CCHD,Bed Purchasing - LD S28A- Over 65- South,Residential Homes,Aspects &  Milestones Trust,4908.2, 07-Aug-2012
129,Revenue,CCHD,Bed Purchasing - LD S28A- Over 65- South,Residential Homes,Aspects &  Milestones Trust,4622.6, 07-Aug-2012
130,Revenue,CCHD,Bed Purchasing - LD S28A- Over 65- South,Residential Homes,Aspects &  Milestones Trust,5383.48, 07-Aug-2012
131,Revenue,CCHD,Bed purchasing -S28A  Under 65 - North,Residential Homes,Aspects &  Milestones Trust,7309.52, 07-Aug-2012
132,Revenue,CCHD,Bed purchasing -S28A  Under 65 - North,Nursing Homes,Aspects &  Milestones Trust,6296.44, 07-Aug-2012
133,Revenue,CCHD,Bed Purchasing - LD S28A- Over 65- South,Residential Homes,Aspects &  Milestones Trust,3492.92, 07-Aug-2012
134,Revenue,CCHD,Bed Purchasing - LD S28A- Over 65- South,Residential Homes,Aspects &  Milestones Trust,3251.48, 07-Aug-2012
135,Revenue,CCHD,Bed Purchasing - S28A - Over 65- North,Residential Homes,Aspects &  Milestones Trust,3308.72, 07-Aug-2012
136,Revenue,CCHD,Bed Purchasing - LD S28A- Over 65- South,Residential Homes,Aspects &  Milestones Trust,4720.44, 07-Aug-2012
137,Revenue,CCHD,Section 117 Placements MH Younger,Residential Homes,Aspects &  Milestones Trust,1324, 07-Aug-2012
138,Revenue,CCHD,Bed purchasing - Elderly MH - North,Residential Homes,Aspects &  Milestones Trust,849.48, 07-Aug-2012
139,Revenue,CCHD,Bed purchasing - S28A Under 65 - South,Residential Homes,Aspects &  Milestones Trust,4790.96, 07-Aug-2012
140,Revenue,CCHD,Bed purchasing - Elderly PWLD - North,Residential Homes,Aspects &  Milestones Trust,5424.04, 07-Aug-2012
141,Revenue,CCHD,Bed purchasing - Under 65s PWLD - North,Residential Homes,Aspects &  Milestones Trust,5511.12, 07-Aug-2012
142,Revenue,CCHD,Bed purchasing - Elderly MH - North,Nursing Homes,Aspects &  Milestones Trust,1096.68, 07-Aug-2012
143,Revenue,CCHD,Bed Purchasing - Under 65s PWLD - South,Residential Homes,Aspects &  Milestones Trust,7698.8, 07-Aug-2012
144,Revenue,CCHD,Bed purchasing -S28A  Under 65 - North,Residential Homes,Aspects &  Milestones Trust,5771.6, 07-Aug-2012
145,Revenue,CCHD,Bed Purchasing - S28A - Over 65- North,Residential Homes,Aspects &  Milestones Trust,3271.48, 07-Aug-2012
146,Revenue,CCHD,Section 117 Placements MH Younger,Residential Homes,Aspects &  Milestones Trust,3432, 07-Aug-2012
147,Revenue,CCHD,MH Purchasing - Younger,Residential Homes,Aspects &  Milestones Trust,1012.6, 07-Aug-2012
148,Revenue,CCHD,Bed Purchasing - S28A - Over 65- North,Residential Homes,Aspects &  Milestones Trust,3511.28, 07-Aug-2012
149,Revenue,CCHD,Bed purchasing - S28A Under 65 - South,Residential Homes,Aspects &  Milestones Trust,7127.84, 07-Aug-2012
150,Revenue,CCHD,Bed purchasing - S28A Under 65 - South,Residential Homes,Aspects &  Milestones Trust,5052.2, 07-Aug-2012
151,Revenue,CCHD,Bed purchasing - S28A Under 65 - South,Residential Homes,Aspects &  Milestones Trust,6024.64, 07-Aug-2012
152,Revenue,CCHD,Bed Purchasing - LD S28A- Over 65- South,Residential Homes,Aspects &  Milestones Trust,5898.16, 07-Aug-2012
153,Revenue,CCHD,Bed Purchasing - LD S28A- Over 65- South,Residential Homes,Aspects &  Milestones Trust,4164.96, 07-Aug-2012
154,Revenue,CCHD,Bed Purchasing - LD S28A- Over 65- South,Residential Homes,Aspects &  Milestones Trust,4720.44, 07-Aug-2012
155,Revenue,CCHD,Bed Purchasing - S28A - Over 65- North,Residential Homes,Aspects &  Milestones Trust,4762.64, 07-Aug-2012
156,Revenue,CCHD,Bed Purchasing - LD S28A- Over 65- South,Residential Homes,Aspects &  Milestones Trust,5607.6, 07-Aug-2012
157,Revenue,CCHD,Bed purchasing - S28A Under 65 - South,Residential Homes,Aspects &  Milestones Trust,7738.32, 07-Aug-2012
158,Revenue,CCHD,Bed Purchasing - LD S28A- Over 65- South,Residential Homes,Aspects &  Milestones Trust,4902.32, 07-Aug-2012
159,Revenue,CCHD,Bed purchasing -S28A  Under 65 - North,Residential Homes,Aspects &  Milestones Trust,4743.92, 07-Aug-2012
160,Revenue,CCHD,Bed Purchasing - S28A - Over 65- North,Residential Homes,Aspects &  Milestones Trust,4885.4, 07-Aug-2012
161,Revenue,CCHD,Bed Purchasing - S28A - Over 65- North,Residential Homes,Aspects &  Milestones Trust,5473.64, 07-Aug-2012
162,Revenue,CCHD,Bed purchasing - S28A Under 65 - South,Residential Homes,Aspects &  Milestones Trust,4611.44, 07-Aug-2012
163,Revenue,CCHD,Bed Purchasing - S28A - Over 65- North,Residential Homes,Aspects &  Milestones Trust,4885.4, 07-Aug-2012
164,Revenue,CCHD,Bed Purchasing - S28A - Over 65- North,Residential Homes,Aspects &  Milestones Trust,5277.28, 07-Aug-2012
165,Revenue,CCHD,Bed Purchasing - LD S28A- Over 65- South,Residential Homes,Aspects &  Milestones Trust,4908.2, 07-Aug-2012
166,Revenue,CCHD,Bed purchasing - S28A Under 65 - South,Residential Homes,Aspects &  Milestones Trust,4734.4, 07-Aug-2012
167,Revenue,CCHD,Bed purchasing -S28A  Under 65 - North,Residential Homes,Aspects &  Milestones Trust,6125.96, 07-Aug-2012
168,Revenue,CCHD,Bed Purchasing - S28A - Over 65- North,Residential Homes,Aspects &  Milestones Trust,5621.68, 07-Aug-2012
169,Revenue,CCHD,Bed purchasing -S28A  Under 65 - North,Residential Homes,Aspects &  Milestones Trust,3468.84, 07-Aug-2012
170,Revenue,CCHD,Bed Purchasing - S28A - Over 65- North,Residential Homes,Aspects &  Milestones Trust,3275.16, 07-Aug-2012
171,Revenue,CCHD,Bed Purchasing - S28A - Over 65- North,Residential Homes,Aspects &  Milestones Trust,3412.88, 07-Aug-2012
172,Revenue,CCHD,Bed Purchasing - LD S28A- Over 65- South,Residential Homes,Aspects &  Milestones Trust,3204.2, 07-Aug-2012
173,Revenue,CCHD,Bed purchasing - Under 65s PWLD - North,Residential Homes,Aspects &  Milestones Trust,15719.13, 07-Aug-2012
174,Revenue,CCHD,Bed purchasing - Elderly S117 - South,Nursing Homes,Aspects &  Milestones Trust,1945.16, 07-Aug-2012
175,Revenue,CCHD,Bed purchasing - Elderly MH - North,Nursing Homes,Aspects &  Milestones Trust,1337.2, 07-Aug-2012
176,Revenue,CCHD,Bed purchasing - Under 65s PWLD - North,Residential Homes,Aspects &  Milestones Trust,6125.96, 07-Aug-2012
177,Revenue,CCHD,MH Purchasing - Younger,Nursing Homes,Aspects &  Milestones Trust,1841.12, 07-Aug-2012
178,Revenue,CCHD,MH Purchasing - Younger,Nursing Homes,Aspects &  Milestones Trust,1878.4, 07-Aug-2012
179,Revenue,CCHD,South Glos Users in South Glos Homes,Nursing Homes,Aspects &  Milestones Trust,869.6, 07-Aug-2012
180,Revenue,CCHD,South Glos Users in South Glos Homes,Nursing Homes,Aspects &  Milestones Trust,869.6, 07-Aug-2012
181,Revenue,CCHD,MH Purchasing - Younger,Residential Homes,Aspects &  Milestones Trust,1012.6, 07-Aug-2012
182,Revenue,CCHD,Bed purchasing - Elderly PWLD - South,Residential Homes,Aspects &  Milestones Trust,3399.76, 07-Aug-2012
183,Revenue,CCHD,Bed purchasing - Elderly PWLD - South,Residential Homes,Aspects &  Milestones Trust,14537.1, 07-Aug-2012
184,Revenue,CCHD,Section 117 Placements MH Younger,Nursing Homes,Aspects &  Milestones Trust,2830.8, 07-Aug-2012
185,Revenue,CCHD,Bed purchasing - S28A Under 65 - South,Residential Homes,Aspects &  Milestones Trust,7168.2, 07-Aug-2012
186,Revenue,CCHD,Bed purchasing - S28A Under 65 - South,Residential Homes,Aspects &  Milestones Trust,4866.72, 07-Aug-2012
187,Revenue,CCHD,Bed Purchasing - LD S28A- Over 65- South,Residential Homes,Aspects &  Milestones Trust,4628.68, 07-Aug-2012
188,Revenue,CCHD,Bed Purchasing - Under 65s PWLD - South,Residential Homes,Aspects &  Milestones Trust,4173.08, 07-Aug-2012
189,Revenue,CCHD,Bed Purchasing - LD S28A- Over 65- South,Residential Homes,Aspects &  Milestones Trust,3801.96, 07-Aug-2012
190,Revenue,CCHD,Bed Purchasing - LD S28A- Over 65- South,Residential Homes,Aspects &  Milestones Trust,5898.16, 07-Aug-2012
191,Revenue,CCHD,Bed Purchasing - LD S28A- Over 65- South,Residential Homes,Aspects &  Milestones Trust,3973.08, 07-Aug-2012
192,Revenue,CCHD,Bed Purchasing - LD S28A- Over 65- South,Residential Homes,Aspects &  Milestones Trust,4406.8, 07-Aug-2012
193,Revenue,CCHD,Bed Purchasing - LD S28A- Over 65- South,Residential Homes,Aspects &  Milestones Trust,5155.88, 07-Aug-2012
194,Revenue,CCHD,Bed Purchasing - Elderly - South,Nursing Homes,Aspects &  Milestones Trust,650.1, 07-Aug-2012
195,Revenue,CCHD,Bed Purchasing - Elderly MH - South,Residential Homes,Aspects &  Milestones Trust,1206.56, 07-Aug-2012
196,Revenue,CCHD,Bed Purchasing - S28A - Over 65- North,Residential Homes,Aspects &  Milestones Trust,4762.64, 07-Aug-2012
197,Revenue,CCHD,Bed Purchasing - Elderly S117- North,Nursing Homes,Aspects &  Milestones Trust,1944, 07-Aug-2012
198,Revenue,CCHD,Bed Purchasing - Elderly S117- North,Nursing Homes,Aspects &  Milestones Trust,1944, 07-Aug-2012
199,Revenue,CCHD,Bed Purchasing - Elderly S117- North,Residential Homes,Aspects &  Milestones Trust,1324, 07-Aug-2012
200,Revenue,CCHD,Bed purchasing - Under 65s PWLD - North,Residential Homes,Aspects & Milestones Trust,8841.64, 07-Aug-2012
201,Revenue,CCHD,Supporting People Programme,Grants to Voluntary Bodies,Aspects and Milestones Trust,2391.34, 01-Aug-2012
202,Revenue,CCHD,Supporting People Programme,Grants to Voluntary Bodies,Aspects and Milestones Trust,2391.34, 31-Aug-2012
203,Revenue,CCHD,Supporting People Programme,Grants to Voluntary Bodies,Aspects and Milestones Trust,1575.46, 01-Aug-2012
204,Revenue,CCHD,Supporting People Programme,Grants to Voluntary Bodies,Aspects and Milestones Trust,1575.46, 31-Aug-2012
205,Revenue,CCHD,Supporting People Programme,Grants to Voluntary Bodies,Aspects and Milestones Trust,3074.56, 01-Aug-2012
206,Revenue,CCHD,Supporting People Programme,Grants to Voluntary Bodies,Aspects and Milestones Trust,3142.43, 01-Aug-2012
207,Revenue,CCHD,Supporting People Programme,Grants to Voluntary Bodies,Aspects and Milestones Trust,3142.43, 31-Aug-2012
208,Revenue,CCHD,Supporting People Programme,Grants to Voluntary Bodies,Aspects and Milestones Trust,1918.88, 01-Aug-2012
209,Revenue,CCHD,Supporting People Programme,Grants to Voluntary Bodies,Aspects and Milestones Trust,1918.88, 31-Aug-2012
210,Revenue,CCHD,Supported Living - PS,Private & Voluntary Home Care,Aspirations Support Bristol Limited,2314.2, 29-Aug-2012
211,Revenue,CCHD,Supported Living - PS,Private & Voluntary Home Care,Aspirations Support Bristol Limited,5383.8, 29-Aug-2012
212,Revenue,CCHD,Purchase of Non-Res Care - PS,Private & Voluntary Day Care,Aspirations Support Bristol Limited,2475.72, 17-Aug-2012
213,Revenue,CCHD,Bed Purchasing - Under 65s PWLD - South,Residential Homes,Autism Specialised Care Homes,5515.04, 07-Aug-2012
214,Revenue,CCHD,Younger Adult Mental Health,Management Contract - Unisys,Avon & Wiltshire Mental Health,5000, 10-Aug-2012
215,Revenue,CCHD,Purchase of RAC places,Other L.A.'s - General,Bath & North East Somerset Dist Council,3695.99, 17-Aug-2012
216,Revenue,CCHD,Purchase of RAC places,Other L.A.'s - General,Bath & North East Somerset Dist Council,17292.57, 17-Aug-2012
217,Revenue,CCHD,Frenchay Hospital Purchasing,Residential Homes,Beaufort House,661.44, 07-Aug-2012
218,Revenue,CCHD,Bed purchasing - Elderly MH - North,Residential Homes,Beaufort House,1418.36, 07-Aug-2012
219,Revenue,CCHD,Frenchay Hospital Purchasing,Residential Homes,Beaufort House,1276.24, 07-Aug-2012
220,Revenue,CCHD,Bed purchasing - Elderly MH - North,Residential Homes,Beaufort House,1318.88, 07-Aug-2012
221,Revenue,CCHD,Bed Purchasing - Elderly - North,Residential Homes,Beaufort House,1697.4, 07-Aug-2012
222,Revenue,CCHD,Bed purchasing - Elderly MH - North,Residential Homes,Beaufort House,875.84, 07-Aug-2012
223,Revenue,CCHD,Bed purchasing - Elderly MH - North,Residential Homes,Beaufort House,1011.32, 07-Aug-2012
224,Revenue,CCHD,Bed purchasing - Elderly MH - North,Residential Homes,Beaufort House,1672.68, 07-Aug-2012
225,Revenue,CCHD,Bed purchasing - Elderly PWLD - South,Residential Homes,Bedrock Lodge,2858.6, 07-Aug-2012
226,Revenue,CCHD,Section 117 Placements MH Younger,Residential Homes,Bedrock Lodge,1820.2, 07-Aug-2012
227,Revenue,CCHD,South Glos Users in South Glos Homes,Nursing Homes,Beech House,1754.73, 07-Aug-2012
228,Revenue,CCHD,South Glos Users in South Glos Homes,Nursing Homes,Beech House,1490.74, 07-Aug-2012
229,Revenue,CCHD,South Glos Users in South Glos Homes,Nursing Homes,Beech House,838.54, 07-Aug-2012
230,Revenue,CCHD,Bed Purchasing - Elderly - North,Nursing Homes,Beech House,1948.96, 07-Aug-2012
231,Revenue,CCHD,South Glos Users in South Glos Homes,Nursing Homes,Beech House,1723.67, 07-Aug-2012
232,Revenue,CCHD,South Glos Users in South Glos Homes,Nursing Homes,Beech House,1366.51, 07-Aug-2012
233,Revenue,CCHD,Bed Purchasing - Elderly - North,Nursing Homes,Beech House,2202.92, 07-Aug-2012
234,Revenue,CCHD,Bed Purchasing - Elderly - North,Nursing Homes,Beech House,1494.84, 07-Aug-2012
235,Revenue,CCHD,Bed Purchasing - Elderly - North,Nursing Homes,Bloomfield Care Centre,791.3, 07-Aug-2012
236,Revenue,CCHD,Bed Purchasing - Elderly - South,Nursing Homes,Blossom Fields,2961.76, 23-Aug-2012
237,Revenue,CCHD,Bed Purchasing - Elderly - North,Nursing Homes,Blossom Fields,7535.72, 23-Aug-2012
238,Revenue,CCHD,South Glos Users in South Glos Homes,Nursing Homes,Blossom Fields,1754.73, 23-Aug-2012
239,Revenue,CCHD,Bed purchasing - Elderly MH - North,Nursing Homes,Blossom Fields,1536.22, 23-Aug-2012
240,Revenue,CCHD,Tenancy Start Up Scheme,Other Supplies & Services,Blue Sky,1496.92, 17-Aug-2012
241,Revenue,CCHD,Tenancy Start Up Scheme,Other Supplies & Services,Blue Sky,1500, 17-Aug-2012
242,Revenue,CCHD,Frenchay Hospital Purchasing,Nursing Homes,Bradbury House,1366.76, 07-Aug-2012
243,Revenue,CCHD,Bed Purchasing - Elderly - North,Residential Homes,Bradley House,2478.4, 07-Aug-2012
244,Revenue,CCHD,Home Care - Elderly - South,Other Small Contracts,Bradley House Home Care Services,150.12, 21-Aug-2012
245,Revenue,CCHD,Home Care - Elderly - North,Other Small Contracts,Bradley House Home Care Services,1730.55, 21-Aug-2012
246,Revenue,CCHD,Day Care - South,Private & Voluntary Day Care,Bradley House Home Care Services,16.68, 21-Aug-2012
247,Revenue,CCHD,Day Care - North,Private & Voluntary Day Care,Bradley House Home Care Services,100.08, 21-Aug-2012
248,Revenue,CCHD,Younger MH non-res purchasing,Private & Voluntary Day Care,Bradley House Home Care Services,75.06, 21-Aug-2012
249,Revenue,CCHD,Home Care - Elderly - South,Other Small Contracts,Bradley House Home Care Services,154.29, 29-Aug-2012
250,Revenue,CCHD,Home Care - Elderly - North,Other Small Contracts,Bradley House Home Care Services,1755.57, 29-Aug-2012
251,Revenue,CCHD,Day Care - South,Private & Voluntary Day Care,Bradley House Home Care Services,50.04, 29-Aug-2012
252,Revenue,CCHD,Day Care - North,Private & Voluntary Day Care,Bradley House Home Care Services,133.44, 29-Aug-2012
253,Revenue,CCHD,Younger MH non-res purchasing,Private & Voluntary Day Care,Bradley House Home Care Services,75.06, 29-Aug-2012
254,Revenue,CCHD,Home Care - Elderly - South,Other Small Contracts,Bradley House Home Care Services,154.29, 09-Aug-2012
255,Revenue,CCHD,Home Care - Elderly - North,Other Small Contracts,Bradley House Home Care Services,1642.98, 09-Aug-2012
256,Revenue,CCHD,Day Care - South,Private & Voluntary Day Care,Bradley House Home Care Services,41.7, 09-Aug-2012
257,Revenue,CCHD,Day Care - North,Private & Voluntary Day Care,Bradley House Home Care Services,129.27, 09-Aug-2012
258,Revenue,CCHD,Home Care - Elderly - South,Other Small Contracts,Bradley House Home Care Services,162.63, 09-Aug-2012
259,Revenue,CCHD,Home Care - Elderly - North,Other Small Contracts,Bradley House Home Care Services,1642.98, 09-Aug-2012
260,Revenue,CCHD,Day Care - South,Private & Voluntary Day Care,Bradley House Home Care Services,29.19, 09-Aug-2012
261,Revenue,CCHD,Day Care - North,Private & Voluntary Day Care,Bradley House Home Care Services,129.27, 09-Aug-2012
262,Revenue,CCHD,Younger MH non-res purchasing,Private & Voluntary Day Care,Bradley House Home Care Services,41.7, 09-Aug-2012
263,Revenue,CCHD,Woodleaze,"Provisions (Food, etc)",Brake Bros,693.3, 17-Aug-2012
264,Revenue,CCHD,Alexandra Way,"Provisions (Food, etc)",Brake Bros,534.57, 02-Aug-2012
265,Revenue,CCHD,Alexandra Way,"Provisions (Food, etc)",Brake Bros,663.84, 03-Aug-2012
266,Revenue,CCHD,Woodleaze,"Provisions (Food, etc)",Brake Bros,510.04, 13-Aug-2012
267,Revenue,CCHD,Woodleaze,"Provisions (Food, etc)",Brake Bros,487.73, 10-Aug-2012
268,Revenue,CCHD,Alexandra Way,"Provisions (Food, etc)",Brake Bros,656.85, 20-Aug-2012
269,Revenue,CCHD,Bed Purchasing - Elderly - North,Residential Homes,Bridge House Care Home,3681.24, 07-Aug-2012
270,Revenue,CCHD,Bed Purchasing - Elderly - North,Residential Homes,Bridge House Care Home,4509.12, 07-Aug-2012
271,Revenue,CCHD,Bed Purchasing - Elderly - North,Residential Homes,Bridge House Care Home,3218.52, 07-Aug-2012
272,Revenue,CCHD,Bed Purchasing - Elderly - North,Residential Homes,Bridge House Care Home,3222, 07-Aug-2012
273,Revenue,CCHD,Bed Purchasing - Elderly - North,Residential Homes,Bridge House Care Home,595, 07-Aug-2012
274,Revenue,CCHD,Bed Purchasing - Elderly - North,Residential Homes,Bridge House Care Home,11930.16, 07-Aug-2012
275,Revenue,CCHD,Bed Purchasing - Elderly - North,Residential Homes,Bridge House Care Home,3968.88, 07-Aug-2012
276,Revenue,CCHD,Bed Purchasing - Elderly MH - South,Residential Homes,Brightbow,2529, 07-Aug-2012
277,Revenue,CCHD,MH Purchasing - Younger,Residential Homes,Brightbow,922.36, 07-Aug-2012
278,Revenue,CCHD,Supporting People Programme,Grants to Voluntary Bodies,Bristol Care & Repair,9780.82, 23-Aug-2012
279,Revenue,CCHD,Homelessness Grant,Other Supplies & Services,Bristol City Council,4113.46, 06-Aug-2012
280,Revenue,CCHD,Supported Living - KD,Private & Voluntary Home Care,Bristol Houses UK Ltd,1290.56, 20-Aug-2012
281,Revenue,CCHD,Supported Living - KD,Private & Voluntary Home Care,Bristol Houses UK Ltd,994.08, 20-Aug-2012
282,Revenue,CCHD,Supported Living - KD,Private & Voluntary Home Care,Bristol Houses UK Ltd,1874.8, 20-Aug-2012
283,Revenue,CCHD,Day Care - North,Private & Voluntary Day Care,Bristol Houses UK Ltd,1342.88, 06-Aug-2012
284,Revenue,CCHD,Day Care - North,Private & Voluntary Day Care,Bristol Houses UK Ltd,1534.72, 29-Aug-2012
285,Revenue,CCHD,Supported Living - KD,Private & Voluntary Home Care,Bristol Houses UK Ltd,575.52, 20-Aug-2012
286,Revenue,CCHD,Supported Living - KD,Private & Voluntary Home Care,Bristol Houses UK Ltd,960, 20-Aug-2012
287,Revenue,CCHD,Younger MH non-res purchasing,Private & Voluntary Day Care,Bristol Houses UK Ltd,1080, 08-Aug-2012
288,Revenue,CCHD,Younger MH non-res purchasing,Private & Voluntary Day Care,Bristol Houses UK Ltd,1080, 03-Aug-2012
289,Revenue,CCHD,Supported Living - KD,Private & Voluntary Home Care,Bristol Houses UK Ltd,585, 20-Aug-2012
290,Revenue,CCHD,Supported Living - KD,Private & Voluntary Home Care,Bristol Houses UK Ltd,585, 20-Aug-2012
291,Revenue,CCHD,Day Care - North,Private & Voluntary Day Care,Bristol Houses UK Ltd,2162.56, 06-Aug-2012
292,Revenue,CCHD,Day Care - North,Private & Voluntary Day Care,Bristol Houses UK Ltd,2175.64, 29-Aug-2012
293,Revenue,CCHD,Supported Living - KD,Private & Voluntary Home Care,Bristol Houses UK Ltd,599.98, 20-Aug-2012
294,Revenue,CCHD,Bed and Breakfast,Bed & Breakfast,Bristol Housing & Support Limited,480, 07-Aug-2012
295,Revenue,CCHD,Bed and Breakfast,Bed & Breakfast,Bristol Housing & Support Limited,560, 13-Aug-2012
296,Revenue,CCHD,Bed and Breakfast,Bed & Breakfast,Bristol Housing & Support Limited,480, 23-Aug-2012
297,Revenue,CCHD,General EPH budgets,Other Supplies & Services,Bristol Wessex Billing Services Limited,821.71, 02-Aug-2012
298,Revenue,CCHD,General EPH budgets,Other Supplies & Services,Bristol Wessex Billing Services Limited,876.17, 02-Aug-2012
299,Revenue,CCHD,Woodleaze,Water Charges,Bristol Wessex Billing Services Limited,3685.23, 10-Aug-2012
300,Revenue,CCHD,Newton House,Water Charges,Bristol Wessex Billing Services Limited,3341.87, 17-Aug-2012
301,Revenue,CCHD,Bed Purchasing - Elderly S117- North,Residential Homes,Brockley Court Care Home,1818.04, 07-Aug-2012
302,Revenue,CCHD,Supporting People Programme,Grants to Voluntary Bodies,Bromford Housing Group,13916.67, 01-Aug-2012
303,Revenue,CCHD,Supporting People Programme,Grants to Voluntary Bodies,Bromford Housing Group,13916.67, 31-Aug-2012
304,Revenue,CCHD,Bed Purchasing - Elderly - North,Residential Homes,Brook Lane Residential Home,877.36, 07-Aug-2012
305,Revenue,CCHD,South Glos Users in South Glos Homes,Nursing Homes,Brunel Care,1242.29, 07-Aug-2012
306,Revenue,CCHD,Bed Purchasing - Elderly - South,Nursing Homes,Brunel Care,713.44, 07-Aug-2012
307,Revenue,CCHD,Southmead Hospital Purchasing,Residential Homes,Brunel Care,1239.36, 07-Aug-2012
308,Revenue,CCHD,South Glos Users in South Glos Homes,Nursing Homes,Brunel Care,947.24, 07-Aug-2012
309,Revenue,CCHD,Bed Purchasing - Elderly MH - South,Nursing Homes,Brunel Care,2029.8, 07-Aug-2012
310,Revenue,CCHD,Southmead Hospital Purchasing,Nursing Homes,Brunel Care,1267.64, 07-Aug-2012
311,Revenue,CCHD,Bed Purchasing - Elderly - South,Residential Homes,Brunel Care,1269.4, 07-Aug-2012
312,Revenue,CCHD,Southmead Hospital Purchasing,Residential Homes,Brunel Care,1316.4, 07-Aug-2012
313,Revenue,CCHD,Home Care - Elderly - North,Private & Voluntary Home Care,Brunel Care Community Services,3278.54, 28-Aug-2012
314,Revenue,CCHD,Home Care - Elderly - North,Private & Voluntary Home Care,Brunelcare,6720, 06-Aug-2012
315,Revenue,CCHD,Home Care - Elderly - North,Private & Voluntary Home Care,Brunelcare,6720, 13-Aug-2012
316,Revenue,CCHD,Home Care - Elderly - North,Private & Voluntary Home Care,Brunelcare,6720, 20-Aug-2012
317,Revenue,CCHD,Home Care - Elderly - North,Private & Voluntary Home Care,Brunelcare,6720, 24-Aug-2012
318,Revenue,CCHD,Elderly MH Day Care South,Private & Voluntary Day Care,Brunelcare,724.36, 03-Aug-2012
319,Revenue,CCHD,Home Care - Elderly - South,Other Small Contracts,Brunelcare,2784.28, 02-Aug-2012
320,Revenue,CCHD,Home Care - Elderly - North,Other Small Contracts,Brunelcare,4314.72, 02-Aug-2012
321,Revenue,CCHD,Day Care - South,Private & Voluntary Day Care,Brunelcare,141.4, 02-Aug-2012
322,Revenue,CCHD,Day Care - North,Private & Voluntary Day Care,Brunelcare,181.8, 02-Aug-2012
323,Revenue,CCHD,Under 65s -MH  Home Care Purch,Other Small Contracts,Brunelcare,185.84, 02-Aug-2012
324,Revenue,CCHD,Home care - Elderly MH - North,Other Small Contracts,Brunelcare,169.68, 02-Aug-2012
325,Revenue,CCHD,Elderly MH Day Care North,Private & Voluntary Day Care,Brunelcare,319.16, 02-Aug-2012
326,Revenue,CCHD,Home Care - Elderly - South,Other Small Contracts,Brunelcare,2553.98, 02-Aug-2012
327,Revenue,CCHD,Home Care - Elderly - North,Other Small Contracts,Brunelcare,4334.92, 02-Aug-2012
328,Revenue,CCHD,Day Care - South,Private & Voluntary Day Care,Brunelcare,137.36, 02-Aug-2012
329,Revenue,CCHD,Day Care - North,Private & Voluntary Day Care,Brunelcare,197.96, 02-Aug-2012
330,Revenue,CCHD,Under 65s -MH  Home Care Purch,Other Small Contracts,Brunelcare,185.84, 02-Aug-2012
331,Revenue,CCHD,Home care - Elderly MH - North,Other Small Contracts,Brunelcare,157.56, 02-Aug-2012
332,Revenue,CCHD,Elderly MH Day Care North,Private & Voluntary Day Care,Brunelcare,210.08, 02-Aug-2012
333,Revenue,CCHD,Complaints and FOI,Complaints External Expenses,BSI Management Systems,1762, 13-Aug-2012
334,Revenue,CCHD,Information Systems - Software,Computer Equipment - Purchase,BT Global Services Solutions,759.31, 14-Aug-2012
335,Revenue,CCHD,Woodleaze,Cleaning & Domestic Supplies,Bunzl Cleaning & Hygiene Supplies,556.2, 13-Aug-2012
336,Revenue,CCHD,Woodleaze,Equipment Maintenance,Bunzl Cleaning & Hygiene Supplies,10.11, 13-Aug-2012
337,Revenue,CCHD,Bed purchasing - Phys Dis - North,Nursing Homes,Bupa Care Services  Bridge House,5795.92, 07-Aug-2012
338,Revenue,CCHD,South Glos Users in all other LA Homes,Nursing Homes,Bupa Care Services  Bridge House,598.4, 07-Aug-2012
339,Revenue,CCHD,Alexandra Way,Maintenance by Contractor,C B Decorators,580, 02-Aug-2012
340,Revenue,CCHD,Woodleaze,Maintenance by Contractor,C B Decorators,2698, 15-Aug-2012
341,Revenue,CCHD,Supported Living - KD,Private & Voluntary Home Care,Camphill Communities Thornbury Limited,1775.92, 03-Aug-2012
342,Revenue,CCHD,Supported Living - KD,Private & Voluntary Home Care,Camphill Communities Thornbury Limited,1920.84, 03-Aug-2012
343,Revenue,CCHD,Supported Living - PS,Private & Voluntary Home Care,Camphill Communities Thornbury Limited,1736.4, 17-Aug-2012
344,Revenue,CCHD,Supported Living - KD,Private & Voluntary Home Care,Camphill Communities Thornbury Limited,2475, 10-Aug-2012
345,Revenue,CCHD,Supported Living - KD,Private & Voluntary Home Care,Camphill Communities Thornbury Limited,2269.12, 20-Aug-2012
346,Revenue,CCHD,Supported Living - KD,Private & Voluntary Home Care,Camphill Communities Thornbury Limited,2030.28, 20-Aug-2012
347,Revenue,CCHD,Supported Living - KD,Private & Voluntary Home Care,Camphill Communities Thornbury Limited,2248.52, 20-Aug-2012
348,Revenue,CCHD,Supported Living - KD,Private & Voluntary Home Care,Camphill Communities Thornbury Limited,1997.32, 20-Aug-2012
349,Revenue,CCHD,Supported Living - KD,Private & Voluntary Home Care,Camphill Communities Thornbury Limited,664.91, 23-Aug-2012
350,Revenue,CCHD,Supported Living - KD,Private & Voluntary Home Care,Camphill Communities Thornbury Limited,2112.64, 24-Aug-2012
351,Revenue,CCHD,Supported Living - KD,Private & Voluntary Home Care,Camphill Communities Thornbury Limited,1997.32, 31-Aug-2012
352,Revenue,CCHD,Supported Living - KD,Private & Voluntary Home Care,Camphill Communities Thornbury Limited,2216.04, 31-Aug-2012
353,Revenue,CCHD,Bed purchasing - Under 65s PWLD - North,Residential Homes,Camphill Devon Community,3185.24, 07-Aug-2012
354,Revenue,CCHD,Bed purchasing - Under 65s PWLD - North,Residential Homes,Camphill Devon Community,2234.08, 07-Aug-2012
355,Revenue,CCHD,Home Care - Elderly - South,Other Small Contracts,Care 1st Homecare,2677.05, 06-Aug-2012
356,Revenue,CCHD,Home Care - Elderly - North,Other Small Contracts,Care 1st Homecare,3693.6, 06-Aug-2012
357,Revenue,CCHD,Day Care - South,Private & Voluntary Day Care,Care 1st Homecare,162, 06-Aug-2012
358,Revenue,CCHD,Day Care - North,Private & Voluntary Day Care,Care 1st Homecare,405, 06-Aug-2012
359,Revenue,CCHD,Home care - Elderly MH - North,Other Small Contracts,Care 1st Homecare,222.75, 06-Aug-2012
360,Revenue,CCHD,Home Care - LD Under 65 - South,Private & Voluntary Home Care,Care 1st Homecare,64.8, 06-Aug-2012
361,Revenue,CCHD,PWLD Home Care - Under 65 - KH,Private & Voluntary Home Care,Care 1st Homecare,166.05, 06-Aug-2012
362,Revenue,CCHD,Home Care - Elderly - South,Other Small Contracts,Care 1st Homecare,2523.15, 06-Aug-2012
363,Revenue,CCHD,Home Care - Elderly - North,Other Small Contracts,Care 1st Homecare,3369.6, 06-Aug-2012
364,Revenue,CCHD,Day Care - South,Private & Voluntary Day Care,Care 1st Homecare,157.95, 06-Aug-2012
365,Revenue,CCHD,Day Care - North,Private & Voluntary Day Care,Care 1st Homecare,271.35, 06-Aug-2012
366,Revenue,CCHD,Home care - Elderly MH - North,Other Small Contracts,Care 1st Homecare,210.6, 06-Aug-2012
367,Revenue,CCHD,Home Care - LD Under 65 - South,Private & Voluntary Home Care,Care 1st Homecare,133.65, 06-Aug-2012
368,Revenue,CCHD,PWLD Home Care - Under 65 - KH,Private & Voluntary Home Care,Care 1st Homecare,170.1, 06-Aug-2012
369,Revenue,CCHD,Bed Purchasing - PWLD S 117 Placements,Residential Homes,Care Community Ltd,7464.72, 07-Aug-2012
370,Revenue,CCHD,Day Care - South,Private & Voluntary Day Care,Care Horizons Limited,609.09, 02-Aug-2012
371,Revenue,CCHD,Supported Living - KD,Private & Voluntary Home Care,Care Horizons Limited,5757.16, 23-Aug-2012
372,Revenue,CCHD,Purchase of Non-Res Care - KD,Private & Voluntary Day Care,Care Horizons Limited,1394.9, 23-Aug-2012
373,Revenue,CCHD,Purchase of Non-Res Care - KD,Private & Voluntary Day Care,Care Horizons Limited,1708.36, 23-Aug-2012
374,Revenue,CCHD,Purchase of Non-Res Care - KD,Private & Voluntary Day Care,Care Horizons Limited,1172.07, 23-Aug-2012
375,Revenue,CCHD,Purchase of Non-Res Care - KD,Private & Voluntary Day Care,Care Horizons Limited,1297.72, 23-Aug-2012
376,Revenue,CCHD,Day Care - South,Private & Voluntary Day Care,Care Horizons Limited,662.83, 17-Aug-2012
377,Revenue,CCHD,Day Care - South,Private & Voluntary Day Care,Care Horizons Limited,364.56, 07-Aug-2012
378,Revenue,CCHD,Day Care - North,Private & Voluntary Day Care,Care Horizons Limited,364.56, 07-Aug-2012
379,Revenue,CCHD,Day Care - South,Private & Voluntary Day Care,Care Horizons Limited,347.2, 07-Aug-2012
380,Revenue,CCHD,Day Care - North,Private & Voluntary Day Care,Care Horizons Limited,351.54, 07-Aug-2012
381,Revenue,CCHD,Day Care - South,Private & Voluntary Day Care,Care Horizons Limited,351.54, 21-Aug-2012
382,Revenue,CCHD,Day Care - North,Private & Voluntary Day Care,Care Horizons Limited,243.04, 21-Aug-2012
383,Revenue,CCHD,Day Care - South,Private & Voluntary Day Care,Care Horizons Limited,264.74, 21-Aug-2012
384,Revenue,CCHD,Day Care - North,Private & Voluntary Day Care,Care Horizons Limited,364.56, 21-Aug-2012
385,Revenue,CCHD,Electronic Home Care Monitoring,Other Supplies & Services,Care Monitoring 2000 Limited,2400, 13-Aug-2012
386,Revenue,CCHD,Electronic Home Care Monitoring,Other Supplies & Services,Care Monitoring 2000 Limited,860, 17-Aug-2012
387,Revenue,CCHD,Electronic Home Care Monitoring,Other Supplies & Services,Care Monitoring 2000 Limited,5524.5, 31-Aug-2012
388,Revenue,CCHD,Home Care - General,Other Supplies & Services,Care Monitoring 2000 Limited,6930.2, 31-Aug-2012
389,Revenue,CCHD,Home Care - Elderly - South,Other Small Contracts,Care UK,7376.13, 07-Aug-2012
390,Revenue,CCHD,Home Care - Elderly - North,Other Small Contracts,Care UK,4450.91, 07-Aug-2012
391,Revenue,CCHD,Day Care - South,Private & Voluntary Day Care,Care UK,343.12, 07-Aug-2012
392,Revenue,CCHD,Day Care - North,Private & Voluntary Day Care,Care UK,945.47, 07-Aug-2012
393,Revenue,CCHD,Home care - Elderly MH - North,Other Small Contracts,Care UK,701.75, 07-Aug-2012
394,Revenue,CCHD,Elderly MH Day Care North,Private & Voluntary Day Care,Care UK,223.61, 07-Aug-2012
395,Revenue,CCHD,Home Care - Elderly - South,Other Small Contracts,Care UK,7074.49, 06-Aug-2012
396,Revenue,CCHD,Home Care - Elderly - North,Other Small Contracts,Care UK,4327.37, 06-Aug-2012
397,Revenue,CCHD,Day Care - South,Private & Voluntary Day Care,Care UK,389.64, 06-Aug-2012
398,Revenue,CCHD,Day Care - North,Private & Voluntary Day Care,Care UK,878.6, 06-Aug-2012
399,Revenue,CCHD,Home care - Elderly MH - North,Other Small Contracts,Care UK,737.26, 06-Aug-2012
400,Revenue,CCHD,Elderly MH Day Care North,Private & Voluntary Day Care,Care UK,114.6, 06-Aug-2012
401,Revenue,CCHD,Home Care - Elderly - South,Other Small Contracts,Care UK,7177.63, 03-Aug-2012
402,Revenue,CCHD,Home Care - Elderly - North,Other Small Contracts,Care UK,3988.03, 03-Aug-2012
403,Revenue,CCHD,Day Care - South,Private & Voluntary Day Care,Care UK,393.46, 03-Aug-2012
404,Revenue,CCHD,Day Care - North,Private & Voluntary Day Care,Care UK,832.76, 03-Aug-2012
405,Revenue,CCHD,Home care - Elderly MH - North,Other Small Contracts,Care UK,714.34, 03-Aug-2012
406,Revenue,CCHD,Elderly MH Day Care North,Private & Voluntary Day Care,Care UK,275.04, 03-Aug-2012
407,Revenue,CCHD,Home Care - Elderly - South,Other Small Contracts,Care UK,7120.33, 03-Aug-2012
408,Revenue,CCHD,Home Care - Elderly - North,Other Small Contracts,Care UK,4194.36, 03-Aug-2012
409,Revenue,CCHD,Day Care - South,Private & Voluntary Day Care,Care UK,393.46, 03-Aug-2012
410,Revenue,CCHD,Day Care - North,Private & Voluntary Day Care,Care UK,920.62, 03-Aug-2012
411,Revenue,CCHD,Home care - Elderly MH - North,Other Small Contracts,Care UK,725.8, 03-Aug-2012
412,Revenue,CCHD,Elderly MH Day Care North,Private & Voluntary Day Care,Care UK,286.5, 03-Aug-2012
413,Revenue,CCHD,Home Care - Elderly - South,Other Small Contracts,Care UK,7032.48, 03-Aug-2012
414,Revenue,CCHD,Home Care - Elderly - North,Other Small Contracts,Care UK,4289.86, 03-Aug-2012
415,Revenue,CCHD,Day Care - South,Private & Voluntary Day Care,Care UK,385.82, 03-Aug-2012
416,Revenue,CCHD,Day Care - North,Private & Voluntary Day Care,Care UK,924.44, 03-Aug-2012
417,Revenue,CCHD,Home care - Elderly MH - North,Other Small Contracts,Care UK,718.16, 03-Aug-2012
418,Revenue,CCHD,Elderly MH Day Care North,Private & Voluntary Day Care,Care UK,275.04, 03-Aug-2012
419,Revenue,CCHD,Home Care - Elderly - South,Other Small Contracts,Care UK,7284.59, 03-Aug-2012
420,Revenue,CCHD,Home Care - Elderly - North,Other Small Contracts,Care UK,4186.72, 03-Aug-2012
421,Revenue,CCHD,Day Care - South,Private & Voluntary Day Care,Care UK,343.8, 03-Aug-2012
422,Revenue,CCHD,Day Care - North,Private & Voluntary Day Care,Care UK,890.06, 03-Aug-2012
423,Revenue,CCHD,Home care - Elderly MH - North,Other Small Contracts,Care UK,714.34, 03-Aug-2012
424,Revenue,CCHD,Elderly MH Day Care North,Private & Voluntary Day Care,Care UK,278.86, 03-Aug-2012
425,Revenue,CCHD,Home Care - Elderly - South,Other Small Contracts,Cash Friday at Lloyds TSB,181.42, 15-Aug-2012
426,Revenue,CCHD,Home Care - Elderly - North,Other Small Contracts,Cash Friday at Lloyds TSB,1378.02, 15-Aug-2012
427,Revenue,CCHD,Day Care - South,Private & Voluntary Day Care,Cash Friday at Lloyds TSB,30.88, 15-Aug-2012
428,Revenue,CCHD,Day Care - North,Private & Voluntary Day Care,Cash Friday at Lloyds TSB,88.78, 15-Aug-2012
429,Revenue,CCHD,Home Care - Elderly - South,Other Small Contracts,Cash Friday at Lloyds TSB,185.28, 15-Aug-2012
430,Revenue,CCHD,Home Care - Elderly - North,Other Small Contracts,Cash Friday at Lloyds TSB,1405.04, 15-Aug-2012
431,Revenue,CCHD,Day Care - South,Private & Voluntary Day Care,Cash Friday at Lloyds TSB,30.88, 15-Aug-2012
432,Revenue,CCHD,Day Care - North,Private & Voluntary Day Care,Cash Friday at Lloyds TSB,88.78, 15-Aug-2012
433,Revenue,CCHD,Home Care - Elderly - South,Other Small Contracts,Cash Friday at Lloyds TSB,185.28, 15-Aug-2012
434,Revenue,CCHD,Home Care - Elderly - North,Other Small Contracts,Cash Friday at Lloyds TSB,1351, 15-Aug-2012
435,Revenue,CCHD,Day Care - South,Private & Voluntary Day Care,Cash Friday at Lloyds TSB,30.88, 15-Aug-2012
436,Revenue,CCHD,Day Care - North,Private & Voluntary Day Care,Cash Friday at Lloyds TSB,88.78, 15-Aug-2012
437,Revenue,CCHD,Frenchay Hospital Purchasing,Nursing Homes,Cedar Care Homes Ltd,1041.52, 07-Aug-2012
438,Revenue,CCHD,Frenchay Hospital Purchasing,Residential Homes,Centenary Care Homes Ltd,1239.2, 07-Aug-2012
439,Revenue,CCHD,Bed Purchasing - Elderly - South,Residential Homes,Cepen Lodge Care Home,2155.6, 07-Aug-2012
440,Revenue,CCHD,Bed Purchasing - Elderly - South,Residential Homes,Cepen Lodge Care Home,2155.6, 07-Aug-2012
441,Revenue,CCHD,Southmead Hospital Purchasing,Residential Homes,Charlton House Residential Home,3334.33, 07-Aug-2012
442,Revenue,CCHD,Home Care - Elderly - South,Other Small Contracts,Cherish Able Care Limited,2233.04, 03-Aug-2012
443,Revenue,CCHD,Home care - Elderly MH - North,Other Small Contracts,Cherish Able Care Limited,407.88, 03-Aug-2012
444,Revenue,CCHD,Home Care - Elderly - South,Other Small Contracts,Cherish Able Care Limited,2513.2, 15-Aug-2012
445,Revenue,CCHD,Home care - Elderly MH - North,Other Small Contracts,Cherish Able Care Limited,399.64, 15-Aug-2012
446,Revenue,CCHD,Home Care - Elderly - South,Other Small Contracts,Cherish Able Care Limited,2863.4, 17-Aug-2012
447,Revenue,CCHD,Home care - Elderly MH - North,Other Small Contracts,Cherish Able Care Limited,403.76, 17-Aug-2012
448,Revenue,CCHD,Home Care - Elderly - South,Other Small Contracts,Cherish Able Care Limited,2710.96, 24-Aug-2012
449,Revenue,CCHD,Home care - Elderly MH - North,Other Small Contracts,Cherish Able Care Limited,403.76, 24-Aug-2012
450,Revenue,CCHD,Bed purchasing -S28A  Under 65 - North,Residential Homes,Chescombe Lodge,8489.04, 07-Aug-2012
451,Revenue,CCHD,Bed Purchasing - Under 65s PWLD - South,Residential Homes,Chosen Court,6846.32, 07-Aug-2012
452,Revenue,CCHD,Bed Purchasing - PWLD S 117 Placements,Residential Homes,Chosen Court,7506.28, 07-Aug-2012
453,Revenue,CCHD,Bed Purchasing - Under 65s PWLD - South,Residential Homes,Chosen Court,10991.68, 07-Aug-2012
454,Revenue,CCHD,Training - Adult Services,Training Expenses,Chris Garnier,1045, 08-Aug-2012
455,Revenue,CCHD,Bed purchasing - Under 65s PWLD - North,Residential Homes,Church House,11522.72, 07-Aug-2012
456,Revenue,CCHD,Supported Living - PS,Private & Voluntary Home Care,Cintre Community,557.37, 10-Aug-2012
457,Revenue,CCHD,Supported Living - PS,Private & Voluntary Home Care,Cintre Community,506.7, 31-Aug-2012
458,Revenue,CCHD,Bed Purchasing - Elderly - South,Residential Homes,Cleeve Lodge,1597.04, 07-Aug-2012
459,Revenue,CCHD,Bed Purchasing - Elderly - North,Residential Homes,Cleeve Lodge,1009.44, 07-Aug-2012
460,Revenue,CCHD,Southmead Hospital Purchasing,Residential Homes,Cleeve Lodge,1425.36, 07-Aug-2012
461,Revenue,CCHD,Bed Purchasing - Elderly - South,Residential Homes,Cleeve Lodge,1224.52, 07-Aug-2012
462,Revenue,CCHD,Bed Purchasing - Elderly - South,Residential Homes,Cleeve Lodge,1750.68, 07-Aug-2012
463,Revenue,CCHD,Bed Purchasing - Elderly - South,Residential Homes,Cleeve Lodge,1449.08, 07-Aug-2012
464,Revenue,CCHD,Bed Purchasing - Elderly - South,Residential Homes,Cleeve Lodge,2236.96, 07-Aug-2012
465,Revenue,CCHD,Bed Purchasing - Elderly - South,Residential Homes,Cleeve Lodge,1767.96, 07-Aug-2012
466,Revenue,CCHD,Southmead Hospital Purchasing,Residential Homes,Cleeve Lodge,1434.8, 07-Aug-2012
467,Revenue,CCHD,Frenchay Hospital Purchasing,Residential Homes,Collingwood Residential Home,1027.68, 07-Aug-2012
468,Revenue,CCHD,Bed Purchasing - Elderly - South,Residential Homes,Collingwood Residential Home,1284.12, 07-Aug-2012
469,Revenue,CCHD,Frenchay Hospital Purchasing,Residential Homes,Collingwood Residential Home,694.68, 07-Aug-2012
470,Revenue,CCHD,Bed Purchasing - Elderly - South,Residential Homes,Collingwood Residential Home,1058.6, 07-Aug-2012
471,Revenue,CCHD,Bed Purchasing - Elderly - South,Residential Homes,Collingwood Residential Home,1323.64, 07-Aug-2012
472,Revenue,CCHD,Frenchay Hospital Purchasing,Residential Homes,Collingwood Residential Home,1232, 07-Aug-2012
473,Revenue,CCHD,Bed Purchasing - Elderly MH - South,Residential Homes,Collingwood Residential Home,1298.4, 07-Aug-2012
474,Revenue,CCHD,Bed Purchasing - Elderly - South,Residential Homes,Collingwood Residential Home,1247.92, 07-Aug-2012
475,Revenue,CCHD,Bed Purchasing - Elderly - South,Residential Homes,Collingwood Residential Home,1373.76, 07-Aug-2012
476,Revenue,CCHD,Bed Purchasing - Elderly - South,Residential Homes,Collingwood Residential Home,1245.88, 07-Aug-2012
477,Revenue,CCHD,Bed Purchasing - Elderly - South,Residential Homes,Collingwood Residential Home,1396.72, 07-Aug-2012
478,Revenue,CCHD,Bed and Breakfast,Bed & Breakfast,Connolly & Callaghan Limited,581, 08-Aug-2012
479,Revenue,CCHD,Bed and Breakfast,Bed & Breakfast,Connolly & Callaghan Limited,441, 08-Aug-2012
480,Revenue,CCHD,Bed and Breakfast,Bed & Breakfast,Connolly & Callaghan Limited,476, 16-Aug-2012
481,Revenue,CCHD,Bed and Breakfast,Bed & Breakfast,Connolly & Callaghan Limited,581, 16-Aug-2012
482,Revenue,CCHD,Bed and Breakfast,Bed & Breakfast,Connolly & Callaghan Limited,441, 16-Aug-2012
483,Revenue,CCHD,Bed and Breakfast,Bed & Breakfast,Connolly & Callaghan Limited,546, 16-Aug-2012
484,Revenue,CCHD,Bed and Breakfast,Bed & Breakfast,Connolly & Callaghan Limited,441, 23-Aug-2012
485,Revenue,CCHD,Bed and Breakfast,Bed & Breakfast,Connolly & Callaghan Limited,546, 23-Aug-2012
486,Revenue,CCHD,Bed and Breakfast,Bed & Breakfast,Connolly & Callaghan Limited,441, 23-Aug-2012
487,Revenue,CCHD,Bed and Breakfast,Bed & Breakfast,Connolly & Callaghan Limited,546, 23-Aug-2012
488,Revenue,CCHD,Bed purchasing - Under 65s PWLD - North,Residential Homes,Consensus Support Services Ltd,8938, 23-Aug-2012
489,Revenue,CCHD,Newton House,Gas,Corona Energy Retail 3 Limited,867.93, 10-Aug-2012
490,Revenue,CCHD,Alexandra Way,Gas,Corona Energy Retail 3 Limited,1013.98, 10-Aug-2012
491,Revenue,CCHD,Woodleaze,Gas,Corona Energy Retail 3 Limited,735.43, 10-Aug-2012
492,Revenue,CCHD,Research & Conferences,Consultation Expenses,CPEA Ltd,6450.45, 16-Aug-2012
493,Revenue,CCHD,Bed purchasing -S28A  Under 65 - North,Residential Homes,Cream Ii Ltd  Longrun House,7845.84, 07-Aug-2012
494,Revenue,CCHD,Bed purchasing -S28A  Under 65 - North,Residential Homes,Creedy Court,9074.84, 07-Aug-2012
495,Revenue,CCHD,Bed Purchasing - S28A - Over 65- North,Residential Homes,Creedy Court,7548.92, 07-Aug-2012
496,Revenue,CCHD,Alexandra Way,Residential Homes,Crossmans,13053.76, 28-Aug-2012
497,Revenue,CCHD,Brokerage and Information Service,Grants to Voluntary Bodies,D H I,9210.09, 24-Aug-2012
498,Revenue,CCHD,Purchase of Non-Res Care - PS,Private & Voluntary Day Care,Daneswood,4771.86, 09-Aug-2012
499,Revenue,CCHD,Bed Purchasing - Under 65s PWLD - South,Residential Homes,Daneswood,10754.88, 07-Aug-2012
500,Revenue,CCHD,Bed purchasing - Under 65s PWLD - North,Residential Homes,Daneswood,8901.24, 07-Aug-2012
501,Revenue,CCHD,Learning Difficulties PSL,Other Supplies & Services,Individual,2016.44, 23-Aug-2012
502,Revenue,CCHD,S28a Day Care,Private & Voluntary Day Care,DCF Premier Workshops Trust,1591, 03-Aug-2012
503,Revenue,CCHD,Day Care - North,Private & Voluntary Day Care,Deafblind UK,895.84, 03-Aug-2012
504,Revenue,CCHD,Day Care - South,Private & Voluntary Day Care,Deafblind UK,1018, 02-Aug-2012
505,Revenue,CCHD,Day Care - South,Private & Voluntary Day Care,Deafblind UK,1479.76, 02-Aug-2012
506,Revenue,CCHD,Purchase of Non-Res Care - KD,Private & Voluntary Day Care,Design 4 Life Ltd,1506.57, 31-Aug-2012
507,Revenue,CCHD,Purchase of Non-Res Care - KD,Private & Voluntary Day Care,Design 4 Life Ltd,1622.46, 20-Aug-2012
508,Revenue,CCHD,Purchase of Non-Res Care - KD,Private & Voluntary Day Care,Design 4 Life Ltd,552.03, 20-Aug-2012
509,Revenue,CCHD,Day Care - South,Private & Voluntary Day Care,Dhek Bhal,835.6, 14-Aug-2012
510,Revenue,CCHD,Supported Living - PS,Private & Voluntary Home Care,Dimensions (UK) Ltd,7748.4, 08-Aug-2012
511,Revenue,CCHD,Occupational Therapy Team,Computer Equipment - Purchase,Disabled Living Foundation,495, 09-Aug-2012
512,Revenue,CCHD,Home Care - Elderly - South,Other Small Contracts,DoCare Ltd,3109.26, 15-Aug-2012
513,Revenue,CCHD,Home Care - Elderly - North,Other Small Contracts,DoCare Ltd,3954.72, 15-Aug-2012
514,Revenue,CCHD,Day Care - South,Private & Voluntary Day Care,DoCare Ltd,110.88, 15-Aug-2012
515,Revenue,CCHD,Day Care - North,Private & Voluntary Day Care,DoCare Ltd,443.52, 15-Aug-2012
516,Revenue,CCHD,Home care - Elderly MH - North,Other Small Contracts,DoCare Ltd,189.42, 15-Aug-2012
517,Revenue,CCHD,Elderly MH Day Care North,Private & Voluntary Day Care,DoCare Ltd,55.44, 15-Aug-2012
518,Revenue,CCHD,Home Care - Elderly - South,Other Small Contracts,DoCare Ltd,3178.56, 15-Aug-2012
519,Revenue,CCHD,Home Care - Elderly - North,Other Small Contracts,DoCare Ltd,3899.28, 15-Aug-2012
520,Revenue,CCHD,Day Care - South,Private & Voluntary Day Care,DoCare Ltd,110.88, 15-Aug-2012
521,Revenue,CCHD,Day Care - North,Private & Voluntary Day Care,DoCare Ltd,498.96, 15-Aug-2012
522,Revenue,CCHD,Home care - Elderly MH - North,Other Small Contracts,DoCare Ltd,166.32, 15-Aug-2012
523,Revenue,CCHD,Elderly MH Day Care North,Private & Voluntary Day Care,DoCare Ltd,92.4, 15-Aug-2012
524,Revenue,CCHD,Home Care - Elderly - South,Other Small Contracts,DoCare Ltd,3160.08, 21-Aug-2012
525,Revenue,CCHD,Home Care - Elderly - North,Other Small Contracts,DoCare Ltd,3677.52, 21-Aug-2012
526,Revenue,CCHD,Day Care - South,Private & Voluntary Day Care,DoCare Ltd,101.64, 21-Aug-2012
527,Revenue,CCHD,Day Care - North,Private & Voluntary Day Care,DoCare Ltd,378.84, 21-Aug-2012
528,Revenue,CCHD,Home care - Elderly MH - North,Other Small Contracts,DoCare Ltd,184.8, 21-Aug-2012
529,Revenue,CCHD,Elderly MH Day Care North,Private & Voluntary Day Care,DoCare Ltd,55.44, 21-Aug-2012
530,Revenue,CCHD,Bed Purchasing - Elderly - South,Nursing Homes,Dunkirk Memorial House,1158.2, 07-Aug-2012
531,Revenue,CCHD,MH Purchasing - Younger,Residential Homes,Dunraven House,1810.24, 07-Aug-2012
532,Revenue,CCHD,Bed and Breakfast,Bed & Breakfast,E J Bartlett,630, 03-Aug-2012
533,Revenue,CCHD,Bed and Breakfast,Bed & Breakfast,E J Bartlett,630, 03-Aug-2012
534,Revenue,CCHD,Bed and Breakfast,Bed & Breakfast,E J Bartlett,840, 03-Aug-2012
535,Revenue,CCHD,Bed and Breakfast,Bed & Breakfast,E J Bartlett,630, 06-Aug-2012
536,Revenue,CCHD,Bed and Breakfast,Bed & Breakfast,E J Bartlett,630, 06-Aug-2012
537,Revenue,CCHD,Bed and Breakfast,Bed & Breakfast,E J Bartlett,840, 06-Aug-2012
538,Revenue,CCHD,Bed and Breakfast,Bed & Breakfast,E J Bartlett,630, 07-Aug-2012
539,Revenue,CCHD,Bed and Breakfast,Bed & Breakfast,E J Bartlett,630, 07-Aug-2012
540,Revenue,CCHD,Bed and Breakfast,Bed & Breakfast,E J Bartlett,840, 07-Aug-2012
541,Revenue,CCHD,Bed and Breakfast,Bed & Breakfast,E J Bartlett,630, 21-Aug-2012
542,Revenue,CCHD,Bed and Breakfast,Bed & Breakfast,E J Bartlett,630, 21-Aug-2012
543,Revenue,CCHD,Bed and Breakfast,Bed & Breakfast,E J Bartlett,840, 21-Aug-2012
544,Revenue,CCHD,Bed and Breakfast,Bed & Breakfast,E J Bartlett,945, 21-Aug-2012
545,Revenue,CCHD,Bed and Breakfast,Bed & Breakfast,E J Bartlett,630, 21-Aug-2012
546,Revenue,CCHD,Bed and Breakfast,Bed & Breakfast,E J Bartlett,630, 21-Aug-2012
547,Revenue,CCHD,Bed and Breakfast,Bed & Breakfast,E J Bartlett,735, 30-Aug-2012
548,Revenue,CCHD,Bed and Breakfast,Bed & Breakfast,E J Bartlett,630, 30-Aug-2012
549,Revenue,CCHD,Bed purchasing - Under 65s PWLD - North,Residential Homes,East Court,4321.6, 07-Aug-2012
550,Revenue,CCHD,Minor Adaptations Service,Operational Equipment,Eastman & Co (Timber) Limited,570.82, 24-Aug-2012
551,Revenue,CCHD,MH Purchasing - Younger,Residential Homes,Eclipse Office Park,2269.12, 07-Aug-2012
552,Revenue,CCHD,Charlton,Electricity,EDF Energy 1 Limited,972.61, 01-Aug-2012
553,Revenue,CCHD,Charlton,Electricity,EDF Energy 1 Limited,870.77, 16-Aug-2012
554,Revenue,CCHD,Woodleaze,Electricity,EDF Energy 1 Limited,907.12, 01-Aug-2012
555,Revenue,CCHD,Woodleaze,Electricity,EDF Energy 1 Limited,918.03, 16-Aug-2012
556,Revenue,CCHD,Newton House,Electricity,EDF Energy 1 Limited,859.19, 01-Aug-2012
557,Revenue,CCHD,Newton House,Electricity,EDF Energy 1 Limited,863.89, 16-Aug-2012
558,Revenue,CCHD,Alexandra Way,Electricity,EDF Energy 1 Limited,1219.46, 01-Aug-2012
559,Revenue,CCHD,Alexandra Way,Electricity,EDF Energy 1 Limited,1238.82, 16-Aug-2012
560,Revenue,CCHD,Bed Purchasing - Elderly - South,Residential Homes,Edgecumbe Lodge,701.6, 07-Aug-2012
561,Revenue,CCHD,Frenchay Hospital Purchasing,Residential Homes,Edgecumbe Lodge,2367.68, 07-Aug-2012
562,Revenue,CCHD,Southmead Hospital Purchasing,Residential Homes,Edgecumbe Lodge,2478.4, 07-Aug-2012
563,Revenue,CCHD,Frenchay Hospital Purchasing,Residential Homes,Edgecumbe Lodge,2876.71, 07-Aug-2012
564,Revenue,CCHD,Frenchay Hospital Purchasing,Residential Homes,Edgecumbe Lodge,1239.2, 07-Aug-2012
565,Revenue,CCHD,Frenchay Hospital Purchasing,Residential Homes,Edgecumbe Lodge,663.86, 07-Aug-2012
566,Revenue,CCHD,Bed Purchasing - Elderly - South,Residential Homes,Edgecumbe Lodge,2930.67, 07-Aug-2012
567,Revenue,CCHD,Bed Purchasing - Elderly - South,Residential Homes,Edgecumbe Lodge,2458.8, 07-Aug-2012
568,Revenue,CCHD,Frenchay Hospital Purchasing,Residential Homes,Edgecumbe Lodge,2221.04, 07-Aug-2012
569,Revenue,CCHD,Frenchay Hospital Purchasing,Residential Homes,Edgecumbe Lodge,2112, 07-Aug-2012
570,Revenue,CCHD,Bed Purchasing - Elderly MH - South,Residential Homes,Edgecumbe Lodge,2295.68, 07-Aug-2012
571,Revenue,CCHD,Bed purchasing - Elderly PWLD - South,Residential Homes,Edgemont House Ltd,1310.88, 07-Aug-2012
572,Revenue,CCHD,Bed Purchasing - Elderly - South,Residential Homes,Edgemont House Ltd,1353.44, 07-Aug-2012
573,Revenue,CCHD,Bed Purchasing - Elderly - South,Residential Homes,Edgemont House Ltd,1243.44, 07-Aug-2012
574,Revenue,CCHD,Frenchay Hospital Purchasing,Residential Homes,Edgemont House Ltd,1361.56, 07-Aug-2012
575,Revenue,CCHD,Bed Purchasing - Elderly - South,Nursing Homes,Edgemont View Nursing Home,1418.52, 07-Aug-2012
576,Revenue,CCHD,Frenchay Hospital Purchasing,Nursing Homes,Edgemont View Nursing Home,1341.28, 07-Aug-2012
577,Revenue,CCHD,Bed Purchasing - Elderly - South,Nursing Homes,Edgemont View Nursing Home,1602.76, 07-Aug-2012
578,Revenue,CCHD,Frenchay Hospital Purchasing,Nursing Homes,Edgemont View Nursing Home,606.84, 07-Aug-2012
579,Revenue,CCHD,Training - Adult Services,Training Expenses,Effective Training & Consultancy Limited,778.5, 09-Aug-2012
580,Revenue,CCHD,Supporting People Programme,Grants to Voluntary Bodies,Elim Housing Association Ltd,4898.24, 01-Aug-2012
581,Revenue,CCHD,Supporting People Programme,Grants to Voluntary Bodies,Elim Housing Association Ltd,4898.24, 31-Aug-2012
582,Revenue,CCHD,Home Care - Elderly - South,Other Small Contracts,Elite Home Care Ltd,2559.03, 09-Aug-2012
583,Revenue,CCHD,Day Care - South,Private & Voluntary Day Care,Elite Home Care Ltd,51.96, 09-Aug-2012
584,Revenue,CCHD,Under 65s -MH  Home Care Purch,Other Small Contracts,Elite Home Care Ltd,86.6, 09-Aug-2012
585,Revenue,CCHD,Home care - Elderly MH - North,Other Small Contracts,Elite Home Care Ltd,372.38, 09-Aug-2012
586,Revenue,CCHD,Home Care - Elderly - South,Other Small Contracts,Elite Home Care Ltd,2585.01, 15-Aug-2012
587,Revenue,CCHD,Day Care - South,Private & Voluntary Day Care,Elite Home Care Ltd,51.96, 15-Aug-2012
588,Revenue,CCHD,Under 65s -MH  Home Care Purch,Other Small Contracts,Elite Home Care Ltd,86.6, 15-Aug-2012
589,Revenue,CCHD,Home care - Elderly MH - North,Other Small Contracts,Elite Home Care Ltd,359.39, 15-Aug-2012
590,Revenue,CCHD,Bed Purchasing - Elderly - South,Residential Homes,Elmbridge Residential Home Ltd,1309.56, 07-Aug-2012
591,Revenue,CCHD,Frenchay Hospital Purchasing,Nursing Homes,Elmwood Nursing Home,2213.12, 07-Aug-2012
592,Revenue,CCHD,Younger MH non-res purchasing,Private & Voluntary Day Care,Enham,638.72, 08-Aug-2012
593,Revenue,CCHD,Tenancy Start Up Scheme,Other Supplies & Services,Evenbrook Group Ltd,1250, 20-Aug-2012
594,Revenue,CCHD,Home Care - Elderly - South,Other Small Contracts,Everycare (Bristol) Ltd,1184.4, 06-Aug-2012
595,Revenue,CCHD,Home Care - Elderly - North,Other Small Contracts,Everycare (Bristol) Ltd,1352.4, 06-Aug-2012
596,Revenue,CCHD,Day Care - North,Private & Voluntary Day Care,Everycare (Bristol) Ltd,58.8, 06-Aug-2012
597,Revenue,CCHD,Home Care - Elderly - South,Other Small Contracts,Everycare (Bristol) Ltd,1423.8, 06-Aug-2012
598,Revenue,CCHD,Home Care - Elderly - North,Other Small Contracts,Everycare (Bristol) Ltd,1167.6, 06-Aug-2012
599,Revenue,CCHD,Home Care - Elderly - South,Other Small Contracts,Everycare (Bristol) Ltd,1751.4, 30-Aug-2012
600,Revenue,CCHD,Home Care - Elderly - North,Other Small Contracts,Everycare (Bristol) Ltd,928.2, 30-Aug-2012
601,Revenue,CCHD,Bed Purchasing - Elderly - South,Nursing Homes,Fairview Court,6849.15, 07-Aug-2012
602,Revenue,CCHD,Bed Purchasing - Elderly - South,Nursing Homes,Fairview Court,3632.64, 07-Aug-2012
603,Revenue,CCHD,Southmead Hospital Purchasing,Nursing Homes,Fairview Court,1467.32, 07-Aug-2012
604,Revenue,CCHD,Southmead Hospital Purchasing,Nursing Homes,Fairview Court,1885.92, 07-Aug-2012
605,Revenue,CCHD,South Glos Users in South Glos Homes,Nursing Homes,Fairview Court,1754.73, 07-Aug-2012
606,Revenue,CCHD,Bed Purchasing - Elderly MH - South,Residential Homes,Fairview Court,1403.2, 07-Aug-2012
607,Revenue,CCHD,Bed Purchasing - Elderly - South,Residential Homes,Fairview Court,2623.36, 07-Aug-2012
608,Revenue,CCHD,Bed Purchasing - Elderly - South,Residential Homes,Fairview Court,2118.56, 07-Aug-2012
609,Revenue,CCHD,Frenchay Hospital Purchasing,Nursing Homes,Fairview Court Care Home,1973.08, 28-Aug-2012
610,Revenue,CCHD,South Glos Users in South Glos Homes,Nursing Homes,Fairview Court Care Home,2406.93, 28-Aug-2012
611,Revenue,CCHD,Bed purchasing - Phys Dis - North,Nursing Homes,Fairview Court Care Home,1976.57, 28-Aug-2012
612,Revenue,CCHD,Bed Purchasing - Elderly MH - South,Nursing Homes,Fairview Court Care Home,3030.11, 28-Aug-2012
613,Revenue,CCHD,Bed purchasing - Elderly S117 - South,Nursing Homes,Fairview Court Care Home,2550.03, 28-Aug-2012
614,Revenue,CCHD,Bed Purchasing - Elderly - South,Residential Homes,Fairview House,634.12, 07-Aug-2012
615,Revenue,CCHD,Frenchay Hospital Purchasing,Residential Homes,Fairview House,1233.32, 07-Aug-2012
616,Revenue,CCHD,Bed Purchasing - Elderly - South,Residential Homes,Fairview House,9075.17, 07-Aug-2012
617,Revenue,CCHD,Bed Purchasing - Elderly - South,Residential Homes,Fairview House,1255.24, 07-Aug-2012
618,Revenue,CCHD,Frenchay Hospital Purchasing,Residential Homes,Fairview House,995.44, 07-Aug-2012
619,Revenue,CCHD,Bed purchasing - Elderly S117 - South,Residential Homes,Fairview House,1870.92, 07-Aug-2012
620,Revenue,CCHD,Southmead Hospital Purchasing,Residential Homes,Fairview House,1021.08, 07-Aug-2012
621,Revenue,CCHD,Southmead Hospital Purchasing,Residential Homes,Fairview House,1221.2, 07-Aug-2012
622,Revenue,CCHD,Southmead Hospital Purchasing,Residential Homes,Fairview House,1111.28, 07-Aug-2012
623,Revenue,CCHD,Bed Purchasing - Elderly MH - South,Residential Homes,Fairview House,1097.2, 07-Aug-2012
624,Revenue,CCHD,Frenchay Hospital Purchasing,Residential Homes,Fairview House,1239.2, 07-Aug-2012
625,Revenue,CCHD,Bed Purchasing - Elderly MH - South,Residential Homes,Fairview House,1038.44, 07-Aug-2012
626,Revenue,CCHD,Bed Purchasing - Elderly MH - South,Residential Homes,Fairview House,1198.68, 07-Aug-2012
627,Revenue,CCHD,Bed Purchasing - Elderly - North,Residential Homes,Faith House,871.16, 07-Aug-2012
628,Revenue,CCHD,Frenchay Hospital Purchasing,Residential Homes,Faith House,1302, 07-Aug-2012
629,Revenue,CCHD,Bed purchasing - Under 65s PWLD - North,Residential Homes,Fernbank,8479.4, 07-Aug-2012
630,Revenue,CCHD,Home Care - Elderly - South,Other Small Contracts,Firstpoint Homecare Ltd,2309.2, 09-Aug-2012
631,Revenue,CCHD,Home Care - Elderly - North,Other Small Contracts,Firstpoint Homecare Ltd,543.4, 09-Aug-2012
632,Revenue,CCHD,Day Care - South,Private & Voluntary Day Care,Firstpoint Homecare Ltd,570, 09-Aug-2012
633,Revenue,CCHD,Day Care - North,Private & Voluntary Day Care,Firstpoint Homecare Ltd,402.8, 09-Aug-2012
634,Revenue,CCHD,Younger MH non-res purchasing,Private & Voluntary Day Care,Firstpoint Homecare Ltd,45.6, 09-Aug-2012
635,Revenue,CCHD,Home care - Elderly MH - North,Other Small Contracts,Firstpoint Homecare Ltd,155.8, 09-Aug-2012
636,Revenue,CCHD,Supported Living - KD,Private & Voluntary Home Care,Firstpoint Homecare Ltd,91.2, 09-Aug-2012
637,Revenue,CCHD,Home Care - Elderly - South,Other Small Contracts,Firstpoint Homecare Ltd,1789.8, 15-Aug-2012
638,Revenue,CCHD,Home Care - Elderly - North,Other Small Contracts,Firstpoint Homecare Ltd,562.4, 15-Aug-2012
639,Revenue,CCHD,Day Care - South,Private & Voluntary Day Care,Firstpoint Homecare Ltd,649.8, 15-Aug-2012
640,Revenue,CCHD,Day Care - North,Private & Voluntary Day Care,Firstpoint Homecare Ltd,402.8, 15-Aug-2012
641,Revenue,CCHD,Younger MH non-res purchasing,Private & Voluntary Day Care,Firstpoint Homecare Ltd,45.6, 15-Aug-2012
642,Revenue,CCHD,Home care - Elderly MH - North,Other Small Contracts,Firstpoint Homecare Ltd,155.8, 15-Aug-2012
643,Revenue,CCHD,Supported Living - KD,Private & Voluntary Home Care,Firstpoint Homecare Ltd,91.2, 15-Aug-2012
644,Revenue,CCHD,Home Care - Elderly - South,Other Small Contracts,Firstpoint Homecare Ltd,1801.2, 15-Aug-2012
645,Revenue,CCHD,Home Care - Elderly - North,Other Small Contracts,Firstpoint Homecare Ltd,653.6, 15-Aug-2012
646,Revenue,CCHD,Day Care - South,Private & Voluntary Day Care,Firstpoint Homecare Ltd,649.8, 15-Aug-2012
647,Revenue,CCHD,Day Care - North,Private & Voluntary Day Care,Firstpoint Homecare Ltd,452.2, 15-Aug-2012
648,Revenue,CCHD,Younger MH non-res purchasing,Private & Voluntary Day Care,Firstpoint Homecare Ltd,45.6, 15-Aug-2012
649,Revenue,CCHD,Home care - Elderly MH - North,Other Small Contracts,Firstpoint Homecare Ltd,155.8, 15-Aug-2012
650,Revenue,CCHD,Elderly MH Day Care North,Private & Voluntary Day Care,Firstpoint Homecare Ltd,91.2, 15-Aug-2012
651,Revenue,CCHD,Supported Living - KD,Private & Voluntary Home Care,Firstpoint Homecare Ltd,91.2, 15-Aug-2012
652,Revenue,CCHD,Home Care - Elderly - South,Other Small Contracts,Firstpoint Homecare Ltd,1801.75, 24-Aug-2012
653,Revenue,CCHD,Home Care - Elderly - North,Other Small Contracts,Firstpoint Homecare Ltd,627, 24-Aug-2012
654,Revenue,CCHD,Day Care - South,Private & Voluntary Day Care,Firstpoint Homecare Ltd,649.8, 24-Aug-2012
655,Revenue,CCHD,Day Care - North,Private & Voluntary Day Care,Firstpoint Homecare Ltd,421.8, 24-Aug-2012
656,Revenue,CCHD,Younger MH non-res purchasing,Private & Voluntary Day Care,Firstpoint Homecare Ltd,45.6, 24-Aug-2012
657,Revenue,CCHD,Home care - Elderly MH - North,Other Small Contracts,Firstpoint Homecare Ltd,155.8, 24-Aug-2012
658,Revenue,CCHD,Elderly MH Day Care North,Private & Voluntary Day Care,Firstpoint Homecare Ltd,91.2, 24-Aug-2012
659,Revenue,CCHD,Supported Living - KD,Private & Voluntary Home Care,Firstpoint Homecare Ltd,91.2, 24-Aug-2012
660,Revenue,CCHD,Home Care - Elderly - South,Other Small Contracts,Firstpoint Homecare Ltd,1722.49, 24-Aug-2012
661,Revenue,CCHD,Home Care - Elderly - North,Other Small Contracts,Firstpoint Homecare Ltd,589, 24-Aug-2012
662,Revenue,CCHD,Day Care - South,Private & Voluntary Day Care,Firstpoint Homecare Ltd,619.4, 24-Aug-2012
663,Revenue,CCHD,Day Care - North,Private & Voluntary Day Care,Firstpoint Homecare Ltd,349.6, 24-Aug-2012
664,Revenue,CCHD,Younger MH non-res purchasing,Private & Voluntary Day Care,Firstpoint Homecare Ltd,152, 24-Aug-2012
665,Revenue,CCHD,Home care - Elderly MH - North,Other Small Contracts,Firstpoint Homecare Ltd,155.8, 24-Aug-2012
666,Revenue,CCHD,Elderly MH Day Care North,Private & Voluntary Day Care,Firstpoint Homecare Ltd,83.6, 24-Aug-2012
667,Revenue,CCHD,Supported Living - KD,Private & Voluntary Home Care,Firstpoint Homecare Ltd,95, 24-Aug-2012
668,Revenue,CCHD,Purchase of Non-Res Care - PS,Private & Voluntary Day Care,Firstpoint Homecare Ltd,1238.77, 02-Aug-2012
669,Revenue,CCHD,Purchase of Non-Res Care - PS,Private & Voluntary Day Care,Firstpoint Homecare Ltd,786.74, 09-Aug-2012
670,Revenue,CCHD,Purchase of Non-Res Care - PS,Private & Voluntary Day Care,Firstpoint Homecare Ltd,1280.57, 09-Aug-2012
671,Revenue,CCHD,Purchase of Non-Res Care - PS,Private & Voluntary Day Care,Firstpoint Homecare Ltd,1286.57, 09-Aug-2012
672,Revenue,CCHD,Purchase of Non-Res Care - PS,Private & Voluntary Day Care,Firstpoint Homecare Ltd,1280.57, 09-Aug-2012
673,Revenue,CCHD,Purchase of Non-Res Care - PS,Private & Voluntary Day Care,Firstpoint Homecare Ltd,1285.07, 17-Aug-2012
674,Revenue,CCHD,Tenancy Start Up Scheme,Other Supplies & Services,Flomp LLP - Deposit,725, 03-Aug-2012
675,Revenue,CCHD,Tenancy Start Up Scheme,Other Supplies & Services,Flomp LLP - Rent,725, 03-Aug-2012
676,Revenue,CCHD,Bed Purchasing - Elderly - South,Nursing Homes,Four Seasons Health Care,1281.72, 07-Aug-2012
677,Revenue,CCHD,Frenchay Hospital Purchasing,Residential Homes,Four Seasons Health Care,892.12, 07-Aug-2012
678,Revenue,CCHD,Bed Purchasing - Elderly MH - South,Nursing Homes,Four Seasons Health Care,1363.2, 07-Aug-2012
679,Revenue,CCHD,Frenchay Hospital Purchasing,Nursing Homes,Four Seasons Health Care,1363.2, 07-Aug-2012
680,Revenue,CCHD,Frenchay Hospital Purchasing,Nursing Homes,Four Seasons Health Care,1840, 07-Aug-2012
681,Revenue,CCHD,Southmead Hospital Purchasing,Nursing Homes,Four Seasons Health Care,1363.2, 07-Aug-2012
682,Revenue,CCHD,Section 117 Placements MH Younger,Nursing Homes,Four Seasons Health Care,1840, 07-Aug-2012
683,Revenue,CCHD,Bed Purchasing - Elderly - South,Nursing Homes,Four Seasons Health Care,903.84, 07-Aug-2012
684,Revenue,CCHD,Southmead Hospital Purchasing,Nursing Homes,Four Seasons Health Care,1363.2, 07-Aug-2012
685,Revenue,CCHD,Bed Purchasing - Elderly - South,Nursing Homes,Four Seasons Health Care,1361.64, 07-Aug-2012
686,Revenue,CCHD,Cash for Change Discharges,Nursing Homes,Four Seasons Health Care,1363.2, 07-Aug-2012
687,Revenue,CCHD,South Glos Users in South Glos Homes,Nursing Homes,Four Seasons Health Care,3167.83, 07-Aug-2012
688,Revenue,CCHD,Southmead Hospital Purchasing,Nursing Homes,Four Seasons Health Care,1363.2, 07-Aug-2012
689,Revenue,CCHD,South Glos Users in South Glos Homes,Nursing Homes,Four Seasons Health Care,1180.17, 07-Aug-2012
690,Revenue,CCHD,Bed Purchasing - Elderly - South,Nursing Homes,Four Seasons Health Care,1327.2, 07-Aug-2012
691,Revenue,CCHD,Southmead Hospital Purchasing,Nursing Homes,Four Seasons Health Care,1363.2, 07-Aug-2012
692,Revenue,CCHD,Bed Purchasing - Elderly - South,Nursing Homes,Four Seasons Health Care,1260.92, 07-Aug-2012
693,Revenue,CCHD,Southmead Hospital Purchasing,Residential Homes,Four Seasons Health Care,543.56, 07-Aug-2012
694,Revenue,CCHD,Southmead Hospital Purchasing,Nursing Homes,Four Seasons Health Care,1269.2, 07-Aug-2012
695,Revenue,CCHD,Frenchay Hospital Purchasing,Nursing Homes,Four Seasons Health Care,6426.13, 07-Aug-2012
696,Revenue,CCHD,Frenchay Hospital Purchasing,Nursing Homes,Four Seasons Health Care,1159.2, 07-Aug-2012
697,Revenue,CCHD,Bed Purchasing - Elderly - South,Nursing Homes,Four Seasons Health Care,1363.2, 07-Aug-2012
698,Revenue,CCHD,Bed Purchasing - Elderly - South,Nursing Homes,Four Seasons Health Care,1308.24, 07-Aug-2012
699,Revenue,CCHD,Bed Purchasing - Elderly MH - South,Nursing Homes,Four Seasons Health Care,1363.2, 07-Aug-2012
700,Revenue,CCHD,Bed Purchasing - Elderly - South,Nursing Homes,Four Seasons Health Care,1067.16, 07-Aug-2012
701,Revenue,CCHD,Bed Purchasing - Elderly - South,Nursing Homes,Four Seasons Health Care,1327.2, 07-Aug-2012
702,Revenue,CCHD,Frenchay Hospital Purchasing,Nursing Homes,Four Seasons Health Care,1071.6, 07-Aug-2012
703,Revenue,CCHD,Bed Purchasing - Elderly MH - South,Residential Homes,Four Seasons Health Care,1084.52, 07-Aug-2012
704,Revenue,CCHD,Bed Purchasing - Elderly - South,Nursing Homes,Four Seasons Health Care,1363.2, 07-Aug-2012
705,Revenue,CCHD,Bed Purchasing - Elderly - South,Nursing Homes,Four Seasons Health Care,1361.8, 07-Aug-2012
706,Revenue,CCHD,Frenchay Hospital Purchasing,Nursing Homes,Four Seasons Health Care,1371.2, 07-Aug-2012
707,Revenue,CCHD,Bed Purchasing - Elderly MH - South,Nursing Homes,Four Seasons Health Care,1212.44, 07-Aug-2012
708,Revenue,CCHD,Bed Purchasing - Elderly - North,Nursing Homes,Four Seasons Health Care,956.44, 07-Aug-2012
709,Revenue,CCHD,Frenchay Hospital Purchasing,Nursing Homes,Four Seasons Health Care,1535.2, 07-Aug-2012
710,Revenue,CCHD,Frenchay Hospital Purchasing,Nursing Homes,Four Seasons Health Care,1271.88, 07-Aug-2012
711,Revenue,CCHD,Southmead Hospital Purchasing,Residential Homes,Four Seasons Health Care,1230.28, 07-Aug-2012
712,Revenue,CCHD,Bed Purchasing - Elderly - South,Nursing Homes,Four Seasons Health Care,3618.68, 07-Aug-2012
713,Revenue,CCHD,Bed Purchasing - Elderly - South,Nursing Homes,Four Seasons Health Care,1535.2, 07-Aug-2012
714,Revenue,CCHD,Bed Purchasing - Elderly - North,Nursing Homes,Four Seasons Health Care,1535.2, 07-Aug-2012
715,Revenue,CCHD,Frenchay Hospital Purchasing,Nursing Homes,Four Seasons Health Care,1026.64, 07-Aug-2012
716,Revenue,CCHD,Bed Purchasing - Elderly - North,Residential Homes,Four Seasons Health Care,1026.48, 07-Aug-2012
717,Revenue,CCHD,Frenchay Hospital Purchasing,Nursing Homes,Four Seasons Health Care,2726.4, 07-Aug-2012
718,Revenue,CCHD,South Glos Users in South Glos Homes,Nursing Homes,Four Seasons Health Care,1180.17, 07-Aug-2012
719,Revenue,CCHD,Bed Purchasing - Elderly - North,Nursing Homes,Four Seasons Health Care,1220.44, 07-Aug-2012
720,Revenue,CCHD,Bed purchasing - Elderly MH - North,Nursing Homes,Four Seasons Health Care,1327.2, 07-Aug-2012
721,Revenue,CCHD,Bed Purchasing - Elderly - North,Nursing Homes,Four Seasons Health Care,1363.2, 07-Aug-2012
722,Revenue,CCHD,Southmead Hospital Purchasing,Nursing Homes,Four Seasons Health Care,1363.2, 07-Aug-2012
723,Revenue,CCHD,Bed Purchasing - Elderly - North,Nursing Homes,Four Seasons Health Care,1363.2, 07-Aug-2012
724,Revenue,CCHD,Bed Purchasing - Elderly - North,Nursing Homes,Four Seasons Health Care,4881.6, 07-Aug-2012
725,Revenue,CCHD,Bed Purchasing - Elderly - North,Nursing Homes,Four Seasons Health Care,1301.76, 07-Aug-2012
726,Revenue,CCHD,Bed Purchasing - Elderly - North,Nursing Homes,Four Seasons Health Care,1065.6, 07-Aug-2012
727,Revenue,CCHD,Bed purchasing - Elderly MH - North,Nursing Homes,Four Seasons Health Care,1457.48, 07-Aug-2012
728,Revenue,CCHD,Bed Purchasing - Elderly - North,Nursing Homes,Four Seasons Health Care,1264.2, 07-Aug-2012
729,Revenue,CCHD,Bed Purchasing - Elderly - North,Nursing Homes,Four Seasons Health Care,1096.56, 07-Aug-2012
730,Revenue,CCHD,Southmead Hospital Purchasing,Nursing Homes,Four Seasons Health Care,1356.56, 07-Aug-2012
731,Revenue,CCHD,Frenchay Hospital Purchasing,Nursing Homes,Four Seasons Health Care,1284.4, 07-Aug-2012
732,Revenue,CCHD,Bed purchasing - Elderly MH - North,Nursing Homes,Four Seasons Health Care,1435.64, 07-Aug-2012
733,Revenue,CCHD,Frenchay Hospital Purchasing,Nursing Homes,Four Seasons Health Care,1343.4, 07-Aug-2012
734,Revenue,CCHD,Bed Purchasing - Elderly - North,Nursing Homes,Four Seasons Health Care,1027.36, 07-Aug-2012
735,Revenue,CCHD,South Glos Users in South Glos Homes,Nursing Homes,Four Seasons Health Care,1614.97, 07-Aug-2012
736,Revenue,CCHD,Bed Purchasing - Elderly - North,Residential Homes,Four Seasons Health Care,866.17, 07-Aug-2012
737,Revenue,CCHD,Frenchay Hospital Purchasing,Nursing Homes,Four Seasons Health Care,1522.72, 07-Aug-2012
738,Revenue,CCHD,Bed Purchasing - Elderly - North,Nursing Homes,Four Seasons Health Care,1499.2, 07-Aug-2012
739,Revenue,CCHD,Bed Purchasing - Elderly - North,Nursing Homes,Four Seasons Health Care,1363.2, 07-Aug-2012
740,Revenue,CCHD,Bed Purchasing - Elderly - North,Nursing Homes,Four Seasons Health Care,1431.8, 07-Aug-2012
741,Revenue,CCHD,Southmead Hospital Purchasing,Residential Homes,Four Seasons Health Care,705.16, 07-Aug-2012
742,Revenue,CCHD,Bed purchasing - Elderly MH - North,Nursing Homes,Four Seasons Health Care,1421.44, 07-Aug-2012
743,Revenue,CCHD,Southmead Hospital Purchasing,Nursing Homes,Four Seasons Health Care,1442.32, 07-Aug-2012
744,Revenue,CCHD,Bed Purchasing - Elderly - North,Nursing Homes,Four Seasons Health Care,1535.2, 07-Aug-2012
745,Revenue,CCHD,South Glos Users in South Glos Homes,Nursing Homes,Four Seasons Health Care,838.54, 07-Aug-2012
746,Revenue,CCHD,Southmead Hospital Purchasing,Nursing Homes,Four Seasons Health Care,4358.88, 07-Aug-2012
747,Revenue,CCHD,Frenchay Hospital Purchasing,Nursing Homes,Four Seasons Health Care,1211.32, 07-Aug-2012
748,Revenue,CCHD,Southmead Hospital Purchasing,Nursing Homes,Four Seasons Health Care,1535.2, 07-Aug-2012
749,Revenue,CCHD,Frenchay Hospital Purchasing,Nursing Homes,Four Seasons Health Care,3310.63, 07-Aug-2012
750,Revenue,CCHD,Frenchay Hospital Purchasing,Nursing Homes,Four Seasons Health Care,1363.2, 07-Aug-2012
751,Revenue,CCHD,South Glos Users in South Glos Homes,Nursing Homes,Four Seasons Health Care,854.07, 07-Aug-2012
752,Revenue,CCHD,Southmead Hospital Purchasing,Nursing Homes,Four Seasons Health Care,1814.24, 07-Aug-2012
753,Revenue,CCHD,Southmead Hospital Purchasing,Nursing Homes,Four Seasons Health Care,1347.32, 07-Aug-2012
754,Revenue,CCHD,South Glos Users in South Glos Homes,Nursing Homes,Four Seasons Health Care,738.91, 07-Aug-2012
755,Revenue,CCHD,Bed Purchasing - Elderly - North,Nursing Homes,Four Seasons Health Care,1535.2, 07-Aug-2012
756,Revenue,CCHD,South Glos Users in South Glos Homes,Nursing Homes,Four Seasons Health Care,1506.27, 07-Aug-2012
757,Revenue,CCHD,Bed purchasing - Elderly MH - North,Residential Homes,Four Seasons Health Care,1197.16, 07-Aug-2012
758,Revenue,CCHD,Southmead Hospital Purchasing,Residential Homes,Four Seasons Health Care,1239.2, 07-Aug-2012
759,Revenue,CCHD,Southmead Hospital Purchasing,Nursing Homes,Four Seasons Health Care,940.68, 07-Aug-2012
760,Revenue,CCHD,Bed purchasing - Elderly MH - North,Residential Homes,Four Seasons Health Care,1366.04, 07-Aug-2012
761,Revenue,CCHD,Bed Purchasing - Elderly - North,Nursing Homes,Four Seasons Health Care,1346.6, 07-Aug-2012
762,Revenue,CCHD,Southmead Hospital Purchasing,Nursing Homes,Four Seasons Health Care,3448.8, 07-Aug-2012
763,Revenue,CCHD,South Glos Users in South Glos Homes,Nursing Homes,Four Seasons Health Care,1242.29, 07-Aug-2012
764,Revenue,CCHD,Southmead Hospital Purchasing,Nursing Homes,Four Seasons Health Care,1207.08, 07-Aug-2012
765,Revenue,CCHD,Bed purchasing - Elderly MH - North,Nursing Homes,Four Seasons Health Care,1025.24, 07-Aug-2012
766,Revenue,CCHD,South Glos Users in South Glos Homes,Nursing Homes,Four Seasons Health Care,931.71, 07-Aug-2012
767,Revenue,CCHD,Bed Purchasing - Elderly - North,Residential Homes,Four Seasons Health Care,1263.2, 07-Aug-2012
768,Revenue,CCHD,Frenchay Hospital Purchasing,Nursing Homes,Four Seasons Health Care,1204.44, 07-Aug-2012
769,Revenue,CCHD,Bed Purchasing - Elderly - North,Nursing Homes,Four Seasons Health Care,3483.43, 07-Aug-2012
770,Revenue,CCHD,Bed Purchasing - Elderly - North,Nursing Homes,Four Seasons Health Care,1300.48, 07-Aug-2012
771,Revenue,CCHD,Frenchay Hospital Purchasing,Nursing Homes,Four Seasons Health Care,1363.2, 07-Aug-2012
772,Revenue,CCHD,Frenchay Hospital Purchasing,Nursing Homes,Four Seasons Health Care,1250.24, 07-Aug-2012
773,Revenue,CCHD,Bed Purchasing - Elderly - North,Nursing Homes,Four Seasons Health Care,1273.72, 07-Aug-2012
774,Revenue,CCHD,South Glos Users in South Glos Homes,Nursing Homes,Four Seasons Health Care,1754.73, 07-Aug-2012
775,Revenue,CCHD,Southmead Hospital Purchasing,Nursing Homes,Four Seasons Health Care,1303.36, 07-Aug-2012
776,Revenue,CCHD,South Glos Users in South Glos Homes,Nursing Homes,Four Seasons Health Care,512.44, 07-Aug-2012
777,Revenue,CCHD,Frenchay Hospital Purchasing,Nursing Homes,Four Seasons Health Care,1294.16, 07-Aug-2012
778,Revenue,CCHD,Frenchay Hospital Purchasing,Nursing Homes,Four Seasons Health Care,1363.2, 07-Aug-2012
779,Revenue,CCHD,Bed Purchasing - Elderly - North,Nursing Homes,Four Seasons Health Care,1399.2, 07-Aug-2012
780,Revenue,CCHD,Bed Purchasing - Elderly - North,Nursing Homes,Four Seasons Health Care,1070.48, 07-Aug-2012
781,Revenue,CCHD,Frenchay Hospital Purchasing,Nursing Homes,Four Seasons Health Care,1363.2, 07-Aug-2012
782,Revenue,CCHD,Southmead Hospital Purchasing,Nursing Homes,Four Seasons Health Care,758.2, 07-Aug-2012
783,Revenue,CCHD,Frenchay Hospital Purchasing,Nursing Homes,Four Seasons Health Care,1363.2, 07-Aug-2012
784,Revenue,CCHD,Frenchay Hospital Purchasing,Nursing Homes,Four Seasons Health Care,1379.2, 07-Aug-2012
785,Revenue,CCHD,Bed Purchasing - Elderly - North,Nursing Homes,Four Seasons Health Care,2760, 07-Aug-2012
786,Revenue,CCHD,Bed Purchasing - Elderly - South,Nursing Homes,Four Seasons Health Care,1060.72, 07-Aug-2012
787,Revenue,CCHD,Southmead Hospital Purchasing,Nursing Homes,Four Seasons Health Care,1363.2, 07-Aug-2012
788,Revenue,CCHD,Southmead Hospital Purchasing,Nursing Homes,Four Seasons Health Care,1314.52, 07-Aug-2012
789,Revenue,CCHD,Southmead Hospital Purchasing,Residential Homes,Four Seasons Health Care,1118.04, 07-Aug-2012
790,Revenue,CCHD,Southmead Hospital Purchasing,Nursing Homes,Four Seasons Health Care,1363.2, 07-Aug-2012
791,Revenue,CCHD,Frenchay Hospital Purchasing,Nursing Homes,Four Seasons Health Care,1329.52, 07-Aug-2012
792,Revenue,CCHD,Southmead Hospital Purchasing,Nursing Homes,Four Seasons Health Care,1336.84, 07-Aug-2012
793,Revenue,CCHD,Bed purchasing - Phys Dis - North,Nursing Homes,Four Seasons Health Care,1367.76, 07-Aug-2012
794,Revenue,CCHD,Southmead Hospital Purchasing,Nursing Homes,Four Seasons Health Care,1292.36, 07-Aug-2012
795,Revenue,CCHD,Bed purchasing - Elderly MH - North,Residential Homes,Four Seasons Health Care,1396.2, 07-Aug-2012
796,Revenue,CCHD,Southmead Hospital Purchasing,Residential Homes,Four Seasons Health Care,1163.68, 07-Aug-2012
797,Revenue,CCHD,Frenchay Hospital Purchasing,Nursing Homes,Four Seasons Health Care,1225.56, 07-Aug-2012
798,Revenue,CCHD,Swift Dump Code,Residential Homes,Four Seasons Health Care,778.5, 07-Aug-2012
799,Revenue,CCHD,Southmead Hospital Purchasing,Residential Homes,Four Seasons Health Care,645.44, 07-Aug-2012
800,Revenue,CCHD,Bed Purchasing - Elderly - South,Residential Homes,Four Seasons Health Care,4147.5, 07-Aug-2012
801,Revenue,CCHD,Bed Purchasing - Elderly - South,Residential Homes,Four Seasons Health Care,1155.97, 07-Aug-2012
802,Revenue,CCHD,Bed purchasing - Elderly PWLD - South,Residential Homes,Four Seasons Health Care,1239.2, 07-Aug-2012
803,Revenue,CCHD,Frenchay Hospital Purchasing,Nursing Homes,Four Seasons Health Care,1363.2, 07-Aug-2012
804,Revenue,CCHD,Southmead Hospital Purchasing,Nursing Homes,Four Seasons Health Care,1103.76, 07-Aug-2012
805,Revenue,CCHD,Bed Purchasing - Elderly - South,Nursing Homes,Four Seasons Health Care,1286.52, 07-Aug-2012
806,Revenue,CCHD,Bed Purchasing - Elderly - South,Nursing Homes,Four Seasons Health Care,1352.48, 07-Aug-2012
807,Revenue,CCHD,Southmead Hospital Purchasing,Nursing Homes,Four Seasons Health Care,1138.92, 07-Aug-2012
808,Revenue,CCHD,Bed Purchasing - Elderly - South,Residential Homes,Four Seasons Health Care,865.28, 07-Aug-2012
809,Revenue,CCHD,Southmead Hospital Purchasing,Nursing Homes,Four Seasons Health Care,1304.96, 07-Aug-2012
810,Revenue,CCHD,Southmead Hospital Purchasing,Residential Homes,Four Seasons Health Care,1386, 07-Aug-2012
811,Revenue,CCHD,Frenchay Hospital Purchasing,Nursing Homes,Four Seasons Health Care,847.84, 07-Aug-2012
812,Revenue,CCHD,Frenchay Hospital Purchasing,Nursing Homes,Four Seasons Health Care,769.44, 07-Aug-2012
813,Revenue,CCHD,Bed Purchasing - Elderly - North,Residential Homes,Four Seasons Health Care,985.28, 07-Aug-2012
814,Revenue,CCHD,Bed Purchasing - Elderly - South,Nursing Homes,Four Seasons Health Care,947.2, 07-Aug-2012
815,Revenue,CCHD,Frenchay Hospital Purchasing,Residential Homes,Four Seasons Health Care,1239.2, 07-Aug-2012
816,Revenue,CCHD,Bed purchasing - Elderly S117 - South,Nursing Homes,Four Seasons Health Care,1840, 07-Aug-2012
817,Revenue,CCHD,Frenchay Hospital Purchasing,Residential Homes,Four Seasons Health Care,1102.84, 07-Aug-2012
818,Revenue,CCHD,Bed Purchasing - Elderly MH - South,Nursing Homes,Four Seasons Health Care,1174.8, 07-Aug-2012
819,Revenue,CCHD,Southmead Hospital Purchasing,Residential Homes,Four Seasons Health Care,1323.96, 07-Aug-2012
820,Revenue,CCHD,Southmead Hospital Purchasing,Residential Homes,Four Seasons Health Care,1777.29, 07-Aug-2012
821,Revenue,CCHD,Southmead Hospital Purchasing,Nursing Homes,Four Seasons Health Care,1363.2, 07-Aug-2012
822,Revenue,CCHD,Bed Purchasing - Elderly MH - South,Residential Homes,Four Seasons Health Care,936.64, 07-Aug-2012
823,Revenue,CCHD,Southmead Hospital Purchasing,Nursing Homes,Four Seasons Health Care,1363.2, 07-Aug-2012
824,Revenue,CCHD,Frenchay Hospital Purchasing,Nursing Homes,Four Seasons Health Care,1109.56, 07-Aug-2012
825,Revenue,CCHD,Southmead Hospital Purchasing,Nursing Homes,Four Seasons Health Care,1363.2, 07-Aug-2012
826,Revenue,CCHD,Southmead Hospital Purchasing,Nursing Homes,Four Seasons Health Care,991.8, 07-Aug-2012
827,Revenue,CCHD,South Glos Users in South Glos Homes,Nursing Homes,Four Seasons Health Care,714.31, 07-Aug-2012
828,Revenue,CCHD,Bed Purchasing - Elderly - North,Residential Homes,Four Seasons Health Care,2856, 07-Aug-2012
829,Revenue,CCHD,Frenchay Hospital Purchasing,Residential Homes,Four Seasons Health Care,1232.16, 07-Aug-2012
830,Revenue,CCHD,Bed Purchasing - Elderly - North,Nursing Homes,Four Seasons Health Care,1263.48, 07-Aug-2012
831,Revenue,CCHD,Bed Purchasing - Elderly - South,Residential Homes,Four Seasons Health Care,2080.72, 07-Aug-2012
832,Revenue,CCHD,Bed Purchasing - Elderly - South,Residential Homes,Four Seasons Health Care,874.36, 07-Aug-2012
833,Revenue,CCHD,Bed Purchasing - Elderly - South,Nursing Homes,Four Seasons Health Care,2259.52, 07-Aug-2012
834,Revenue,CCHD,Bed Purchasing - Elderly S117- North,Residential Homes,Four Seasons Health Care,2011.04, 07-Aug-2012
835,Revenue,CCHD,Frenchay Hospital Purchasing,Residential Homes,Four Seasons Health Care,1515.84, 07-Aug-2012
836,Revenue,CCHD,Bed purchasing - Phys Dis - North,Nursing Homes,Four Seasons Health Care,845.76, 07-Aug-2012
837,Revenue,CCHD,Home Care - Elderly - South,Other Small Contracts,Freedom Social Care Recruitment,1187.28, 02-Aug-2012
838,Revenue,CCHD,Home Care - Elderly - North,Other Small Contracts,Freedom Social Care Recruitment,3467.33, 02-Aug-2012
839,Revenue,CCHD,Day Care - South,Private & Voluntary Day Care,Freedom Social Care Recruitment,201.76, 02-Aug-2012
840,Revenue,CCHD,Day Care - North,Private & Voluntary Day Care,Freedom Social Care Recruitment,46.56, 02-Aug-2012
841,Revenue,CCHD,Home care - Elderly MH - North,Other Small Contracts,Freedom Social Care Recruitment,182.36, 02-Aug-2012
842,Revenue,CCHD,Elderly MH Day Care North,Private & Voluntary Day Care,Freedom Social Care Recruitment,174.6, 02-Aug-2012
843,Revenue,CCHD,Freeways,Residential Homes,Freeways Trust Limited,44356.49, 02-Aug-2012
844,Revenue,CCHD,Supported Living - PS,Private & Voluntary Home Care,Freeways Trust Limited,1935.45, 02-Aug-2012
845,Revenue,CCHD,Supported Living - PS,Private & Voluntary Home Care,Freeways Trust Limited,1342.4, 06-Aug-2012
846,Revenue,CCHD,Supported Living - PS,Private & Voluntary Home Care,Freeways Trust Limited,1624.1, 28-Aug-2012
847,Revenue,CCHD,Supported Living - PS,Private & Voluntary Home Care,Freeways Trust Limited,1233.33, 28-Aug-2012
848,Revenue,CCHD,Bed purchasing - Under 65s PWLD - North,Residential Homes,Freeways Trust Ltd,2791.88, 07-Aug-2012
849,Revenue,CCHD,Bed purchasing - S28A Under 65 - South,Residential Homes,Freeways Trust Ltd,2876.4, 07-Aug-2012
850,Revenue,CCHD,Bed purchasing - Under 65s PWLD - North,Residential Homes,Freeways Trust Ltd,2232.52, 07-Aug-2012
851,Revenue,CCHD,Bed purchasing - Under 65s PWLD - North,Residential Homes,Freeways Trust Ltd,2657.64, 07-Aug-2012
852,Revenue,CCHD,Bed purchasing - Under 65s PWLD - North,Residential Homes,Freeways Trust Ltd,2232.52, 07-Aug-2012
853,Revenue,CCHD,Bed purchasing - Under 65s PWLD - North,Residential Homes,Freeways Trust Ltd,2666.28, 07-Aug-2012
854,Revenue,CCHD,Bed Purchasing - Under 65s PWLD - South,Residential Homes,Freeways Trust Ltd,3259.12, 07-Aug-2012
855,Revenue,CCHD,Bed purchasing - Elderly PWLD - North,Residential Homes,Freeways Trust Ltd,2219.24, 07-Aug-2012
856,Revenue,CCHD,Bed Purchasing - Under 65s PWLD - South,Residential Homes,Freeways Trust Ltd,2364.28, 07-Aug-2012
857,Revenue,CCHD,Bed purchasing - Under 65s PWLD - North,Residential Homes,Freeways Trust Ltd,2666.28, 07-Aug-2012
858,Revenue,CCHD,Bed purchasing - Elderly PWLD - North,Residential Homes,Freeways Trust Ltd,2492.24, 07-Aug-2012
859,Revenue,CCHD,Section 117 Placements MH Younger,Residential Homes,Freeways Trust Ltd,3292.4, 07-Aug-2012
860,Revenue,CCHD,Bed Purchasing - Under 65s PWLD - South,Residential Homes,Freeways Trust Ltd,3349.08, 07-Aug-2012
861,Revenue,CCHD,Frenchay Hospital Purchasing,Nursing Homes,Frenchay Park Nursing Home,1212.36, 07-Aug-2012
862,Revenue,CCHD,Bed Purchasing - Elderly - South,Nursing Homes,Frenchay Park Nursing Home,604.6, 07-Aug-2012
863,Revenue,CCHD,Alexandra Way,Maintenance by Contractor,Geoff Lewis Flooring Limited,2004, 01-Aug-2012
864,Revenue,CCHD,Woodleaze,Maintenance by Contractor,Geoff Lewis Flooring Limited,1996, 01-Aug-2012
865,Revenue,CCHD,Bed Purchasing - Under 65s PWLD - South,Residential Homes,Glasallt Fawr,4505.4, 07-Aug-2012
866,Revenue,CCHD,Bed Purchasing - Elderly - North,Nursing Homes,Glebe House Nursing Home,1381.88, 07-Aug-2012
867,Revenue,CCHD,Bed purchasing - Elderly MH - North,Residential Homes,Glebe House Nursing Home,1130.36, 07-Aug-2012
868,Revenue,CCHD,Bed Purchasing - Elderly - South,Residential Homes,Glebe House Nursing Home,1963.52, 07-Aug-2012
869,Revenue,CCHD,Southmead Hospital Purchasing,Nursing Homes,Glebe House Nursing Home,1295.2, 07-Aug-2012
870,Revenue,CCHD,South Glos Users in South Glos Homes,Nursing Homes,Glebe House Nursing Home,4099.54, 07-Aug-2012
871,Revenue,CCHD,South Glos Users in South Glos Homes,Nursing Homes,Glebe House Nursing Home,3509.46, 07-Aug-2012
872,Revenue,CCHD,South Glos Users in South Glos Homes,Nursing Homes,Glebe House Nursing Home,1754.73, 07-Aug-2012
873,Revenue,CCHD,South Glos Users in South Glos Homes,Nursing Homes,Glebe House Nursing Home,776.43, 07-Aug-2012
874,Revenue,CCHD,Bed Purchasing - Elderly - North,Residential Homes,Glebe House Nursing Home,2529.76, 07-Aug-2012
875,Revenue,CCHD,Bed purchasing - Phys Dis - South,Nursing Homes,Glenside Centre For Brain Injury,7072.36, 07-Aug-2012
876,Revenue,CCHD,Bed Purchasing - Under 65s PWLD - South,Residential Homes,Gordena Care Home,2063.36, 07-Aug-2012
877,Revenue,CCHD,Bed purchasing - Elderly PWLD - South,Residential Homes,Gordena Care Home,4691.96, 07-Aug-2012
878,Revenue,CCHD,Bed purchasing - Elderly PWLD - South,Residential Homes,Gordena Care Home,2904.2, 07-Aug-2012
879,Revenue,CCHD,Bed Purchasing - Under 65s PWLD - South,Residential Homes,Gordena Care Home,1894.04, 07-Aug-2012
880,Revenue,CCHD,Bed Purchasing - Under 65s PWLD - South,Residential Homes,Gordena Care Limited,4119.84, 07-Aug-2012
881,Revenue,CCHD,Bed purchasing - S28A Under 65 - South,Residential Homes,Gordena Care Limited,4018.24, 07-Aug-2012
882,Revenue,CCHD,Bed purchasing - Under 65s PWLD - North,Residential Homes,Gordena Care Limited,3762.44, 07-Aug-2012
883,Revenue,CCHD,Home Care - Elderly - South,Other Small Contracts,Greenbanks Homecare (Western) Limited,2589.87, 07-Aug-2012
884,Revenue,CCHD,Home Care - Elderly - North,Other Small Contracts,Greenbanks Homecare (Western) Limited,216.15, 07-Aug-2012
885,Revenue,CCHD,Day Care - South,Private & Voluntary Day Care,Greenbanks Homecare (Western) Limited,212.22, 07-Aug-2012
886,Revenue,CCHD,Day Care - North,Private & Voluntary Day Care,Greenbanks Homecare (Western) Limited,58.95, 07-Aug-2012
887,Revenue,CCHD,Carer`s Grant - South,Carers Breaks & Services,Greenbanks Homecare (Western) Limited,70.74, 07-Aug-2012
888,Revenue,CCHD,Home care - Elderly MH - North,Other Small Contracts,Greenbanks Homecare (Western) Limited,436.23, 07-Aug-2012
889,Revenue,CCHD,Elderly MH Day Care North,Private & Voluntary Day Care,Greenbanks Homecare (Western) Limited,15.72, 07-Aug-2012
890,Revenue,CCHD,Home Care - Elderly - South,Other Small Contracts,Greenbanks Homecare (Western) Limited,2637.03, 07-Aug-2012
891,Revenue,CCHD,Home Care - Elderly - North,Other Small Contracts,Greenbanks Homecare (Western) Limited,172.92, 07-Aug-2012
892,Revenue,CCHD,Day Care - South,Private & Voluntary Day Care,Greenbanks Homecare (Western) Limited,168.99, 07-Aug-2012
893,Revenue,CCHD,Day Care - North,Private & Voluntary Day Care,Greenbanks Homecare (Western) Limited,90.39, 07-Aug-2012
894,Revenue,CCHD,Carer`s Grant - South,Carers Breaks & Services,Greenbanks Homecare (Western) Limited,74.67, 07-Aug-2012
895,Revenue,CCHD,Home care - Elderly MH - North,Other Small Contracts,Greenbanks Homecare (Western) Limited,420.51, 07-Aug-2012
896,Revenue,CCHD,Home Care - Elderly - South,Other Small Contracts,Greenbanks Homecare (Western) Limited,2530.92, 07-Aug-2012
897,Revenue,CCHD,Home Care - Elderly - North,Other Small Contracts,Greenbanks Homecare (Western) Limited,184.71, 07-Aug-2012
898,Revenue,CCHD,Day Care - South,Private & Voluntary Day Care,Greenbanks Homecare (Western) Limited,204.36, 07-Aug-2012
899,Revenue,CCHD,Day Care - North,Private & Voluntary Day Care,Greenbanks Homecare (Western) Limited,62.88, 07-Aug-2012
900,Revenue,CCHD,Carer`s Grant - South,Carers Breaks & Services,Greenbanks Homecare (Western) Limited,110.04, 07-Aug-2012
901,Revenue,CCHD,Home care - Elderly MH - North,Other Small Contracts,Greenbanks Homecare (Western) Limited,432.3, 07-Aug-2012
902,Revenue,CCHD,Elderly MH Day Care North,Private & Voluntary Day Care,Greenbanks Homecare (Western) Limited,23.58, 07-Aug-2012
903,Revenue,CCHD,Home Care - Elderly - South,Other Small Contracts,Greenbanks Homecare (Western) Limited,2648.82, 07-Aug-2012
904,Revenue,CCHD,Home Care - Elderly - North,Other Small Contracts,Greenbanks Homecare (Western) Limited,231.87, 07-Aug-2012
905,Revenue,CCHD,Day Care - South,Private & Voluntary Day Care,Greenbanks Homecare (Western) Limited,220.08, 07-Aug-2012
906,Revenue,CCHD,Carer`s Grant - South,Carers Breaks & Services,Greenbanks Homecare (Western) Limited,110.04, 07-Aug-2012
907,Revenue,CCHD,Home care - Elderly MH - North,Other Small Contracts,Greenbanks Homecare (Western) Limited,365.49, 07-Aug-2012
908,Revenue,CCHD,Elderly MH Day Care North,Private & Voluntary Day Care,Greenbanks Homecare (Western) Limited,19.65, 07-Aug-2012
909,Revenue,CCHD,Bed Purchasing - Elderly - North,Residential Homes,Greensleeves,1305.56, 07-Aug-2012
910,Revenue,CCHD,Bed Purchasing - Elderly - South,Residential Homes,Grove Care,4628.57, 07-Aug-2012
911,Revenue,CCHD,Bed Purchasing - Elderly - South,Residential Homes,Gwendoline House,1480.12, 07-Aug-2012
912,Revenue,CCHD,Bed Purchasing - Elderly - South,Residential Homes,Gwendoline House,1158.88, 07-Aug-2012
913,Revenue,CCHD,Bed Purchasing - Elderly MH - South,Residential Homes,Gwendoline House,1263.36, 07-Aug-2012
914,Revenue,CCHD,Bed Purchasing - Elderly - South,Residential Homes,Gwendoline House,1418.24, 07-Aug-2012
915,Revenue,CCHD,Bed Purchasing - Elderly - South,Residential Homes,Gwendoline House,1123.12, 07-Aug-2012
916,Revenue,CCHD,Bed Purchasing - Elderly - North,Residential Homes,Harefield Hall,3482.14, 07-Aug-2012
917,Revenue,CCHD,Bed Purchasing - Elderly MH - South,Residential Homes,Harefield Hall,1091.48, 07-Aug-2012
918,Revenue,CCHD,Charlton,Equipment Maintenance,Harvey Servicing & Engineering Limited,895, 23-Aug-2012
919,Revenue,CCHD,Charlton,Equipment Maintenance,Harvey Servicing & Engineering Limited,895, 23-Aug-2012
920,Revenue,CCHD,Southmead Hospital Purchasing,Nursing Homes,Haven Lodge,1371.08, 07-Aug-2012
921,Revenue,CCHD,Southmead Hospital Purchasing,Nursing Homes,Hc-One Ltd,1602.76, 07-Aug-2012
922,Revenue,CCHD,Bed purchasing - Elderly MH - North,Nursing Homes,Hc-One Ltd,1467.2, 07-Aug-2012
923,Revenue,CCHD,Bed purchasing - Elderly MH - North,Nursing Homes,Hc-One Ltd,1209.16, 07-Aug-2012
924,Revenue,CCHD,Bed purchasing - Elderly MH - North,Nursing Homes,Hc-One Ltd,1467.2, 07-Aug-2012
925,Revenue,CCHD,Bed purchasing - Elderly MH - North,Nursing Homes,Hc-One Ltd,1156.96, 07-Aug-2012
926,Revenue,CCHD,Bed Purchasing - Elderly S117- North,Nursing Homes,Hc-One Ltd,1929.2, 07-Aug-2012
927,Revenue,CCHD,Frenchay Hospital Purchasing,Residential Homes,Hc-One Ltd,1479.76, 07-Aug-2012
928,Revenue,CCHD,Southmead Hospital Purchasing,Residential Homes,Heather House,1867.2, 07-Aug-2012
929,Revenue,CCHD,Supported Living - PS,Private & Voluntary Home Care,HFT,3722.08, 20-Aug-2012
930,Revenue,CCHD,Southmead Hospital Purchasing,Residential Homes,Highgate Studios,1167.44, 07-Aug-2012
931,Revenue,CCHD,Bed purchasing - Under 65s PWLD - North,Residential Homes,Holmleigh Care Homes Ltd,3962.92, 07-Aug-2012
932,Revenue,CCHD,Bed Purchasing - Under 65s PWLD - South,Residential Homes,Holmleigh Care Homes Ltd,4980.72, 07-Aug-2012
933,Revenue,CCHD,Bed purchasing - Under 65s PWLD - North,Residential Homes,Home Farm Trust Ltd  5-6 Brook Office Pa,2784.12, 07-Aug-2012
934,Revenue,CCHD,Bed Purchasing - Under 65s PWLD - South,Residential Homes,Home Farm Trust Ltd  5-6 Brook Office Pa,3024, 07-Aug-2012
935,Revenue,CCHD,Bed purchasing - Under 65s PWLD - North,Residential Homes,Home Farm Trust Ltd  5-6 Brook Office Pa,3367.08, 07-Aug-2012
936,Revenue,CCHD,Bed Purchasing - Under 65s PWLD - South,Residential Homes,Home Farm Trust Ltd  5-6 Brook Office Pa,4491.6, 07-Aug-2012
937,Revenue,CCHD,Bed purchasing - Under 65s PWLD - North,Residential Homes,Home From Home Care Ltd,9029.56, 07-Aug-2012
938,Revenue,CCHD,Bed purchasing - Phys Dis - North,Residential Homes,Homeleigh,6215.08, 07-Aug-2012
939,Revenue,CCHD,Bed purchasing - Phys Dis - North,Residential Homes,Homeleigh,4531.28, 07-Aug-2012
940,Revenue,CCHD,Bed purchasing - Under 65s PWLD - North,Residential Homes,Homes Caring For Autism Ltd  Churchill H,9662.72, 07-Aug-2012
941,Revenue,CCHD,Bed Purchasing - Under 65s PWLD - South,Residential Homes,Homes Caring For Autism Ltd  Churchill H,12596.88, 07-Aug-2012
942,Revenue,CCHD,Home Care - Elderly - North,Private & Voluntary Home Care,Housing 21,35812.8, 10-Aug-2012
943,Revenue,CCHD,Home Care - Elderly - South,Private & Voluntary Home Care,Housing 21,22092.54, 01-Aug-2012
944,Revenue,CCHD,Home Care - Elderly - South,Private & Voluntary Home Care,Housing 21,22092.54, 31-Aug-2012
945,Revenue,CCHD,Supporting People Programme,Grants to Voluntary Bodies,Housing 21,912.61, 01-Aug-2012
946,Revenue,CCHD,Supporting People Programme,Grants to Voluntary Bodies,Housing 21,912.61, 31-Aug-2012
947,Revenue,CCHD,Supporting People Programme,Grants to Voluntary Bodies,Housing 21,601.61, 01-Aug-2012
948,Revenue,CCHD,Supporting People Programme,Grants to Voluntary Bodies,Housing 21,601.61, 31-Aug-2012
949,Revenue,CCHD,Home Care - Elderly - South,Private & Voluntary Home Care,Housing 21,22605.08, 01-Aug-2012
950,Revenue,CCHD,Home Care - Elderly - South,Private & Voluntary Home Care,Housing 21,22605.08, 31-Aug-2012
951,Revenue,CCHD,Bed Purchasing - Under 65s PWLD - South,Residential Homes,Julia Simone- Supp. Ind.,3529.24, 07-Aug-2012
952,Revenue,CCHD,Bed purchasing - Under 65s PWLD - North,Residential Homes,Julia Simone- Supp. Ind.,3492.6, 07-Aug-2012
953,Revenue,CCHD,Bed purchasing -S28A  Under 65 - North,Residential Homes,Julia Simone- Supp. Ind.,3411.16, 07-Aug-2012
954,Revenue,CCHD,Bed Purchasing - Elderly - North,Residential Homes,Katherine House,1192.12, 07-Aug-2012
955,Revenue,CCHD,Bed Purchasing - Elderly MH - South,Residential Homes,Kenver House Residential Home,1513.84, 07-Aug-2012
956,Revenue,CCHD,Bed purchasing - Elderly S117 - South,Residential Homes,Kenver House Residential Home,1879.04, 07-Aug-2012
957,Revenue,CCHD,Frenchay Hospital Purchasing,Residential Homes,Kenver House Residential Home,2114.96, 07-Aug-2012
958,Revenue,CCHD,Bed Purchasing - Elderly MH - South,Residential Homes,Kenver House Residential Home,1354.08, 07-Aug-2012
959,Revenue,CCHD,Bed Purchasing - Elderly - North,Residential Homes,Kenver House Residential Home,528.74, 07-Aug-2012
960,Revenue,CCHD,Bed Purchasing - Elderly MH - South,Residential Homes,Kenver House Residential Home,1638.16, 07-Aug-2012
961,Revenue,CCHD,Frenchay Hospital Purchasing,Residential Homes,Kenver House Residential Home,947.36, 07-Aug-2012
962,Revenue,CCHD,Bed purchasing - Elderly S117 - South,Residential Homes,Kenver House Residential Home,1879.04, 07-Aug-2012
963,Revenue,CCHD,Bed Purchasing - Elderly MH - South,Residential Homes,Kenver House Residential Home,1273.72, 07-Aug-2012
964,Revenue,CCHD,Bed Purchasing - Elderly S117- North,Residential Homes,Kenver House Residential Home,1880, 07-Aug-2012
965,Revenue,CCHD,Bed Purchasing - Elderly MH - South,Residential Homes,Kenver House Residential Home,1638.16, 07-Aug-2012
966,Revenue,CCHD,Frenchay Hospital Purchasing,Residential Homes,Kenver House Residential Home,1638.16, 07-Aug-2012
967,Revenue,CCHD,Bed Purchasing - Elderly MH - South,Residential Homes,Kenver House Residential Home,1184.36, 07-Aug-2012
968,Revenue,CCHD,Bed Purchasing - Elderly MH - South,Residential Homes,Kenver House Residential Home,1226.32, 07-Aug-2012
969,Revenue,CCHD,Frenchay Hospital Purchasing,Residential Homes,Kenver House Residential Home,1410.6, 07-Aug-2012
970,Revenue,CCHD,Bed Purchasing - Elderly MH - South,Residential Homes,Kenver House Residential Home,1167.88, 07-Aug-2012
971,Revenue,CCHD,Bed Purchasing - Elderly MH - South,Residential Homes,Kenver House Residential Home,1402.24, 07-Aug-2012
972,Revenue,CCHD,Bed Purchasing - Elderly - South,Residential Homes,Kenver House Residential Home,1529.44, 07-Aug-2012
973,Revenue,CCHD,Bed Purchasing - Elderly - South,Residential Homes,Kenver House Residential Home,2114.96, 07-Aug-2012
974,Revenue,CCHD,Frenchay Hospital Purchasing,Residential Homes,Kenver House Residential Home,1561.28, 07-Aug-2012
975,Revenue,CCHD,Frenchay Hospital Purchasing,Residential Homes,Kenver House Residential Home,1522, 07-Aug-2012
976,Revenue,CCHD,Supporting People Programme,Grants to Voluntary Bodies,Keyring Living Support Networks,2847.11, 01-Aug-2012
977,Revenue,CCHD,Supporting People Programme,Grants to Voluntary Bodies,Keyring Living Support Networks,2847.11, 31-Aug-2012
978,Revenue,CCHD,Supporting People Programme,Grants to Voluntary Bodies,Kingswood Young Homeless Project,17125, 01-Aug-2012
979,Revenue,CCHD,Supporting People Programme,Grants to Voluntary Bodies,Kingswood Young Homeless Project,17125, 31-Aug-2012
980,Revenue,CCHD,Bed purchasing - Under 65s PWLD - North,Residential Homes,Kisimul Group,11255.24, 07-Aug-2012
981,Revenue,CCHD,Supporting People Programme,Grants to Voluntary Bodies,Knightstone Housing Association Limited,1433.33, 01-Aug-2012
982,Revenue,CCHD,Supporting People Programme,Grants to Voluntary Bodies,Knightstone Housing Association Limited,1433.33, 31-Aug-2012
983,Revenue,CCHD,Supporting People Programme,Grants to Voluntary Bodies,Knightstone Housing Association Limited,28936.03, 01-Aug-2012
984,Revenue,CCHD,Supporting People Programme,Grants to Voluntary Bodies,Knightstone Housing Association Limited,28936.03, 31-Aug-2012
985,Revenue,CCHD,Supporting People Programme,Grants to Voluntary Bodies,Knightstone Housing Association Limited,2173.77, 01-Aug-2012
986,Revenue,CCHD,Supporting People Programme,Grants to Voluntary Bodies,Knightstone Housing Association Limited,2173.77, 31-Aug-2012
987,Revenue,CCHD,Supporting People Programme,Grants to Voluntary Bodies,Knightstone Housing Association Limited,4847.07, 01-Aug-2012
988,Revenue,CCHD,Supporting People Programme,Grants to Voluntary Bodies,Knightstone Housing Association Limited,4847.07, 31-Aug-2012
989,Revenue,CCHD,Supporting People Programme,Grants to Voluntary Bodies,Knightstone Housing Association Limited,1866, 01-Aug-2012
990,Revenue,CCHD,Supporting People Programme,Grants to Voluntary Bodies,Knightstone Housing Association Limited,1866, 31-Aug-2012
991,Revenue,CCHD,Home Care - Elderly - South,Other Small Contracts,Kumari Care Limited,4125.6, 02-Aug-2012
992,Revenue,CCHD,Home Care - Elderly - North,Other Small Contracts,Kumari Care Limited,827.13, 02-Aug-2012
993,Revenue,CCHD,Day Care - South,Private & Voluntary Day Care,Kumari Care Limited,229.2, 02-Aug-2012
994,Revenue,CCHD,Under 65s -MH  Home Care Purch,Other Small Contracts,Kumari Care Limited,148.98, 02-Aug-2012
995,Revenue,CCHD,Home care - Elderly MH - North,Other Small Contracts,Kumari Care Limited,15.28, 02-Aug-2012
996,Revenue,CCHD,PWLD Home Care - Under 65 - KH,Private & Voluntary Home Care,Kumari Care Limited,305.6, 02-Aug-2012
997,Revenue,CCHD,Home Care - Elderly - South,Other Small Contracts,Kumari Care Limited,4137.06, 02-Aug-2012
998,Revenue,CCHD,Home Care - Elderly - North,Other Small Contracts,Kumari Care Limited,827.1, 02-Aug-2012
999,Revenue,CCHD,Day Care - South,Private & Voluntary Day Care,Kumari Care Limited,229.2, 02-Aug-2012
1000,Revenue,CCHD,Under 65s -MH  Home Care Purch,Other Small Contracts,Kumari Care Limited,148.98, 02-Aug-2012
1001,Revenue,CCHD,Home care - Elderly MH - North,Other Small Contracts,Kumari Care Limited,38.2, 02-Aug-2012
1002,Revenue,CCHD,PWLD Home Care - Under 65 - KH,Private & Voluntary Home Care,Kumari Care Limited,300.44, 02-Aug-2012
1003,Revenue,CCHD,Bed purchasing - Phys Dis - North,Nursing Homes,Leonard Cheshire  National Account Centr,2631.76, 07-Aug-2012
1004,Revenue,CCHD,Bed purchasing - Phys Dis - North,Residential Homes,Leonard Cheshire  National Account Centr,2330.6, 07-Aug-2012
1005,Revenue,CCHD,Bed Purchasing - Under 65s PWLD - South,Residential Homes,Leonard Cheshire  National Account Centr,2932.12, 07-Aug-2012
1006,Revenue,CCHD,Bed Purchasing - Elderly - North,Nursing Homes,Leonard Cheshire  National Account Centr,3436.6, 07-Aug-2012
1007,Revenue,CCHD,Bed purchasing - Phys Dis - North,Nursing Homes,Leonard Cheshire  National Account Centr,2736.6, 07-Aug-2012
1008,Revenue,CCHD,Bed Purchasing - Elderly - North,Residential Homes,Leonard Cheshire  National Account Centr,3122.24, 07-Aug-2012
1009,Revenue,CCHD,Bed purchasing - Under 65s PWLD - North,Residential Homes,Leonard Cheshire  National Account Centr,17451.24, 07-Aug-2012
1010,Revenue,CCHD,Bed purchasing - Under 65s PWLD - North,Residential Homes,Leonard Cheshire  National Account Centr,17446.68, 07-Aug-2012
1011,Revenue,CCHD,Bed Purchasing - Elderly - South,Residential Homes,Leonard Cheshire  National Account Centr,8797.84, 07-Aug-2012
1012,Revenue,CCHD,Bed purchasing - Phys Dis - North,Nursing Homes,Leonard Cheshire  National Account Centr,2812.44, 07-Aug-2012
1013,Revenue,CCHD,Bed purchasing - Phys Dis - North,Nursing Homes,Leonard Cheshire  National Account Centr,3183.12, 07-Aug-2012
1014,Revenue,CCHD,Bed purchasing - Phys Dis - North,Residential Homes,Leonard Cheshire  National Account Centr,2862.72, 07-Aug-2012
1015,Revenue,CCHD,Bed Purchasing - Elderly - North,Nursing Homes,Leonard Cheshire  National Account Centr,3521.32, 07-Aug-2012
1016,Revenue,CCHD,Bed purchasing - Phys Dis - North,Nursing Homes,Leonard Cheshire  National Account Centr,12772.64, 07-Aug-2012
1017,Revenue,CCHD,Bed purchasing - Phys Dis - South,Nursing Homes,Leonard Cheshire  National Account Centr,12113.28, 07-Aug-2012
1018,Revenue,CCHD,Bed purchasing - Phys Dis - North,Nursing Homes,Leonard Cheshire  National Account Centr,10937.68, 07-Aug-2012
1019,Revenue,CCHD,Bed Purchasing - Elderly - South,Nursing Homes,Leonard Cheshire  National Account Centr,2841.24, 07-Aug-2012
1020,Revenue,CCHD,Southmead Hospital Purchasing,Nursing Homes,Leonard Cheshire  National Account Centr,2977.88, 07-Aug-2012
1021,Revenue,CCHD,South Glos Users in all other LA Homes,Nursing Homes,Leonard Cheshire  National Account Centr,598.4, 07-Aug-2012
1022,Revenue,CCHD,Bed purchasing - Phys Dis - North,Nursing Homes,Leonard Cheshire  National Account Centr,3278.52, 07-Aug-2012
1023,Revenue,CCHD,Frenchay Hospital Purchasing,Residential Homes,Leonard Cheshire  National Account Centr,3738.32, 07-Aug-2012
1024,Revenue,CCHD,Bed Purchasing - Elderly - South,Nursing Homes,Leonard Cheshire  National Account Centr,8654.96, 07-Aug-2012
1025,Revenue,CCHD,Bed Purchasing - LD S28A- Over 65- South,Residential Homes,Leonard Cheshire  National Account Centr,2879.08, 07-Aug-2012
1026,Revenue,CCHD,Bed Purchasing - Elderly - South,Nursing Homes,Leonard Elms Care Home,1528.76, 07-Aug-2012
1027,Revenue,CCHD,Supported Living - KD,Private & Voluntary Home Care,Lifeways Community Care (Gloucester) Ltd,11373, 10-Aug-2012
1028,Revenue,CCHD,Supported Living - KD,Private & Voluntary Home Care,Lifeways Community Care (Gloucester) Ltd,8792, 06-Aug-2012
1029,Revenue,CCHD,Bed Purchasing - Elderly - South,Residential Homes,Little Croft,1286.68, 07-Aug-2012
1030,Revenue,CCHD,Bed Purchasing - Elderly - South,Residential Homes,Little Croft,1239.2, 07-Aug-2012
1031,Revenue,CCHD,Bed Purchasing - Elderly - South,Residential Homes,Little Croft,1418.6, 07-Aug-2012
1032,Revenue,CCHD,Bed Purchasing - Elderly - South,Residential Homes,Little Croft,8261.59, 07-Aug-2012
1033,Revenue,CCHD,Bed Purchasing - Elderly - South,Residential Homes,Little Croft,1431.48, 07-Aug-2012
1034,Revenue,CCHD,Bed Purchasing - Elderly - South,Residential Homes,Little Croft,1060.2, 07-Aug-2012
1035,Revenue,CCHD,Bed Purchasing - Elderly - South,Residential Homes,Little Croft,1838.36, 07-Aug-2012
1036,Revenue,CCHD,Bed Purchasing - Elderly - South,Residential Homes,Little Croft,1250.72, 07-Aug-2012
1037,Revenue,CCHD,Bed Purchasing - Elderly MH - South,Residential Homes,Little Croft,1172.88, 07-Aug-2012
1038,Revenue,CCHD,Southmead Hospital Purchasing,Residential Homes,Little Croft,1235.8, 07-Aug-2012
1039,Revenue,CCHD,Bed purchasing - Under 65s PWLD - North,Residential Homes,Littlecroft Residential Homes  Longcroft,6524.44, 07-Aug-2012
1040,Revenue,CCHD,Supported Living - PS,Private & Voluntary Home Care,Lloyds TSB Commercial Finance Limited,5634.8, 21-Aug-2012
1041,Revenue,CCHD,Supported Living - PS,Private & Voluntary Home Care,Lloyds TSB Commercial Finance Limited,3877, 10-Aug-2012
1042,Revenue,CCHD,Supported Living - PS,Private & Voluntary Home Care,Lloyds TSB Commercial Finance Limited,3934.06, 10-Aug-2012
1043,Revenue,CCHD,Supported Living - PS,Private & Voluntary Home Care,Lloyds TSB Commercial Finance Limited,6163.34, 10-Aug-2012
1044,Revenue,CCHD,Supported Living - KD,Private & Voluntary Home Care,Lloyds TSB Commercial Finance Limited,3898.11, 31-Aug-2012
1045,Revenue,CCHD,Supported Living - PS,Private & Voluntary Home Care,Lloyds TSB Commercial Finance Limited,4119.98, 10-Aug-2012
1046,Revenue,CCHD,Supported Living - PS,Private & Voluntary Home Care,Lloyds TSB Commercial Finance Limited,3689.14, 10-Aug-2012
1047,Revenue,CCHD,Supported Living - PS,Private & Voluntary Home Care,Lloyds TSB Commercial Finance Limited,3716.26, 10-Aug-2012
1048,Revenue,CCHD,Supported Living - PS,Private & Voluntary Home Care,Lloyds TSB Commercial Finance Limited,3668.74, 10-Aug-2012
1049,Revenue,CCHD,Supported Living - PS,Private & Voluntary Home Care,Lloyds TSB Commercial Finance Limited,3547.78, 10-Aug-2012
1050,Revenue,CCHD,Supported Living - PS,Private & Voluntary Home Care,Lloyds TSB Commercial Finance Limited,580.9, 20-Aug-2012
1051,Revenue,CCHD,Home Care - Elderly - South,Other Small Contracts,Lloyds TSB Commercial Finance Limited,433.44, 21-Aug-2012
1052,Revenue,CCHD,Home Care - Elderly - North,Other Small Contracts,Lloyds TSB Commercial Finance Limited,5089.05, 21-Aug-2012
1053,Revenue,CCHD,Day Care - South,Private & Voluntary Day Care,Lloyds TSB Commercial Finance Limited,208.98, 21-Aug-2012
1054,Revenue,CCHD,Day Care - North,Private & Voluntary Day Care,Lloyds TSB Commercial Finance Limited,503.1, 21-Aug-2012
1055,Revenue,CCHD,Home care - Elderly MH - North,Other Small Contracts,Lloyds TSB Commercial Finance Limited,506.97, 21-Aug-2012
1056,Revenue,CCHD,Home Care - Elderly - South,Other Small Contracts,Lloyds TSB Commercial Finance Limited,236.07, 14-Aug-2012
1057,Revenue,CCHD,Home Care - Elderly - North,Other Small Contracts,Lloyds TSB Commercial Finance Limited,5170.32, 14-Aug-2012
1058,Revenue,CCHD,Day Care - South,Private & Voluntary Day Care,Lloyds TSB Commercial Finance Limited,201.24, 14-Aug-2012
1059,Revenue,CCHD,Day Care - North,Private & Voluntary Day Care,Lloyds TSB Commercial Finance Limited,503.1, 14-Aug-2012
1060,Revenue,CCHD,Home care - Elderly MH - North,Other Small Contracts,Lloyds TSB Commercial Finance Limited,510.84, 14-Aug-2012
1061,Revenue,CCHD,Home Care - Elderly - South,Other Small Contracts,Lloyds TSB Commercial Finance Limited,77.4, 21-Aug-2012
1062,Revenue,CCHD,Home Care - Elderly - North,Other Small Contracts,Lloyds TSB Commercial Finance Limited,5158.71, 21-Aug-2012
1063,Revenue,CCHD,Day Care - South,Private & Voluntary Day Care,Lloyds TSB Commercial Finance Limited,166.41, 21-Aug-2012
1064,Revenue,CCHD,Day Care - North,Private & Voluntary Day Care,Lloyds TSB Commercial Finance Limited,491.49, 21-Aug-2012
1065,Revenue,CCHD,Home care - Elderly MH - North,Other Small Contracts,Lloyds TSB Commercial Finance Limited,522.45, 21-Aug-2012
1066,Revenue,CCHD,Home Care - Elderly - South,Other Small Contracts,Lloyds TSB Commercial Finance Limited,181.89, 21-Aug-2012
1067,Revenue,CCHD,Home Care - Elderly - North,Other Small Contracts,Lloyds TSB Commercial Finance Limited,4899.42, 21-Aug-2012
1068,Revenue,CCHD,Day Care - South,Private & Voluntary Day Care,Lloyds TSB Commercial Finance Limited,197.37, 21-Aug-2012
1069,Revenue,CCHD,Day Care - North,Private & Voluntary Day Care,Lloyds TSB Commercial Finance Limited,495.36, 21-Aug-2012
1070,Revenue,CCHD,Home care - Elderly MH - North,Other Small Contracts,Lloyds TSB Commercial Finance Limited,313.47, 21-Aug-2012
1071,Revenue,CCHD,Bed Purchasing - Under 65s PWLD - South,Residential Homes,Longton Court,9508.88, 07-Aug-2012
1072,Revenue,CCHD,Social Lettings Agency,Other Supplies & Services,Individual,565, 01-Aug-2012
1073,Revenue,CCHD,Social Lettings Agency,Other Supplies & Services,Individual,565, 31-Aug-2012
1074,Revenue,CCHD,Bed Purchasing - Under 65s PWLD - South,Residential Homes,Lufton Manor College,10609.84, 07-Aug-2012
1075,Revenue,CCHD,Tenancy Start Up Scheme,Other Supplies & Services,Mackendrick Norcott Ltd Clients Account Lettings,892.5, 08-Aug-2012
1076,Revenue,CCHD,Southmead Hospital Purchasing,Nursing Homes,Majestic 3 Limited,1001.96, 07-Aug-2012
1077,Revenue,CCHD,Frenchay Hospital Purchasing,Residential Homes,Manor Cottage,696.6, 07-Aug-2012
1078,Revenue,CCHD,Bed Purchasing - Elderly - South,Residential Homes,Manor Cottage,3402.51, 07-Aug-2012
1079,Revenue,CCHD,Bed Purchasing - Elderly - South,Residential Homes,Manor Cottage,1190.88, 07-Aug-2012
1080,Revenue,CCHD,Bed Purchasing - Elderly - South,Residential Homes,Manor Cottage,1424.84, 07-Aug-2012
1081,Revenue,CCHD,Bed Purchasing - Elderly - South,Residential Homes,Manor Cottage,1298.84, 07-Aug-2012
1082,Revenue,CCHD,Bed Purchasing - Elderly - North,Residential Homes,Manton Hall Residential Home,1484.32, 07-Aug-2012
1083,Revenue,CCHD,Supporting People Programme,Grants to Voluntary Bodies,Maples Community Housing Limited,2652.15, 01-Aug-2012
1084,Revenue,CCHD,Supporting People Programme,Grants to Voluntary Bodies,Maples Community Housing Limited,2652.15, 31-Aug-2012
1085,Revenue,CCHD,Social Lettings Agency,Other Supplies & Services,Individual,655.41, 23-Aug-2012
1086,Revenue,CCHD,Bed Purchasing - Under 65s PWLD - South,Residential Homes,Marsden Healthcare Limited,894.48, 03-Aug-2012
1087,Revenue,CCHD,Bed Purchasing - Under 65s PWLD - South,Residential Homes,Marsden Healthcare Limited,894.48, 31-Aug-2012
1088,Revenue,CCHD,Bed purchasing - Elderly PWLD - South,Residential Homes,Marsden Healthcare Limited,3177.12, 03-Aug-2012
1089,Revenue,CCHD,Bed purchasing - Elderly PWLD - South,Residential Homes,Marsden Healthcare Limited,3177.12, 31-Aug-2012
1090,Revenue,CCHD,Bed purchasing - Elderly PWLD - South,Residential Homes,Marsden Healthcare Limited,1496.2, 03-Aug-2012
1091,Revenue,CCHD,Bed purchasing - Elderly PWLD - South,Residential Homes,Marsden Healthcare Limited,1496.2, 31-Aug-2012
1092,Revenue,CCHD,Bed Purchasing - Elderly MH - South,Nursing Homes,Meadow Care Home,1467.28, 07-Aug-2012
1093,Revenue,CCHD,Bed Purchasing - Elderly - South,Nursing Homes,Meadow Care Home,1729.2, 07-Aug-2012
1094,Revenue,CCHD,Bed Purchasing - Elderly - South,Nursing Homes,Meadow Care Home,1467.2, 07-Aug-2012
1095,Revenue,CCHD,Home Care - Elderly - South,Private & Voluntary Home Care,Mears Care,47442.58, 28-Aug-2012
1096,Revenue,CCHD,Home Care - Elderly - South,Other Small Contracts,Mears Care,431.88, 21-Aug-2012
1097,Revenue,CCHD,Home Care - Elderly - North,Other Small Contracts,Mears Care,7104.06, 21-Aug-2012
1098,Revenue,CCHD,Day Care - South,Private & Voluntary Day Care,Mears Care,91.5, 21-Aug-2012
1099,Revenue,CCHD,Day Care - North,Private & Voluntary Day Care,Mears Care,311.1, 21-Aug-2012
1100,Revenue,CCHD,Under 65s -MH  Home Care Purch,Other Small Contracts,Mears Care,109.8, 21-Aug-2012
1101,Revenue,CCHD,Home care - Elderly MH - North,Other Small Contracts,Mears Care,684.42, 21-Aug-2012
1102,Revenue,CCHD,Elderly MH Day Care North,Private & Voluntary Day Care,Mears Care,29.28, 21-Aug-2012
1103,Revenue,CCHD,Home Care - Elderly LD - KH,Private & Voluntary Home Care,Mears Care,54.9, 21-Aug-2012
1104,Revenue,CCHD,Home Care - Elderly - South,Other Small Contracts,Mears Care,453.84, 09-Aug-2012
1105,Revenue,CCHD,Home Care - Elderly - North,Other Small Contracts,Mears Care,6844.2, 09-Aug-2012
1106,Revenue,CCHD,Day Care - South,Private & Voluntary Day Care,Mears Care,87.84, 09-Aug-2012
1107,Revenue,CCHD,Day Care - North,Private & Voluntary Day Care,Mears Care,263.52, 09-Aug-2012
1108,Revenue,CCHD,Under 65s -MH  Home Care Purch,Other Small Contracts,Mears Care,109.8, 09-Aug-2012
1109,Revenue,CCHD,Home care - Elderly MH - North,Other Small Contracts,Mears Care,666.12, 09-Aug-2012
1110,Revenue,CCHD,Elderly MH Day Care North,Private & Voluntary Day Care,Mears Care,29.28, 09-Aug-2012
1111,Revenue,CCHD,Home Care - Elderly LD - KH,Private & Voluntary Home Care,Mears Care,7.32, 09-Aug-2012
1112,Revenue,CCHD,Home Care - Elderly - South,Other Small Contracts,Mears Care,428.22, 09-Aug-2012
1113,Revenue,CCHD,Home Care - Elderly - North,Other Small Contracts,Mears Care,7067.46, 09-Aug-2012
1114,Revenue,CCHD,Day Care - South,Private & Voluntary Day Care,Mears Care,87.84, 09-Aug-2012
1115,Revenue,CCHD,Day Care - North,Private & Voluntary Day Care,Mears Care,318.42, 09-Aug-2012
1116,Revenue,CCHD,Under 65s -MH  Home Care Purch,Other Small Contracts,Mears Care,109.8, 09-Aug-2012
1117,Revenue,CCHD,Home care - Elderly MH - North,Other Small Contracts,Mears Care,666.12, 09-Aug-2012
1118,Revenue,CCHD,Elderly MH Day Care North,Private & Voluntary Day Care,Mears Care,29.28, 09-Aug-2012
1119,Revenue,CCHD,Home Care - Elderly - South,Other Small Contracts,Mears Care,446.52, 09-Aug-2012
1120,Revenue,CCHD,Home Care - Elderly - North,Other Small Contracts,Mears Care,7210.2, 09-Aug-2012
1121,Revenue,CCHD,Day Care - South,Private & Voluntary Day Care,Mears Care,87.84, 09-Aug-2012
1122,Revenue,CCHD,Day Care - North,Private & Voluntary Day Care,Mears Care,278.16, 09-Aug-2012
1123,Revenue,CCHD,Under 65s -MH  Home Care Purch,Other Small Contracts,Mears Care,95.16, 09-Aug-2012
1124,Revenue,CCHD,Home care - Elderly MH - North,Other Small Contracts,Mears Care,673.44, 09-Aug-2012
1125,Revenue,CCHD,Elderly MH Day Care North,Private & Voluntary Day Care,Mears Care,29.28, 09-Aug-2012
1126,Revenue,CCHD,Home Care - Elderly LD - KH,Private & Voluntary Home Care,Mears Care,47.58, 09-Aug-2012
1127,Revenue,CCHD,Home Care - Elderly - South,Other Small Contracts,Mears Care,387.96, 21-Aug-2012
1128,Revenue,CCHD,Home Care - Elderly - North,Other Small Contracts,Mears Care,7180.92, 21-Aug-2012
1129,Revenue,CCHD,Day Care - South,Private & Voluntary Day Care,Mears Care,87.84, 21-Aug-2012
1130,Revenue,CCHD,Day Care - North,Private & Voluntary Day Care,Mears Care,307.44, 21-Aug-2012
1131,Revenue,CCHD,Under 65s -MH  Home Care Purch,Other Small Contracts,Mears Care,109.8, 21-Aug-2012
1132,Revenue,CCHD,Home care - Elderly MH - North,Other Small Contracts,Mears Care,677.1, 21-Aug-2012
1133,Revenue,CCHD,Elderly MH Day Care North,Private & Voluntary Day Care,Mears Care,29.28, 21-Aug-2012
1134,Revenue,CCHD,Home Care - Elderly LD - KH,Private & Voluntary Home Care,Mears Care,51.24, 21-Aug-2012
1135,Revenue,CCHD,Home Care - Elderly - South,Other Small Contracts,Mears Care,428.22, 29-Aug-2012
1136,Revenue,CCHD,Home Care - Elderly - North,Other Small Contracts,Mears Care,7089.42, 29-Aug-2012
1137,Revenue,CCHD,Day Care - South,Private & Voluntary Day Care,Mears Care,87.84, 29-Aug-2012
1138,Revenue,CCHD,Day Care - North,Private & Voluntary Day Care,Mears Care,322.08, 29-Aug-2012
1139,Revenue,CCHD,Under 65s -MH  Home Care Purch,Other Small Contracts,Mears Care,109.8, 29-Aug-2012
1140,Revenue,CCHD,Home care - Elderly MH - North,Other Small Contracts,Mears Care,666.12, 29-Aug-2012
1141,Revenue,CCHD,Elderly MH Day Care North,Private & Voluntary Day Care,Mears Care,29.28, 29-Aug-2012
1142,Revenue,CCHD,Home Care - Elderly LD - KH,Private & Voluntary Home Care,Mears Care,51.24, 29-Aug-2012
1143,Revenue,CCHD,Home Care - Elderly - South,Other Small Contracts,Mears Care,395.28, 29-Aug-2012
1144,Revenue,CCHD,Home Care - Elderly - North,Other Small Contracts,Mears Care,7206.54, 29-Aug-2012
1145,Revenue,CCHD,Day Care - South,Private & Voluntary Day Care,Mears Care,87.84, 29-Aug-2012
1146,Revenue,CCHD,Day Care - North,Private & Voluntary Day Care,Mears Care,285.48, 29-Aug-2012
1147,Revenue,CCHD,Under 65s -MH  Home Care Purch,Other Small Contracts,Mears Care,109.8, 29-Aug-2012
1148,Revenue,CCHD,Home care - Elderly MH - North,Other Small Contracts,Mears Care,658.8, 29-Aug-2012
1149,Revenue,CCHD,Elderly MH Day Care North,Private & Voluntary Day Care,Mears Care,29.28, 29-Aug-2012
1150,Revenue,CCHD,Home Care - Elderly LD - KH,Private & Voluntary Home Care,Mears Care,51.24, 29-Aug-2012
1151,Revenue,CCHD,Home Care - Elderly - North,Other Small Contracts,Medacs Home Care,764.77, 02-Aug-2012
1152,Revenue,CCHD,Home care - Elderly MH - North,Other Small Contracts,Medacs Home Care,121.1, 02-Aug-2012
1153,Revenue,CCHD,Home Care - Elderly - North,Other Small Contracts,Medacs Home Care,1217.5, 02-Aug-2012
1154,Revenue,CCHD,Home care - Elderly MH - North,Other Small Contracts,Medacs Home Care,86.5, 02-Aug-2012
1155,Revenue,CCHD,Home Care - Elderly - North,Other Small Contracts,Medacs Home Care,788.99, 02-Aug-2012
1156,Revenue,CCHD,Home care - Elderly MH - North,Other Small Contracts,Medacs Home Care,131.47, 02-Aug-2012
1157,Revenue,CCHD,Home Care - Elderly - North,Other Small Contracts,Medacs Home Care,1162.27, 02-Aug-2012
1158,Revenue,CCHD,Home care - Elderly MH - North,Other Small Contracts,Medacs Home Care,117.64, 02-Aug-2012
1159,Revenue,CCHD,Home Care - Elderly - North,Other Small Contracts,Medacs Home Care,984.95, 02-Aug-2012
1160,Revenue,CCHD,Home care - Elderly MH - North,Other Small Contracts,Medacs Home Care,131.47, 02-Aug-2012
1161,Revenue,CCHD,Home Care - Elderly - North,Other Small Contracts,Medacs Home Care,915.06, 02-Aug-2012
1162,Revenue,CCHD,Home care - Elderly MH - North,Other Small Contracts,Medacs Home Care,117.65, 02-Aug-2012
1163,Revenue,CCHD,NRS Contract,Daily Living Equipment,Medequip Assistive Technology Ltd,590, 17-Aug-2012
1164,Revenue,CCHD,NRS Contract,Daily Living Equipment,Medequip Assistive Technology Ltd,648, 17-Aug-2012
1165,Revenue,CCHD,NRS Contract,Daily Living Equipment,Medequip Assistive Technology Ltd,900, 17-Aug-2012
1166,Revenue,CCHD,NRS Contract,Daily Living Equipment,Medequip Assistive Technology Ltd,840, 17-Aug-2012
1167,Revenue,CCHD,NRS Contract,Daily Living Equipment,Medequip Assistive Technology Ltd,662, 17-Aug-2012
1168,Revenue,CCHD,NRS Contract,Daily Living Equipment,Medequip Assistive Technology Ltd,752, 17-Aug-2012
1169,Revenue,CCHD,NRS Contract,Daily Living Equipment,Medequip Assistive Technology Ltd,736, 17-Aug-2012
1170,Revenue,CCHD,NRS Contract,Daily Living Equipment,Medequip Assistive Technology Ltd,732, 17-Aug-2012
1171,Revenue,CCHD,NRS Contract,Daily Living Equipment,Medequip Assistive Technology Ltd,6000, 20-Aug-2012
1172,Revenue,CCHD,NRS Contract,Daily Living Equipment,Medequip Assistive Technology Ltd,6000, 20-Aug-2012
1173,Revenue,CCHD,NRS Contract,Daily Living Equipment,Medequip Assistive Technology Ltd,23778.55, 17-Aug-2012
1174,Revenue,CCHD,NRS Contract,Daily Living Equipment,Medequip Assistive Technology Ltd,72905.12, 17-Aug-2012
1175,Revenue,CCHD,Home Care - Elderly - South,Other Small Contracts,Medico Nursing & Homecare Ltd,2042.48, 14-Aug-2012
1176,Revenue,CCHD,Home Care - Elderly - North,Other Small Contracts,Medico Nursing & Homecare Ltd,9815.8, 14-Aug-2012
1177,Revenue,CCHD,Day Care - North,Private & Voluntary Day Care,Medico Nursing & Homecare Ltd,573.92, 14-Aug-2012
1178,Revenue,CCHD,Home care - Elderly MH - North,Other Small Contracts,Medico Nursing & Homecare Ltd,679.42, 14-Aug-2012
1179,Revenue,CCHD,Elderly MH Day Care North,Private & Voluntary Day Care,Medico Nursing & Homecare Ltd,118.16, 14-Aug-2012
1180,Revenue,CCHD,Home Care - LD Under 65 - South,Private & Voluntary Home Care,Medico Nursing & Homecare Ltd,265.86, 14-Aug-2012
1181,Revenue,CCHD,PWLD Home Care - Under 65 - KH,Private & Voluntary Home Care,Medico Nursing & Homecare Ltd,573.92, 14-Aug-2012
1182,Revenue,CCHD,Home Care - Elderly - South,Other Small Contracts,Medico Nursing & Homecare Ltd,2042.48, 14-Aug-2012
1183,Revenue,CCHD,Home Care - Elderly - North,Other Small Contracts,Medico Nursing & Homecare Ltd,10013.77, 14-Aug-2012
1184,Revenue,CCHD,Day Care - South,Private & Voluntary Day Care,Medico Nursing & Homecare Ltd,50.64, 14-Aug-2012
1185,Revenue,CCHD,Day Care - North,Private & Voluntary Day Care,Medico Nursing & Homecare Ltd,568.58, 14-Aug-2012
1186,Revenue,CCHD,Home care - Elderly MH - North,Other Small Contracts,Medico Nursing & Homecare Ltd,700.52, 14-Aug-2012
1187,Revenue,CCHD,Elderly MH Day Care North,Private & Voluntary Day Care,Medico Nursing & Homecare Ltd,118.16, 14-Aug-2012
1188,Revenue,CCHD,Home Care - LD Under 65 - South,Private & Voluntary Home Care,Medico Nursing & Homecare Ltd,270.08, 14-Aug-2012
1189,Revenue,CCHD,PWLD Home Care - Under 65 - KH,Private & Voluntary Home Care,Medico Nursing & Homecare Ltd,713.17, 14-Aug-2012
1190,Revenue,CCHD,Home Care - Elderly - South,Other Small Contracts,Medico Nursing & Homecare Ltd,1903.22, 14-Aug-2012
1191,Revenue,CCHD,Home Care - Elderly - North,Other Small Contracts,Medico Nursing & Homecare Ltd,10545.48, 14-Aug-2012
1192,Revenue,CCHD,Day Care - South,Private & Voluntary Day Care,Medico Nursing & Homecare Ltd,46.42, 14-Aug-2012
1193,Revenue,CCHD,Day Care - North,Private & Voluntary Day Care,Medico Nursing & Homecare Ltd,700.52, 14-Aug-2012
1194,Revenue,CCHD,Home care - Elderly MH - North,Other Small Contracts,Medico Nursing & Homecare Ltd,675.2, 14-Aug-2012
1195,Revenue,CCHD,Elderly MH Day Care North,Private & Voluntary Day Care,Medico Nursing & Homecare Ltd,118.16, 14-Aug-2012
1196,Revenue,CCHD,Home Care - LD Under 65 - South,Private & Voluntary Home Care,Medico Nursing & Homecare Ltd,270.08, 14-Aug-2012
1197,Revenue,CCHD,PWLD Home Care - Under 65 - KH,Private & Voluntary Home Care,Medico Nursing & Homecare Ltd,708.95, 14-Aug-2012
1198,Revenue,CCHD,Home Care - Elderly - South,Other Small Contracts,Medico Nursing & Homecare Ltd,2073.23, 14-Aug-2012
1199,Revenue,CCHD,Home Care - Elderly - North,Other Small Contracts,Medico Nursing & Homecare Ltd,9999.76, 14-Aug-2012
1200,Revenue,CCHD,Day Care - North,Private & Voluntary Day Care,Medico Nursing & Homecare Ltd,619.15, 14-Aug-2012
1201,Revenue,CCHD,Home care - Elderly MH - North,Other Small Contracts,Medico Nursing & Homecare Ltd,700.52, 14-Aug-2012
1202,Revenue,CCHD,Elderly MH Day Care North,Private & Voluntary Day Care,Medico Nursing & Homecare Ltd,118.16, 14-Aug-2012
1203,Revenue,CCHD,Home Care - LD Under 65 - South,Private & Voluntary Home Care,Medico Nursing & Homecare Ltd,270.08, 14-Aug-2012
1204,Revenue,CCHD,PWLD Home Care - Under 65 - KH,Private & Voluntary Home Care,Medico Nursing & Homecare Ltd,687.86, 14-Aug-2012
1205,Revenue,CCHD,Home Care - Elderly - South,Other Small Contracts,Medico Nursing & Homecare Ltd,2102.74, 14-Aug-2012
1206,Revenue,CCHD,Home Care - Elderly - North,Other Small Contracts,Medico Nursing & Homecare Ltd,10176.62, 14-Aug-2012
1207,Revenue,CCHD,Day Care - North,Private & Voluntary Day Care,Medico Nursing & Homecare Ltd,729.43, 14-Aug-2012
1208,Revenue,CCHD,Home care - Elderly MH - North,Other Small Contracts,Medico Nursing & Homecare Ltd,687.86, 14-Aug-2012
1209,Revenue,CCHD,Elderly MH Day Care North,Private & Voluntary Day Care,Medico Nursing & Homecare Ltd,118.16, 14-Aug-2012
1210,Revenue,CCHD,Home Care - LD Under 65 - South,Private & Voluntary Home Care,Medico Nursing & Homecare Ltd,265.86, 14-Aug-2012
1211,Revenue,CCHD,PWLD Home Care - Under 65 - KH,Private & Voluntary Home Care,Medico Nursing & Homecare Ltd,704.74, 14-Aug-2012
1212,Revenue,CCHD,Home Care - Elderly - South,Other Small Contracts,Medico Nursing & Homecare Ltd,2098.89, 14-Aug-2012
1213,Revenue,CCHD,Home Care - Elderly - North,Other Small Contracts,Medico Nursing & Homecare Ltd,9907.89, 14-Aug-2012
1214,Revenue,CCHD,Day Care - North,Private & Voluntary Day Care,Medico Nursing & Homecare Ltd,631.88, 14-Aug-2012
1215,Revenue,CCHD,Home care - Elderly MH - North,Other Small Contracts,Medico Nursing & Homecare Ltd,713.18, 14-Aug-2012
1216,Revenue,CCHD,Elderly MH Day Care North,Private & Voluntary Day Care,Medico Nursing & Homecare Ltd,122.38, 14-Aug-2012
1217,Revenue,CCHD,Home Care - LD Under 65 - South,Private & Voluntary Home Care,Medico Nursing & Homecare Ltd,270.08, 14-Aug-2012
1218,Revenue,CCHD,PWLD Home Care - Under 65 - KH,Private & Voluntary Home Care,Medico Nursing & Homecare Ltd,586.58, 14-Aug-2012
1219,Revenue,CCHD,Home Care - Elderly - South,Other Small Contracts,Medico Nursing & Homecare Ltd,2110, 14-Aug-2012
1220,Revenue,CCHD,Home Care - Elderly - North,Other Small Contracts,Medico Nursing & Homecare Ltd,10381.53, 14-Aug-2012
1221,Revenue,CCHD,Day Care - South,Private & Voluntary Day Care,Medico Nursing & Homecare Ltd,50.64, 14-Aug-2012
1222,Revenue,CCHD,Day Care - North,Private & Voluntary Day Care,Medico Nursing & Homecare Ltd,687.3, 14-Aug-2012
1223,Revenue,CCHD,Home care - Elderly MH - North,Other Small Contracts,Medico Nursing & Homecare Ltd,696.3, 14-Aug-2012
1224,Revenue,CCHD,Elderly MH Day Care North,Private & Voluntary Day Care,Medico Nursing & Homecare Ltd,118.16, 14-Aug-2012
1225,Revenue,CCHD,Home Care - LD Under 65 - South,Private & Voluntary Home Care,Medico Nursing & Homecare Ltd,265.86, 14-Aug-2012
1226,Revenue,CCHD,PWLD Home Care - Under 65 - KH,Private & Voluntary Home Care,Medico Nursing & Homecare Ltd,675.2, 14-Aug-2012
1227,Revenue,CCHD,Bed Purchasing - Under 65s PWLD - South,Residential Homes,Mencap,2198.88, 07-Aug-2012
1228,Revenue,CCHD,Supported Living (S28a) South,Private & Voluntary Home Care,Mencap - PS North,3689, 17-Aug-2012
1229,Revenue,CCHD,Supported Living (S28a) South,Private & Voluntary Home Care,Mencap - PS North,3689, 17-Aug-2012
1230,Revenue,CCHD,Supported Living (S28a) South,Private & Voluntary Home Care,Mencap - PS North,3689, 17-Aug-2012
1231,Revenue,CCHD,Supported Living (S28a) South,Private & Voluntary Home Care,Mencap - PS North,3689, 17-Aug-2012
1232,Revenue,CCHD,Supported Living (S28a) South,Private & Voluntary Home Care,Mencap - PS North,3689, 17-Aug-2012
1233,Revenue,CCHD,Community Support ACM - North,Preventative Assistance,Mencap Employment,1309, 13-Aug-2012
1234,Revenue,CCHD,Kingswood Centre - Maples Suite,Operational Staff Pay,Mencap Employment,2618, 29-Aug-2012
1235,Revenue,CCHD,Supporting People Programme,Grants to Voluntary Bodies,Merlin Housing Society,1016.8, 01-Aug-2012
1236,Revenue,CCHD,Supporting People Programme,Grants to Voluntary Bodies,Merlin Housing Society,1016.8, 31-Aug-2012
1237,Revenue,CCHD,Supporting People Programme,Grants to Voluntary Bodies,Merlin Housing Society,15252, 01-Aug-2012
1238,Revenue,CCHD,Supporting People Programme,Grants to Voluntary Bodies,Merlin Housing Society,15252, 31-Aug-2012
1239,Revenue,CCHD,Supporting People Programme,Grants to Voluntary Bodies,Merlin Housing Society,2399.99, 01-Aug-2012
1240,Revenue,CCHD,Supporting People Programme,Grants to Voluntary Bodies,Merlin Housing Society,2399.99, 31-Aug-2012
1241,Revenue,CCHD,Supporting People Programme,Grants to Voluntary Bodies,Merlin Housing Society,50840, 01-Aug-2012
1242,Revenue,CCHD,Supporting People Programme,Grants to Voluntary Bodies,Merlin Housing Society,50840, 31-Aug-2012
1243,Revenue,CCHD,Frenchay Hospital Purchasing,Residential Homes,Milburn Finance,1035.6, 07-Aug-2012
1244,Revenue,CCHD,Home Care - Elderly - South,Other Small Contracts,Milestones Outreach Dementia Services,1237.68, 15-Aug-2012
1245,Revenue,CCHD,Home Care - Elderly - North,Other Small Contracts,Milestones Outreach Dementia Services,114.6, 15-Aug-2012
1246,Revenue,CCHD,Day Care - South,Private & Voluntary Day Care,Milestones Outreach Dementia Services,126.06, 15-Aug-2012
1247,Revenue,CCHD,Day Care - North,Private & Voluntary Day Care,Milestones Outreach Dementia Services,164.16, 15-Aug-2012
1248,Revenue,CCHD,Home care - Elderly MH - North,Other Small Contracts,Milestones Outreach Dementia Services,573, 15-Aug-2012
1249,Revenue,CCHD,Elderly MH Day Care North,Private & Voluntary Day Care,Milestones Outreach Dementia Services,576.82, 15-Aug-2012
1250,Revenue,CCHD,Home Care - Elderly - South,Other Small Contracts,Milestones Outreach Dementia Services,1016.12, 15-Aug-2012
1251,Revenue,CCHD,Home Care - Elderly - North,Other Small Contracts,Milestones Outreach Dementia Services,145.16, 15-Aug-2012
1252,Revenue,CCHD,Day Care - South,Private & Voluntary Day Care,Milestones Outreach Dementia Services,64.94, 15-Aug-2012
1253,Revenue,CCHD,Day Care - North,Private & Voluntary Day Care,Milestones Outreach Dementia Services,159.6, 15-Aug-2012
1254,Revenue,CCHD,Home care - Elderly MH - North,Other Small Contracts,Milestones Outreach Dementia Services,592.1, 15-Aug-2012
1255,Revenue,CCHD,Elderly MH Day Care North,Private & Voluntary Day Care,Milestones Outreach Dementia Services,546.26, 15-Aug-2012
1256,Revenue,CCHD,Home Care - Elderly - South,Other Small Contracts,Milestones Outreach Dementia Services,947.36, 15-Aug-2012
1257,Revenue,CCHD,Home Care - Elderly - North,Other Small Contracts,Milestones Outreach Dementia Services,57.3, 15-Aug-2012
1258,Revenue,CCHD,Day Care - South,Private & Voluntary Day Care,Milestones Outreach Dementia Services,61.12, 15-Aug-2012
1259,Revenue,CCHD,Day Care - North,Private & Voluntary Day Care,Milestones Outreach Dementia Services,164.16, 15-Aug-2012
1260,Revenue,CCHD,Home care - Elderly MH - North,Other Small Contracts,Milestones Outreach Dementia Services,580.64, 15-Aug-2012
1261,Revenue,CCHD,Elderly MH Day Care North,Private & Voluntary Day Care,Milestones Outreach Dementia Services,538.62, 15-Aug-2012
1262,Revenue,CCHD,Supported Living - PS,Private & Voluntary Home Care,Milestones Trust,1701.75, 17-Aug-2012
1263,Revenue,CCHD,Elderly MH Day Care South,Private & Voluntary Day Care,Milestones Trust,560, 03-Aug-2012
1264,Revenue,CCHD,Elderly MH Day Care South,Private & Voluntary Day Care,Milestones Trust,715.08, 03-Aug-2012
1265,Revenue,CCHD,Section 117 Placements MH Younger,Private & Voluntary Day Care,Milestones Trust,968.76, 03-Aug-2012
1266,Revenue,CCHD,Younger MH non-res purchasing,Private & Voluntary Day Care,Milestones Trust,783.08, 03-Aug-2012
1267,Revenue,CCHD,Bed Purchasing - Elderly S117- North,Private & Voluntary Day Care,Milestones Trust,518.28, 03-Aug-2012
1268,Revenue,CCHD,Supported Living - PS,Private & Voluntary Home Care,Milestones Trust,656.51, 10-Aug-2012
1269,Revenue,CCHD,Supported Living (S28a) South,Private & Voluntary Home Care,Milestones Trust,7127.5, 17-Aug-2012
1270,Revenue,CCHD,Supported Living - PS,Private & Voluntary Home Care,Milestones Trust,679, 09-Aug-2012
1271,Revenue,CCHD,Supported Living - PS,Private & Voluntary Day Care,Milestones Trust,1308.04, 10-Aug-2012
1272,Revenue,CCHD,Supported Living - PS,Private & Voluntary Home Care,Milestones Trust,14461.16, 10-Aug-2012
1273,Revenue,CCHD,Supported Living - PS,Private & Voluntary Home Care,Milestones Trust,14837.03, 10-Aug-2012
1274,Revenue,CCHD,Purchase of Non-Res Care - PS,Private & Voluntary Day Care,Milestones Trust,1991.68, 10-Aug-2012
1275,Revenue,CCHD,Purchase of Non-Res Care - PS,Private & Voluntary Day Care,Milestones Trust,612.76, 10-Aug-2012
1276,Revenue,CCHD,Purchase of Non-Res Care - PS,Private & Voluntary Day Care,Milestones Trust,1426.47, 20-Aug-2012
1277,Revenue,CCHD,Purchase of Non-Res Care - PS,Private & Voluntary Day Care,Milestones Trust,1647.78, 10-Aug-2012
1278,Revenue,CCHD,Supported Living - PS,Private & Voluntary Home Care,Milestones Trust,612.76, 10-Aug-2012
1279,Revenue,CCHD,Purchase of Non-Res Care - PS,Private & Voluntary Day Care,Milestones Trust,1465.06, 09-Aug-2012
1280,Revenue,CCHD,Purchase of Non-Res Care - PS,Private & Voluntary Day Care,Milestones Trust,1632.25, 17-Aug-2012
1281,Revenue,CCHD,Purchase of Non-Res Care - PS,Private & Voluntary Day Care,Milestones Trust,1664.69, 20-Aug-2012
1282,Revenue,CCHD,Purchase of Non-Res Care - PS,Private & Voluntary Day Care,Milestones Trust,1692.15, 17-Aug-2012
1283,Revenue,CCHD,Purchase of Non-Res Care - PS,Private & Voluntary Day Care,Milestones Trust,1398.49, 09-Aug-2012
1284,Revenue,CCHD,Purchase of Non-Res Care - PS,Private & Voluntary Day Care,Milestones Trust,1582.77, 20-Aug-2012
1285,Revenue,CCHD,Supported Living - PS,Private & Voluntary Home Care,Milestones Trust,1455, 17-Aug-2012
1286,Revenue,CCHD,Supported Living - PS,Private & Voluntary Home Care,Milestones Trust,2071.5, 17-Aug-2012
1287,Revenue,CCHD,Purchase of Non-Res Care - PS,Private & Voluntary Day Care,Milestones Trust,1708, 17-Aug-2012
1288,Revenue,CCHD,Supported Living - KD,Private & Voluntary Home Care,Milestones Trust,6276.64, 17-Aug-2012
1289,Revenue,CCHD,Supported Living - PS,Private & Voluntary Home Care,Milestones Trust,4027.06, 17-Aug-2012
1290,Revenue,CCHD,Supported Living - PS,Private & Voluntary Home Care,Milestones Trust,1454.61, 10-Aug-2012
1291,Revenue,CCHD,Supported Living - PS,Private & Voluntary Home Care,Milestones Trust,1903.19, 09-Aug-2012
1292,Revenue,CCHD,Supported Living - PS,Private & Voluntary Home Care,Milestones Trust,770.83, 10-Aug-2012
1293,Revenue,CCHD,Supported Living - KD,Private & Voluntary Home Care,Milestones Trust,1665.58, 17-Aug-2012
1294,Revenue,CCHD,Supported Living - PS,Private & Voluntary Home Care,Milestones Trust,1006.02, 20-Aug-2012
1295,Revenue,CCHD,Supported Living - KD,Private & Voluntary Home Care,Milestones Trust,642.52, 17-Aug-2012
1296,Revenue,CCHD,Elderly MH Day Care South,Private & Voluntary Day Care,Milestones Trust,720, 17-Aug-2012
1297,Revenue,CCHD,Elderly MH Day Care North,Private & Voluntary Day Care,Milestones Trust,520, 17-Aug-2012
1298,Revenue,CCHD,Bed purchasing - Elderly S117 - South,Nursing Homes,Mimosa Healthcare Holdings Ltd,1919.72, 07-Aug-2012
1299,Revenue,CCHD,Bed purchasing - Elderly MH - North,Nursing Homes,Mimosa Healthcare Holdings Ltd,862.52, 07-Aug-2012
1300,Revenue,CCHD,Bed Purchasing - Elderly - South,Nursing Homes,Mimosa Healthcare Holdings Ltd,959.72, 07-Aug-2012
1301,Revenue,CCHD,Bed Purchasing - Under 65s PWLD - South,Residential Homes,Mmcg  Westcourt,12816.72, 07-Aug-2012
1302,Revenue,CCHD,Bed Purchasing - LD S28A- Over 65- South,Nursing Homes,Mortimer House Nursing Home,2996.52, 03-Aug-2012
1303,Revenue,CCHD,Bed Purchasing - LD S28A- Over 65- South,Nursing Homes,Mortimer House Nursing Home,2996.52, 31-Aug-2012
1304,Revenue,CCHD,Bed Purchasing - LD S28A- Over 65- South,Nursing Homes,Mortimer House Nursing Home,2553.84, 03-Aug-2012
1305,Revenue,CCHD,Bed Purchasing - LD S28A- Over 65- South,Nursing Homes,Mortimer House Nursing Home,2553.84, 31-Aug-2012
1306,Revenue,CCHD,Bed Purchasing - LD S28A- Over 65- South,Nursing Homes,Mortimer House Nursing Home,3271.92, 03-Aug-2012
1307,Revenue,CCHD,Bed Purchasing - LD S28A- Over 65- South,Nursing Homes,Mortimer House Nursing Home,3271.92, 31-Aug-2012
1308,Revenue,CCHD,Bed purchasing - Elderly PWLD - South,Nursing Homes,Mortimer House Nursing Home,3109.76, 03-Aug-2012
1309,Revenue,CCHD,Bed purchasing - Elderly PWLD - South,Nursing Homes,Mortimer House Nursing Home,3109.76, 31-Aug-2012
1310,Revenue,CCHD,Bed Purchasing - LD S28A- Over 65- South,Nursing Homes,Mortimer House Nursing Home,3277.24, 03-Aug-2012
1311,Revenue,CCHD,Bed Purchasing - LD S28A- Over 65- South,Nursing Homes,Mortimer House Nursing Home,3277.24, 31-Aug-2012
1312,Revenue,CCHD,Bed purchasing - Elderly S117 - South,Residential Homes,Mostyn Lodge Residential Home,1880, 07-Aug-2012
1313,Revenue,CCHD,Frenchay Hospital Purchasing,Residential Homes,Mostyn Lodge Residential Home,882.78, 07-Aug-2012
1314,Revenue,CCHD,Supported Living - PS,Private & Voluntary Home Care,Moving On,1113.4, 13-Aug-2012
1315,Revenue,CCHD,Supported Living - PS,Private & Voluntary Home Care,Moving On,3595.26, 20-Aug-2012
1316,Revenue,CCHD,Supported Living - PS,Private & Voluntary Home Care,Moving On,3720.61, 20-Aug-2012
1317,Revenue,CCHD,Supported Living - PS,Private & Voluntary Home Care,Moving On,6360.7, 20-Aug-2012
1318,Revenue,CCHD,Supported Living - PS,Private & Voluntary Home Care,Moving On,6534.12, 20-Aug-2012
1319,Revenue,CCHD,Social Lettings Agency,Other Supplies & Services,Individual,565, 23-Aug-2012
1320,Revenue,CCHD,Social Lettings Agency,Other Supplies & Services,Individual,950, 10-Aug-2012
1321,Revenue,CCHD,Under 65s PWLD - KH,Residential Homes,Mr J Davis & Mrs S Davis,1840, 14-Aug-2012
1322,Revenue,CCHD,Social Lettings Agency,Other Supplies & Services,Individual,565, 08-Aug-2012
1323,Revenue,CCHD,Social Lettings Agency,Other Supplies & Services,Individual,632.81, 20-Aug-2012
1324,Revenue,CCHD,Social Lettings Agency,Other Supplies & Services,Individual,551.44, 08-Aug-2012
1325,Revenue,CCHD,Social Lettings Agency,Other Supplies & Services,Individual,565, 07-Aug-2012
1326,Revenue,CCHD,Social Lettings Agency,Other Supplies & Services,Individual,632.81, 15-Aug-2012
1327,Revenue,CCHD,Elderly MH Day Care North,Private & Voluntary Day Care,Mrs B Kimber,664.92, 17-Aug-2012
1328,Revenue,CCHD,Supported Living - PS,Private & Voluntary Home Care,Mrs B Kimber,637.21, 02-Aug-2012
1329,Revenue,CCHD,Supported Living - PS,Private & Voluntary Home Care,Mrs B Kimber,10617.35, 21-Aug-2012
1330,Revenue,CCHD,Supported Living - PS,Private & Voluntary Home Care,Mrs B Kimber,8618.72, 10-Aug-2012
1331,Revenue,CCHD,Day Care - South,Private & Voluntary Day Care,Mrs B Kimber,886.59, 17-Aug-2012
1332,Revenue,CCHD,Day Care - North,Private & Voluntary Day Care,Mrs B Kimber,686.22, 14-Aug-2012
1333,Revenue,CCHD,Day Care - North,Private & Voluntary Day Care,Mrs B Kimber,1440.66, 29-Aug-2012
1334,Revenue,CCHD,Supported Living - KD,Private & Voluntary Home Care,Mrs B Kimber,1035.61, 31-Aug-2012
1335,Revenue,CCHD,Elderly MH Day Care South,Private & Voluntary Day Care,Mrs B Kimber,591.04, 17-Aug-2012
1336,Revenue,CCHD,Supported Living - PS,Private & Voluntary Home Care,Mrs B Kimber,1395.43, 21-Aug-2012
1337,Revenue,CCHD,Purchase of Non-Res Care - PS,Private & Voluntary Day Care,Mrs B Kimber,1229.04, 21-Aug-2012
1338,Revenue,CCHD,Home Care - Elderly - South,Other Small Contracts,Mrs B Kimber - Stepping Stones,3961.88, 30-Aug-2012
1339,Revenue,CCHD,Home Care - Elderly - North,Other Small Contracts,Mrs B Kimber - Stepping Stones,3151.86, 30-Aug-2012
1340,Revenue,CCHD,Day Care - South,Private & Voluntary Day Care,Mrs B Kimber - Stepping Stones,1010.52, 30-Aug-2012
1341,Revenue,CCHD,Day Care - North,Private & Voluntary Day Care,Mrs B Kimber - Stepping Stones,292.73, 30-Aug-2012
1342,Revenue,CCHD,Under 65s -MH  Home Care Purch,Other Small Contracts,Mrs B Kimber - Stepping Stones,240.6, 30-Aug-2012
1343,Revenue,CCHD,Younger MH non-res purchasing,Private & Voluntary Day Care,Mrs B Kimber - Stepping Stones,48.12, 30-Aug-2012
1344,Revenue,CCHD,Home care - Elderly MH - North,Other Small Contracts,Mrs B Kimber - Stepping Stones,276.69, 30-Aug-2012
1345,Revenue,CCHD,Elderly MH Day Care North,Private & Voluntary Day Care,Mrs B Kimber - Stepping Stones,216.54, 30-Aug-2012
1346,Revenue,CCHD,Supported Living - KD,Private & Voluntary Home Care,Mrs B Kimber - Stepping Stones,882.2, 30-Aug-2012
1347,Revenue,CCHD,Home Care - LD Under 65 - South,Private & Voluntary Home Care,Mrs B Kimber - Stepping Stones,112.28, 30-Aug-2012
1348,Revenue,CCHD,Home Care - LD Under 65 - North,Private & Voluntary Home Care,Mrs B Kimber - Stepping Stones,48.12, 30-Aug-2012
1349,Revenue,CCHD,PWLD Home Care - Under 65 - KH,Private & Voluntary Home Care,Mrs B Kimber - Stepping Stones,88.22, 30-Aug-2012
1350,Revenue,CCHD,Home Care - Elderly LD - North,Private & Voluntary Home Care,Mrs B Kimber - Stepping Stones,870.17, 30-Aug-2012
1351,Revenue,CCHD,Home Care - Elderly - South,Other Small Contracts,Mrs B Kimber - Stepping Stones,4010.01, 30-Aug-2012
1352,Revenue,CCHD,Home Care - Elderly - North,Other Small Contracts,Mrs B Kimber - Stepping Stones,3705.24, 30-Aug-2012
1353,Revenue,CCHD,Day Care - South,Private & Voluntary Day Care,Mrs B Kimber - Stepping Stones,1054.63, 30-Aug-2012
1354,Revenue,CCHD,Day Care - North,Private & Voluntary Day Care,Mrs B Kimber - Stepping Stones,260.65, 30-Aug-2012
1355,Revenue,CCHD,Under 65s -MH  Home Care Purch,Other Small Contracts,Mrs B Kimber - Stepping Stones,272.68, 30-Aug-2012
1356,Revenue,CCHD,Younger MH non-res purchasing,Private & Voluntary Day Care,Mrs B Kimber - Stepping Stones,44.11, 30-Aug-2012
1357,Revenue,CCHD,Home care - Elderly MH - North,Other Small Contracts,Mrs B Kimber - Stepping Stones,276.69, 30-Aug-2012
1358,Revenue,CCHD,Elderly MH Day Care North,Private & Voluntary Day Care,Mrs B Kimber - Stepping Stones,288.72, 30-Aug-2012
1359,Revenue,CCHD,Supported Living - KD,Private & Voluntary Home Care,Mrs B Kimber - Stepping Stones,874.18, 30-Aug-2012
1360,Revenue,CCHD,Home Care - LD Under 65 - South,Private & Voluntary Home Care,Mrs B Kimber - Stepping Stones,112.28, 30-Aug-2012
1361,Revenue,CCHD,Home Care - LD Under 65 - North,Private & Voluntary Home Care,Mrs B Kimber - Stepping Stones,48.12, 30-Aug-2012
1362,Revenue,CCHD,PWLD Home Care - Under 65 - KH,Private & Voluntary Home Care,Mrs B Kimber - Stepping Stones,88.22, 30-Aug-2012
1363,Revenue,CCHD,Home Care - Elderly LD - North,Private & Voluntary Home Care,Mrs B Kimber - Stepping Stones,866.16, 30-Aug-2012
1364,Revenue,CCHD,Home Care - Elderly - South,Other Small Contracts,Mrs B Kimber - Stepping Stones,3833.56, 03-Aug-2012
1365,Revenue,CCHD,Home Care - Elderly - North,Other Small Contracts,Mrs B Kimber - Stepping Stones,2835.07, 03-Aug-2012
1366,Revenue,CCHD,Day Care - South,Private & Voluntary Day Care,Mrs B Kimber - Stepping Stones,942.35, 03-Aug-2012
1367,Revenue,CCHD,Day Care - North,Private & Voluntary Day Care,Mrs B Kimber - Stepping Stones,240.6, 03-Aug-2012
1368,Revenue,CCHD,Under 65s -MH  Home Care Purch,Other Small Contracts,Mrs B Kimber - Stepping Stones,196.49, 03-Aug-2012
1369,Revenue,CCHD,Home care - Elderly MH - North,Other Small Contracts,Mrs B Kimber - Stepping Stones,308.77, 03-Aug-2012
1370,Revenue,CCHD,Elderly MH Day Care North,Private & Voluntary Day Care,Mrs B Kimber - Stepping Stones,352.88, 03-Aug-2012
1371,Revenue,CCHD,Supported Living - KD,Private & Voluntary Home Care,Mrs B Kimber - Stepping Stones,874.18, 03-Aug-2012
1372,Revenue,CCHD,Home Care - LD Under 65 - South,Private & Voluntary Home Care,Mrs B Kimber - Stepping Stones,112.28, 03-Aug-2012
1373,Revenue,CCHD,Home Care - LD Under 65 - North,Private & Voluntary Home Care,Mrs B Kimber - Stepping Stones,48.12, 03-Aug-2012
1374,Revenue,CCHD,PWLD Home Care - Under 65 - KH,Private & Voluntary Home Care,Mrs B Kimber - Stepping Stones,92.23, 03-Aug-2012
1375,Revenue,CCHD,Home Care - Elderly LD - North,Private & Voluntary Home Care,Mrs B Kimber - Stepping Stones,866.16, 03-Aug-2012
1376,Revenue,CCHD,Home Care - Elderly - South,Other Small Contracts,Mrs B Kimber - Stepping Stones,3709.26, 06-Aug-2012
1377,Revenue,CCHD,Home Care - Elderly - North,Other Small Contracts,Mrs B Kimber - Stepping Stones,3063.64, 06-Aug-2012
1378,Revenue,CCHD,Day Care - South,Private & Voluntary Day Care,Mrs B Kimber - Stepping Stones,970.42, 06-Aug-2012
1379,Revenue,CCHD,Day Care - North,Private & Voluntary Day Care,Mrs B Kimber - Stepping Stones,260.65, 06-Aug-2012
1380,Revenue,CCHD,Under 65s -MH  Home Care Purch,Other Small Contracts,Mrs B Kimber - Stepping Stones,272.68, 06-Aug-2012
1381,Revenue,CCHD,Younger MH non-res purchasing,Private & Voluntary Day Care,Mrs B Kimber - Stepping Stones,48.12, 06-Aug-2012
1382,Revenue,CCHD,Home care - Elderly MH - North,Other Small Contracts,Mrs B Kimber - Stepping Stones,288.72, 06-Aug-2012
1383,Revenue,CCHD,Elderly MH Day Care North,Private & Voluntary Day Care,Mrs B Kimber - Stepping Stones,284.71, 06-Aug-2012
1384,Revenue,CCHD,Supported Living - KD,Private & Voluntary Home Care,Mrs B Kimber - Stepping Stones,870.17, 06-Aug-2012
1385,Revenue,CCHD,Home Care - LD Under 65 - South,Private & Voluntary Home Care,Mrs B Kimber - Stepping Stones,112.28, 06-Aug-2012
1386,Revenue,CCHD,Home Care - LD Under 65 - North,Private & Voluntary Home Care,Mrs B Kimber - Stepping Stones,48.12, 06-Aug-2012
1387,Revenue,CCHD,PWLD Home Care - Under 65 - KH,Private & Voluntary Home Care,Mrs B Kimber - Stepping Stones,88.22, 06-Aug-2012
1388,Revenue,CCHD,Home Care - Elderly LD - North,Private & Voluntary Home Care,Mrs B Kimber - Stepping Stones,870.17, 06-Aug-2012
1389,Revenue,CCHD,Home Care - Elderly - South,Other Small Contracts,Mrs B Kimber - Stepping Stones,3845.6, 03-Aug-2012
1390,Revenue,CCHD,Home Care - Elderly - North,Other Small Contracts,Mrs B Kimber - Stepping Stones,2694.72, 03-Aug-2012
1391,Revenue,CCHD,Day Care - South,Private & Voluntary Day Care,Mrs B Kimber - Stepping Stones,1070.67, 03-Aug-2012
1392,Revenue,CCHD,Day Care - North,Private & Voluntary Day Care,Mrs B Kimber - Stepping Stones,232.58, 03-Aug-2012
1393,Revenue,CCHD,Under 65s -MH  Home Care Purch,Other Small Contracts,Mrs B Kimber - Stepping Stones,264.66, 03-Aug-2012
1394,Revenue,CCHD,Younger MH non-res purchasing,Private & Voluntary Day Care,Mrs B Kimber - Stepping Stones,32.08, 03-Aug-2012
1395,Revenue,CCHD,Home care - Elderly MH - North,Other Small Contracts,Mrs B Kimber - Stepping Stones,308.77, 03-Aug-2012
1396,Revenue,CCHD,Elderly MH Day Care North,Private & Voluntary Day Care,Mrs B Kimber - Stepping Stones,340.85, 03-Aug-2012
1397,Revenue,CCHD,Supported Living - KD,Private & Voluntary Home Care,Mrs B Kimber - Stepping Stones,890.22, 03-Aug-2012
1398,Revenue,CCHD,Home Care - LD Under 65 - South,Private & Voluntary Home Care,Mrs B Kimber - Stepping Stones,108.27, 03-Aug-2012
1399,Revenue,CCHD,Home Care - LD Under 65 - North,Private & Voluntary Home Care,Mrs B Kimber - Stepping Stones,48.12, 03-Aug-2012
1400,Revenue,CCHD,PWLD Home Care - Under 65 - KH,Private & Voluntary Home Care,Mrs B Kimber - Stepping Stones,88.22, 03-Aug-2012
1401,Revenue,CCHD,Home Care - Elderly LD - North,Private & Voluntary Home Care,Mrs B Kimber - Stepping Stones,842.1, 03-Aug-2012
1402,Revenue,CCHD,Home Care - Elderly - South,Other Small Contracts,Mrs B Kimber - Stepping Stones,3625.04, 03-Aug-2012
1403,Revenue,CCHD,Home Care - Elderly - North,Other Small Contracts,Mrs B Kimber - Stepping Stones,2871.16, 03-Aug-2012
1404,Revenue,CCHD,Day Care - South,Private & Voluntary Day Care,Mrs B Kimber - Stepping Stones,974.43, 03-Aug-2012
1405,Revenue,CCHD,Day Care - North,Private & Voluntary Day Care,Mrs B Kimber - Stepping Stones,228.57, 03-Aug-2012
1406,Revenue,CCHD,Under 65s -MH  Home Care Purch,Other Small Contracts,Mrs B Kimber - Stepping Stones,256.64, 03-Aug-2012
1407,Revenue,CCHD,Younger MH non-res purchasing,Private & Voluntary Day Care,Mrs B Kimber - Stepping Stones,52.13, 03-Aug-2012
1408,Revenue,CCHD,Home care - Elderly MH - North,Other Small Contracts,Mrs B Kimber - Stepping Stones,288.72, 03-Aug-2012
1409,Revenue,CCHD,Elderly MH Day Care North,Private & Voluntary Day Care,Mrs B Kimber - Stepping Stones,360.9, 03-Aug-2012
1410,Revenue,CCHD,Supported Living - KD,Private & Voluntary Home Care,Mrs B Kimber - Stepping Stones,918.29, 03-Aug-2012
1411,Revenue,CCHD,Home Care - LD Under 65 - South,Private & Voluntary Home Care,Mrs B Kimber - Stepping Stones,120.3, 03-Aug-2012
1412,Revenue,CCHD,Home Care - LD Under 65 - North,Private & Voluntary Home Care,Mrs B Kimber - Stepping Stones,48.12, 03-Aug-2012
1413,Revenue,CCHD,PWLD Home Care - Under 65 - KH,Private & Voluntary Home Care,Mrs B Kimber - Stepping Stones,88.22, 03-Aug-2012
1414,Revenue,CCHD,Home Care - Elderly LD - North,Private & Voluntary Home Care,Mrs B Kimber - Stepping Stones,818.04, 03-Aug-2012
1415,Revenue,CCHD,Home Care - Elderly - South,Other Small Contracts,Mrs B Kimber - Stepping Stones,3661.13, 30-Aug-2012
1416,Revenue,CCHD,Home Care - Elderly - North,Other Small Contracts,Mrs B Kimber - Stepping Stones,4106.24, 30-Aug-2012
1417,Revenue,CCHD,Day Care - South,Private & Voluntary Day Care,Mrs B Kimber - Stepping Stones,1006.51, 30-Aug-2012
1418,Revenue,CCHD,Day Care - North,Private & Voluntary Day Care,Mrs B Kimber - Stepping Stones,264.66, 30-Aug-2012
1419,Revenue,CCHD,Under 65s -MH  Home Care Purch,Other Small Contracts,Mrs B Kimber - Stepping Stones,228.57, 30-Aug-2012
1420,Revenue,CCHD,Younger MH non-res purchasing,Private & Voluntary Day Care,Mrs B Kimber - Stepping Stones,48.12, 30-Aug-2012
1421,Revenue,CCHD,Home care - Elderly MH - North,Other Small Contracts,Mrs B Kimber - Stepping Stones,296.74, 30-Aug-2012
1422,Revenue,CCHD,Elderly MH Day Care North,Private & Voluntary Day Care,Mrs B Kimber - Stepping Stones,280.7, 30-Aug-2012
1423,Revenue,CCHD,Supported Living - KD,Private & Voluntary Home Care,Mrs B Kimber - Stepping Stones,769.92, 30-Aug-2012
1424,Revenue,CCHD,Home Care - LD Under 65 - South,Private & Voluntary Home Care,Mrs B Kimber - Stepping Stones,116.29, 30-Aug-2012
1425,Revenue,CCHD,Home Care - LD Under 65 - North,Private & Voluntary Home Care,Mrs B Kimber - Stepping Stones,48.12, 30-Aug-2012
1426,Revenue,CCHD,PWLD Home Care - Under 65 - KH,Private & Voluntary Home Care,Mrs B Kimber - Stepping Stones,56.14, 30-Aug-2012
1427,Revenue,CCHD,Home Care - Elderly LD - North,Private & Voluntary Home Care,Mrs B Kimber - Stepping Stones,958.39, 30-Aug-2012
1428,Revenue,CCHD,Social Lettings Agency,Other Supplies & Services,Individual,632.81, 10-Aug-2012
1429,Revenue,CCHD,Social Lettings Agency,Other Supplies & Services,Individual,565, 24-Aug-2012
1430,Revenue,CCHD,Social Lettings Agency,Other Supplies & Services,Individual,565, 01-Aug-2012
1431,Revenue,CCHD,Social Lettings Agency,Other Supplies & Services,Individual,565, 31-Aug-2012
1432,Revenue,CCHD,Supported Living - KD,Residential Homes,Mrs I M Bowerman,914.84, 24-Aug-2012
1433,Revenue,CCHD,Social Lettings Agency,Other Supplies & Services,Individual,565, 10-Aug-2012
1434,Revenue,CCHD,Social Lettings Agency,Other Supplies & Services,Individual,655.41, 15-Aug-2012
1435,Revenue,CCHD,Purchase of Non-Res Care - KD,Private & Voluntary Day Care,Mrs W Thompson,1484.4, 23-Aug-2012
1436,Revenue,CCHD,Purchase of Non-Res Care - KD,Private & Voluntary Day Care,Mrs W Thompson,563.28, 23-Aug-2012
1437,Revenue,CCHD,Social Lettings Agency,Other Supplies & Services,Individual,858.8, 10-Aug-2012
1438,Revenue,CCHD,Finance,"Provisions (Food, etc)",Ms Sarah Hannett,1471.5, 17-Aug-2012
1439,Revenue,CCHD,Finance,"Provisions (Food, etc)",Ms Sarah Hannett,1350, 20-Aug-2012
1440,Revenue,CCHD,Alexandra Way,Cleaning & Domestic Supplies,Muzzell Healthcare,812, 10-Aug-2012
1441,Revenue,CCHD,Home Care - General,Uniforms & Clothing,Muzzell Healthcare,1174, 02-Aug-2012
1442,Revenue,CCHD,Alexandra Way,Cleaning & Domestic Supplies,Muzzell Healthcare,651.05, 13-Aug-2012
1443,Revenue,CCHD,Younger MH non-res purchasing,Private & Voluntary Day Care,NAS Services Limited,687.6, 08-Aug-2012
1444,Revenue,CCHD,Younger MH non-res purchasing,Private & Voluntary Day Care,NAS Services Limited,1561.42, 08-Aug-2012
1445,Revenue,CCHD,Younger MH non-res purchasing,Private & Voluntary Day Care,NAS Services Limited,802.2, 13-Aug-2012
1446,Revenue,CCHD,Younger MH non-res purchasing,Private & Voluntary Day Care,NAS Services Limited,548.4, 24-Aug-2012
1447,Revenue,CCHD,Younger MH non-res purchasing,Private & Voluntary Day Care,NAS Services Limited,550.72, 29-Aug-2012
1448,Revenue,CCHD,Home Care - Elderly - South,Other Small Contracts,Network Health & Social Care,1076.73, 24-Aug-2012
1449,Revenue,CCHD,Home Care - Elderly - North,Other Small Contracts,Network Health & Social Care,3244.64, 24-Aug-2012
1450,Revenue,CCHD,Day Care - North,Private & Voluntary Day Care,Network Health & Social Care,30.8, 24-Aug-2012
1451,Revenue,CCHD,Under 65s -MH  Home Care Purch,Other Small Contracts,Network Health & Social Care,177.09, 24-Aug-2012
1452,Revenue,CCHD,Home Care - Elderly - South,Other Small Contracts,Network Health & Social Care,1072.87, 15-Aug-2012
1453,Revenue,CCHD,Home Care - Elderly - North,Other Small Contracts,Network Health & Social Care,3637.23, 15-Aug-2012
1454,Revenue,CCHD,Day Care - North,Private & Voluntary Day Care,Network Health & Social Care,30.8, 15-Aug-2012
1455,Revenue,CCHD,Under 65s -MH  Home Care Purch,Other Small Contracts,Network Health & Social Care,173.26, 15-Aug-2012
1456,Revenue,CCHD,Bed Purchasing - Under 65s PWLD - South,Residential Homes,Nightingale Nursing Home,3076.64, 07-Aug-2012
1457,Revenue,CCHD,Bed Purchasing - Under 65s PWLD - South,Residential Homes,Norwood   Broadway House,4853.64, 07-Aug-2012
1458,Revenue,CCHD,Bed Purchasing - Elderly MH - South,Residential Homes,Notaro Homes Ltd  Queensmead Court,1839.64, 07-Aug-2012
1459,Revenue,CCHD,Southmead Hospital Purchasing,Residential Homes,Notaro Homes Ltd  Queensmead Court,1362.84, 07-Aug-2012
1460,Revenue,CCHD,Home Care - Elderly - South,Other Small Contracts,Nursing Solutions Limited,1173.44, 15-Aug-2012
1461,Revenue,CCHD,Day Care - South,Private & Voluntary Day Care,Nursing Solutions Limited,30.88, 15-Aug-2012
1462,Revenue,CCHD,Home Care - Elderly - South,Other Small Contracts,Nursing Solutions Limited,1130.98, 15-Aug-2012
1463,Revenue,CCHD,Day Care - South,Private & Voluntary Day Care,Nursing Solutions Limited,23.16, 15-Aug-2012
1464,Revenue,CCHD,Home Care - Elderly - South,Other Small Contracts,Nursing Solutions Limited,1088.52, 29-Aug-2012
1465,Revenue,CCHD,Day Care - South,Private & Voluntary Day Care,Nursing Solutions Limited,30.88, 29-Aug-2012
1466,Revenue,CCHD,Home Care - Elderly - South,Other Small Contracts,Nursing Solutions Limited,972.72, 29-Aug-2012
1467,Revenue,CCHD,Day Care - South,Private & Voluntary Day Care,Nursing Solutions Limited,30.88, 29-Aug-2012
1468,Revenue,CCHD,Frenchay Hospital Purchasing,Nursing Homes,Oaktree Care Home,688.5, 28-Aug-2012
1469,Revenue,CCHD,Frenchay Hospital Purchasing,Nursing Homes,Oaktree Care Home,504.84, 28-Aug-2012
1470,Revenue,CCHD,Bed Purchasing - Elderly - South,Residential Homes,Oaktree Lodge,1267.76, 07-Aug-2012
1471,Revenue,CCHD,Charlton,Refuse Collection Charges,OCS Group UK Ltd,557.43, 02-Aug-2012
1472,Revenue,CCHD,Home Care - Elderly - South,Other Small Contracts,On the Up,386.2, 15-Aug-2012
1473,Revenue,CCHD,Day Care - South,Private & Voluntary Day Care,On the Up,659.96, 15-Aug-2012
1474,Revenue,CCHD,Day Care - North,Private & Voluntary Day Care,On the Up,565.44, 15-Aug-2012
1475,Revenue,CCHD,Younger MH non-res purchasing,Private & Voluntary Day Care,On the Up,351.12, 15-Aug-2012
1476,Revenue,CCHD,Elderly MH Day Care North,Private & Voluntary Day Care,On the Up,122.24, 15-Aug-2012
1477,Revenue,CCHD,Home Care - Elderly - South,Other Small Contracts,On the Up,386.2, 15-Aug-2012
1478,Revenue,CCHD,Day Care - South,Private & Voluntary Day Care,On the Up,637.16, 15-Aug-2012
1479,Revenue,CCHD,Day Care - North,Private & Voluntary Day Care,On the Up,524.4, 15-Aug-2012
1480,Revenue,CCHD,Younger MH non-res purchasing,Private & Voluntary Day Care,On the Up,410.4, 15-Aug-2012
1481,Revenue,CCHD,Elderly MH Day Care North,Private & Voluntary Day Care,On the Up,122.24, 15-Aug-2012
1482,Revenue,CCHD,Home Care - Elderly - South,Other Small Contracts,On the Up,325.08, 15-Aug-2012
1483,Revenue,CCHD,Day Care - South,Private & Voluntary Day Care,On the Up,628.04, 15-Aug-2012
1484,Revenue,CCHD,Day Care - North,Private & Voluntary Day Care,On the Up,487.92, 15-Aug-2012
1485,Revenue,CCHD,Younger MH non-res purchasing,Private & Voluntary Day Care,On the Up,401.28, 15-Aug-2012
1486,Revenue,CCHD,Elderly MH Day Care North,Private & Voluntary Day Care,On the Up,99.32, 15-Aug-2012
1487,Revenue,CCHD,Bed purchasing -S28A  Under 65 - North,Residential Homes,Orchard End Limited,7580.16, 07-Aug-2012
1488,Revenue,CCHD,Turnberries,"Provisions (Food, etc)",Origin Cafe,516.8, 30-Aug-2012
1489,Revenue,CCHD,Bed Purchasing - Elderly - North,Residential Homes,Osbourne Court,956.4, 07-Aug-2012
1490,Revenue,CCHD,Bed Purchasing - Elderly S117- North,Residential Homes,Osbourne Court,1879.04, 07-Aug-2012
1491,Revenue,CCHD,Southmead Hospital Purchasing,Residential Homes,Osbourne Court,13779.9, 07-Aug-2012
1492,Revenue,CCHD,Southmead Hospital Purchasing,Nursing Homes,Osbourne Court,3270, 07-Aug-2012
1493,Revenue,CCHD,Southmead Hospital Purchasing,Nursing Homes,Osbourne Court,5785.71, 07-Aug-2012
1494,Revenue,CCHD,Bed Purchasing - Elderly S117- North,Residential Homes,Osbourne Court,1716, 07-Aug-2012
1495,Revenue,CCHD,Frenchay Hospital Purchasing,Residential Homes,Osbourne Court,2117.09, 07-Aug-2012
1496,Revenue,CCHD,Bed purchasing - Elderly MH - North,Residential Homes,Osbourne Court,1434.24, 07-Aug-2012
1497,Revenue,CCHD,Bed Purchasing - Elderly S117- North,Residential Homes,Osbourne Court,1880, 07-Aug-2012
1498,Revenue,CCHD,Southmead Hospital Purchasing,Residential Homes,Osbourne Court,1904.34, 07-Aug-2012
1499,Revenue,CCHD,Southmead Hospital Purchasing,Residential Homes,Osbourne Court,1403.2, 07-Aug-2012
1500,Revenue,CCHD,Southmead Hospital Purchasing,Residential Homes,Osbourne Court,4576.29, 07-Aug-2012
1501,Revenue,CCHD,Frenchay Hospital Purchasing,Residential Homes,Osbourne Court,1247.36, 07-Aug-2012
1502,Revenue,CCHD,Bed Purchasing - Under 65s PWLD - South,Residential Homes,Osprey Court,7564.96, 07-Aug-2012
1503,Revenue,CCHD,Bed purchasing - S28A Under 65 - South,Residential Homes,Osprey Court,4219.68, 07-Aug-2012
1504,Revenue,CCHD,Bed purchasing - S28A Under 65 - South,Residential Homes,Osprey Court,6249.96, 07-Aug-2012
1505,Revenue,CCHD,Research & Conferences,Consultation Expenses,Oxford Brooks Enterprises Ltd,709.28, 09-Aug-2012
1506,Revenue,CCHD,Bed Purchasing - Elderly MH - South,Residential Homes,Park Farm House,1330.8, 07-Aug-2012
1507,Revenue,CCHD,Bed Purchasing - Elderly - South,Residential Homes,Park Farm House,1520.68, 07-Aug-2012
1508,Revenue,CCHD,Bed Purchasing - Elderly MH - South,Residential Homes,Park Farm House,1582.64, 07-Aug-2012
1509,Revenue,CCHD,Bed Purchasing - Under 65s PWLD - South,Residential Homes,Park Hall,5500, 07-Aug-2012
1510,Revenue,CCHD,Bed purchasing - Under 65s PWLD - North,Residential Homes,Park Hall,5082.32, 07-Aug-2012
1511,Revenue,CCHD,Bed Purchasing - Under 65s PWLD - South,Residential Homes,Park Hall,4894.68, 07-Aug-2012
1512,Revenue,CCHD,Bed Purchasing - Under 65s PWLD - South,Residential Homes,Park Hall,2173.96, 07-Aug-2012
1513,Revenue,CCHD,Bed purchasing - Elderly PWLD - South,Residential Homes,Park Hall,2501.56, 07-Aug-2012
1514,Revenue,CCHD,Bed purchasing - Elderly PWLD - North,Residential Homes,Park Hall,4855.8, 07-Aug-2012
1515,Revenue,CCHD,Bed purchasing - S28A Under 65 - South,Residential Homes,Park Hall,4571.08, 07-Aug-2012
1516,Revenue,CCHD,Bed Purchasing - Under 65s PWLD - South,Residential Homes,Park Hall,4871.2, 07-Aug-2012
1517,Revenue,CCHD,Bed purchasing - Under 65s PWLD - North,Residential Homes,Park Hall,4274.52, 07-Aug-2012
1518,Revenue,CCHD,Bed Purchasing - S28A - Over 65- North,Residential Homes,Park Hall,5240.84, 07-Aug-2012
1519,Revenue,CCHD,Bed Purchasing - Under 65s PWLD - South,Residential Homes,Park Hall,10510.04, 07-Aug-2012
1520,Revenue,CCHD,Bed purchasing -S28A  Under 65 - North,Residential Homes,Park Hall,5789.4, 07-Aug-2012
1521,Revenue,CCHD,Bed purchasing - S28A Under 65 - South,Residential Homes,Park Hall,5529.44, 07-Aug-2012
1522,Revenue,CCHD,Bed Purchasing - Elderly - South,Residential Homes,Park Street Home,2042.6, 07-Aug-2012
1523,Revenue,CCHD,Bed Purchasing - Under 65s PWLD - South,Residential Homes,Penleigh House Care Home,4451.6, 07-Aug-2012
1524,Revenue,CCHD,Bed Purchasing - Under 65s PWLD - South,Residential Homes,Penleigh House Care Home,5175.52, 07-Aug-2012
1525,Revenue,CCHD,Bed purchasing - Elderly PWLD - South,Residential Homes,Penleigh House Care Home,4222.56, 07-Aug-2012
1526,Revenue,CCHD,Bed Purchasing - Under 65s PWLD - South,Residential Homes,Penleigh House Care Home,4599.76, 07-Aug-2012
1527,Revenue,CCHD,Bed purchasing - S28A Under 65 - South,Residential Homes,Penleigh House Care Home,5366.32, 07-Aug-2012
1528,Revenue,CCHD,Bed Purchasing - Under 65s PWLD - South,Residential Homes,Penleigh House Care Home,4847.56, 07-Aug-2012
1529,Revenue,CCHD,Southmead Hospital Purchasing,Residential Homes,Petersfield Nursing Home,874.8, 07-Aug-2012
1530,Revenue,CCHD,Bed Purchasing - Elderly - North,Residential Homes,Petersfield Nursing Home,1271.56, 07-Aug-2012
1531,Revenue,CCHD,Home Care - Elderly - South,Other Small Contracts,Premier Homecare Limited,108.24, 03-Aug-2012
1532,Revenue,CCHD,Home Care - Elderly - North,Other Small Contracts,Premier Homecare Limited,4040.96, 03-Aug-2012
1533,Revenue,CCHD,Day Care - North,Private & Voluntary Day Care,Premier Homecare Limited,234.53, 03-Aug-2012
1534,Revenue,CCHD,Home care - Elderly MH - North,Other Small Contracts,Premier Homecare Limited,311.19, 03-Aug-2012
1535,Revenue,CCHD,Elderly MH Day Care North,Private & Voluntary Day Care,Premier Homecare Limited,356.29, 03-Aug-2012
1536,Revenue,CCHD,Home Care - Elderly - South,Other Small Contracts,Premier Homecare Limited,108.24, 03-Aug-2012
1537,Revenue,CCHD,Home Care - Elderly - North,Other Small Contracts,Premier Homecare Limited,3645.32, 03-Aug-2012
1538,Revenue,CCHD,Day Care - North,Private & Voluntary Day Care,Premier Homecare Limited,180.4, 03-Aug-2012
1539,Revenue,CCHD,Home care - Elderly MH - North,Other Small Contracts,Premier Homecare Limited,315.7, 03-Aug-2012
1540,Revenue,CCHD,Elderly MH Day Care North,Private & Voluntary Day Care,Premier Homecare Limited,351.78, 03-Aug-2012
1541,Revenue,CCHD,Home Care - Elderly - South,Other Small Contracts,Premier Homecare Limited,108.24, 03-Aug-2012
1542,Revenue,CCHD,Home Care - Elderly - North,Other Small Contracts,Premier Homecare Limited,3889.48, 03-Aug-2012
1543,Revenue,CCHD,Day Care - North,Private & Voluntary Day Care,Premier Homecare Limited,193.94, 03-Aug-2012
1544,Revenue,CCHD,Home care - Elderly MH - North,Other Small Contracts,Premier Homecare Limited,311.19, 03-Aug-2012
1545,Revenue,CCHD,Elderly MH Day Care North,Private & Voluntary Day Care,Premier Homecare Limited,356.29, 03-Aug-2012
1546,Revenue,CCHD,Home Care - Elderly - South,Other Small Contracts,Premier Homecare Limited,112.75, 03-Aug-2012
1547,Revenue,CCHD,Home Care - Elderly - North,Other Small Contracts,Premier Homecare Limited,4013.9, 03-Aug-2012
1548,Revenue,CCHD,Day Care - North,Private & Voluntary Day Care,Premier Homecare Limited,166.87, 03-Aug-2012
1549,Revenue,CCHD,Home care - Elderly MH - North,Other Small Contracts,Premier Homecare Limited,320.21, 03-Aug-2012
1550,Revenue,CCHD,Elderly MH Day Care North,Private & Voluntary Day Care,Premier Homecare Limited,351.78, 03-Aug-2012
1551,Revenue,CCHD,Home Care - Elderly - South,Other Small Contracts,Premier Homecare Limited,108.24, 03-Aug-2012
1552,Revenue,CCHD,Home Care - Elderly - North,Other Small Contracts,Premier Homecare Limited,4433.33, 03-Aug-2012
1553,Revenue,CCHD,Day Care - North,Private & Voluntary Day Care,Premier Homecare Limited,248.06, 03-Aug-2012
1554,Revenue,CCHD,Home care - Elderly MH - North,Other Small Contracts,Premier Homecare Limited,257.07, 03-Aug-2012
1555,Revenue,CCHD,Elderly MH Day Care North,Private & Voluntary Day Care,Premier Homecare Limited,297.66, 03-Aug-2012
1556,Revenue,CCHD,Home Care - Elderly - South,Other Small Contracts,Premier Homecare Limited,108.24, 07-Aug-2012
1557,Revenue,CCHD,Home Care - Elderly - North,Other Small Contracts,Premier Homecare Limited,4487.45, 07-Aug-2012
1558,Revenue,CCHD,Day Care - North,Private & Voluntary Day Care,Premier Homecare Limited,162.36, 07-Aug-2012
1559,Revenue,CCHD,Home care - Elderly MH - North,Other Small Contracts,Premier Homecare Limited,275.11, 07-Aug-2012
1560,Revenue,CCHD,Elderly MH Day Care North,Private & Voluntary Day Care,Premier Homecare Limited,189.42, 07-Aug-2012
1561,Revenue,CCHD,Home Care - Elderly - South,Other Small Contracts,Premier Homecare Limited,108.24, 30-Aug-2012
1562,Revenue,CCHD,Home Care - Elderly - North,Other Small Contracts,Premier Homecare Limited,4370.19, 30-Aug-2012
1563,Revenue,CCHD,Day Care - North,Private & Voluntary Day Care,Premier Homecare Limited,211.98, 30-Aug-2012
1564,Revenue,CCHD,Home care - Elderly MH - North,Other Small Contracts,Premier Homecare Limited,311.19, 30-Aug-2012
1565,Revenue,CCHD,Elderly MH Day Care North,Private & Voluntary Day Care,Premier Homecare Limited,284.13, 30-Aug-2012
1566,Revenue,CCHD,Home Care - Elderly - South,Other Small Contracts,Premier Homecare Limited,108.24, 30-Aug-2012
1567,Revenue,CCHD,Home Care - Elderly - North,Other Small Contracts,Premier Homecare Limited,4457.74, 30-Aug-2012
1568,Revenue,CCHD,Day Care - North,Private & Voluntary Day Care,Premier Homecare Limited,166.87, 30-Aug-2012
1569,Revenue,CCHD,Home care - Elderly MH - North,Other Small Contracts,Premier Homecare Limited,315.7, 30-Aug-2012
1570,Revenue,CCHD,Elderly MH Day Care North,Private & Voluntary Day Care,Premier Homecare Limited,225.5, 30-Aug-2012
1571,Revenue,CCHD,Home Care - Elderly - South,Other Small Contracts,Premier Homecare Limited,108.24, 30-Aug-2012
1572,Revenue,CCHD,Home Care - Elderly - North,Other Small Contracts,Premier Homecare Limited,4329.6, 30-Aug-2012
1573,Revenue,CCHD,Day Care - North,Private & Voluntary Day Care,Premier Homecare Limited,211.98, 30-Aug-2012
1574,Revenue,CCHD,Home care - Elderly MH - North,Other Small Contracts,Premier Homecare Limited,311.19, 30-Aug-2012
1575,Revenue,CCHD,Elderly MH Day Care North,Private & Voluntary Day Care,Premier Homecare Limited,279.62, 30-Aug-2012
1576,Revenue,CCHD,Home Care - Elderly - South,Other Small Contracts,Prestige Nursing,768.6, 15-Aug-2012
1577,Revenue,CCHD,Home Care - Elderly - North,Other Small Contracts,Prestige Nursing,845.46, 15-Aug-2012
1578,Revenue,CCHD,Day Care - South,Private & Voluntary Day Care,Prestige Nursing,324.52, 15-Aug-2012
1579,Revenue,CCHD,Day Care - North,Private & Voluntary Day Care,Prestige Nursing,836.92, 15-Aug-2012
1580,Revenue,CCHD,Home care - Elderly MH - North,Other Small Contracts,Prestige Nursing,273.28, 15-Aug-2012
1581,Revenue,CCHD,Elderly MH Day Care North,Private & Voluntary Day Care,Prestige Nursing,405.65, 15-Aug-2012
1582,Revenue,CCHD,Home Care - Elderly - South,Other Small Contracts,Prestige Nursing,764.33, 15-Aug-2012
1583,Revenue,CCHD,Home Care - Elderly - North,Other Small Contracts,Prestige Nursing,973.56, 15-Aug-2012
1584,Revenue,CCHD,Day Care - South,Private & Voluntary Day Care,Prestige Nursing,324.52, 15-Aug-2012
1585,Revenue,CCHD,Day Care - North,Private & Voluntary Day Care,Prestige Nursing,952.21, 15-Aug-2012
1586,Revenue,CCHD,Home care - Elderly MH - North,Other Small Contracts,Prestige Nursing,277.55, 15-Aug-2012
1587,Revenue,CCHD,Elderly MH Day Care North,Private & Voluntary Day Care,Prestige Nursing,486.78, 15-Aug-2012
1588,Revenue,CCHD,Home Care - Elderly - South,Other Small Contracts,Prestige Nursing,738.71, 15-Aug-2012
1589,Revenue,CCHD,Home Care - Elderly - North,Other Small Contracts,Prestige Nursing,952.21, 15-Aug-2012
1590,Revenue,CCHD,Day Care - South,Private & Voluntary Day Care,Prestige Nursing,324.52, 15-Aug-2012
1591,Revenue,CCHD,Day Care - North,Private & Voluntary Day Care,Prestige Nursing,952.21, 15-Aug-2012
1592,Revenue,CCHD,Home care - Elderly MH - North,Other Small Contracts,Prestige Nursing,179.34, 15-Aug-2012
1593,Revenue,CCHD,Elderly MH Day Care North,Private & Voluntary Day Care,Prestige Nursing,384.3, 15-Aug-2012
1594,Revenue,CCHD,Kingswood Centre - Maples Suite,"Provisions (Food, etc)",R Jays Cafe,505, 28-Aug-2012
1595,Revenue,CCHD,Bed purchasing - Elderly MH - North,Nursing Homes,Ravenswood,1265.84, 07-Aug-2012
1596,Revenue,CCHD,Bed Purchasing - Elderly MH - South,Residential Homes,Ravenswood,2152.08, 07-Aug-2012
1597,Revenue,CCHD,Bed Purchasing - Elderly - North,Nursing Homes,Ravenswood,1978.36, 07-Aug-2012
1598,Revenue,CCHD,Bed Purchasing - Elderly S117- North,Nursing Homes,Redholme Memory Care Limited,1944.12, 07-Aug-2012
1599,Revenue,CCHD,South Glos Users in South Glos Homes,Nursing Homes,Regent House,1599.44, 07-Aug-2012
1600,Revenue,CCHD,Bed Purchasing - Elderly - South,Nursing Homes,Regent House,1637.96, 07-Aug-2012
1601,Revenue,CCHD,South Glos Users in South Glos Homes,Nursing Homes,Regent House,1754.73, 07-Aug-2012
1602,Revenue,CCHD,Southmead Hospital Purchasing,Nursing Homes,Regent House,975.84, 07-Aug-2012
1603,Revenue,CCHD,South Glos Users in South Glos Homes,Nursing Homes,Regent House,605.61, 07-Aug-2012
1604,Revenue,CCHD,Bed Purchasing - Elderly - South,Nursing Homes,Regent House,2029.8, 07-Aug-2012
1605,Revenue,CCHD,Bed Purchasing - Elderly - South,Nursing Homes,Regent House,1796.8, 07-Aug-2012
1606,Revenue,CCHD,Bed Purchasing - Elderly - North,Nursing Homes,Regent House,1311.2, 07-Aug-2012
1607,Revenue,CCHD,Bed Purchasing - Elderly - South,Nursing Homes,Regent House,1637.96, 07-Aug-2012
1608,Revenue,CCHD,Bed Purchasing - Elderly - South,Nursing Homes,Regent House,632.92, 07-Aug-2012
1609,Revenue,CCHD,Southmead Hospital Purchasing,Nursing Homes,Regent House,1379.88, 07-Aug-2012
1610,Revenue,CCHD,Bed Purchasing - Elderly - South,Nursing Homes,Regent House,1423.28, 07-Aug-2012
1611,Revenue,CCHD,South Glos Users in South Glos Homes,Nursing Homes,Regent House,1382.04, 07-Aug-2012
1612,Revenue,CCHD,Bed Purchasing - Elderly - South,Nursing Homes,Regent House,1635.28, 07-Aug-2012
1613,Revenue,CCHD,Home Care - Elderly - North,Other Small Contracts,Regent House,1754.73, 07-Aug-2012
1614,Revenue,CCHD,South Glos Users in South Glos Homes,Nursing Homes,Regent House,1754.73, 07-Aug-2012
1615,Revenue,CCHD,Home Care - Elderly - North,Other Small Contracts,Regent House,823.01, 07-Aug-2012
1616,Revenue,CCHD,South Glos Users in South Glos Homes,Nursing Homes,Regent House,823.01, 07-Aug-2012
1617,Revenue,CCHD,Bed Purchasing - Elderly MH - South,Nursing Homes,Regent House,1195.08, 07-Aug-2012
1618,Revenue,CCHD,Bed purchasing - Elderly MH - North,Nursing Homes,Regent House,1276.8, 07-Aug-2012
1619,Revenue,CCHD,Bed Purchasing - Under 65s PWLD - South,Residential Homes,Ridgeway House,3418.56, 07-Aug-2012
1620,Revenue,CCHD,Bed Purchasing - Under 65s PWLD - South,Residential Homes,Riverside House,3524.88, 07-Aug-2012
1621,Revenue,CCHD,Bed Purchasing - Elderly - South,Nursing Homes,Riversway Nursing Home,1156.6, 07-Aug-2012
1622,Revenue,CCHD,Southmead Hospital Purchasing,Nursing Homes,Riversway Nursing Home,2020.48, 07-Aug-2012
1623,Revenue,CCHD,Bed purchasing - Elderly PWLD - South,Residential Homes,Rockleaze,2159.92, 07-Aug-2012
1624,Revenue,CCHD,Bed purchasing - Elderly PWLD - South,Residential Homes,Rockleaze,1399.76, 07-Aug-2012
1625,Revenue,CCHD,Bed Purchasing - LD S28A- Over 65- South,Residential Homes,Rockleaze,2039.28, 07-Aug-2012
1626,Revenue,CCHD,Bed Purchasing - Under 65s PWLD - South,Residential Homes,Rockleaze,2364.24, 07-Aug-2012
1627,Revenue,CCHD,Bed purchasing - Elderly PWLD - South,Residential Homes,Rockleaze,1399.76, 07-Aug-2012
1628,Revenue,CCHD,Bed Purchasing - Under 65s PWLD - South,Residential Homes,Rosewood Lodge & Brook House,13543.29, 07-Aug-2012
1629,Revenue,CCHD,Bed Purchasing - Elderly MH - South,Residential Homes,Ross Healthcare,1280.12, 07-Aug-2012
1630,Revenue,CCHD,Frenchay Hospital Purchasing,Residential Homes,Roundham Court,1239.2, 07-Aug-2012
1631,Revenue,CCHD,Day Care - North,Private & Voluntary Day Care,Royal National Institute For Deaf People,601.2, 07-Aug-2012
1632,Revenue,CCHD,Training - Adult Services,Training Expenses,S R Orchard,1512, 28-Aug-2012
1633,Revenue,CCHD,Bed Purchasing - Under 65s PWLD - South,Residential Homes,Salters Hill Barn,3990.4, 07-Aug-2012
1634,Revenue,CCHD,Learning Difficulties PSL,Rent,Individual,1400, 01-Aug-2012
1635,Revenue,CCHD,Learning Difficulties PSL,Rent,Individual,1400, 31-Aug-2012
1636,Revenue,CCHD,Woodleaze,"Provisions (Food, etc)",School Milk Services Limited,767.02, 30-Aug-2012
1637,Revenue,CCHD,Bed purchasing - Under 65s PWLD - North,Residential Homes,Scope   Accounts Dept,4910.2, 07-Aug-2012
1638,Revenue,CCHD,Bed Purchasing - Under 65s PWLD - South,Residential Homes,Scope   Accounts Dept,5999.76, 07-Aug-2012
1639,Revenue,CCHD,Day Care - North,Private & Voluntary Day Care,SeeAbility,1924.22, 29-Aug-2012
1640,Revenue,CCHD,Supported Living - KD,Private & Voluntary Home Care,SeeAbility,1207.47, 31-Aug-2012
1641,Revenue,CCHD,Supported Living - PS,Private & Voluntary Home Care,Selborne Care Ltd,1734.8, 09-Aug-2012
1642,Revenue,CCHD,Supported Living - PS,Private & Voluntary Home Care,Selborne Care Ltd,2568.4, 09-Aug-2012
1643,Revenue,CCHD,Supported Living - PS,Private & Voluntary Home Care,Selborne Care Ltd,1020.16, 09-Aug-2012
1644,Revenue,CCHD,Purchase of Non-Res Care - KD,Private & Voluntary Day Care,Selborne Care Ltd,1382.24, 09-Aug-2012
1645,Revenue,CCHD,Supported Living - PS,Private & Voluntary Home Care,Selborne Care Ltd,4963.6, 09-Aug-2012
1646,Revenue,CCHD,Purchase of Non-Res Care - KD,Private & Voluntary Day Care,Selborne Care Ltd,892.64, 17-Aug-2012
1647,Revenue,CCHD,Supported Living - PS,Private & Voluntary Home Care,Selborne Care Ltd,1145.8, 09-Aug-2012
1648,Revenue,CCHD,Purchase of Non-Res Care - KD,Private & Voluntary Day Care,Selborne Care Ltd,820.72, 17-Aug-2012
1649,Revenue,CCHD,Supported Living - PS,Private & Voluntary Home Care,Selborne Care Ltd,510.08, 10-Aug-2012
1650,Revenue,CCHD,Supported Living - PS,Private & Voluntary Home Care,Selborne Care Ltd,4632.8, 09-Aug-2012
1651,Revenue,CCHD,Purchase of Non-Res Care - KD,Private & Voluntary Day Care,Selborne Care Ltd,758.96, 17-Aug-2012
1652,Revenue,CCHD,Supported Living - PS,Private & Voluntary Home Care,Selborne Care Ltd,549.4, 09-Aug-2012
1653,Revenue,CCHD,Supported Living - PS,Private & Voluntary Home Care,Selborne Care Ltd,1865.18, 09-Aug-2012
1654,Revenue,CCHD,Purchase of Non-Res Care - KD,Private & Voluntary Day Care,Selborne Care Ltd,916.48, 09-Aug-2012
1655,Revenue,CCHD,Southmead Hospital Purchasing,Nursing Homes,Shaw Healthcare Ltd,1467.2, 07-Aug-2012
1656,Revenue,CCHD,Bed Purchasing - Elderly S117- North,Nursing Homes,Shaw Healthcare Ltd,1944, 07-Aug-2012
1657,Revenue,CCHD,Bed purchasing - Elderly MH - North,Nursing Homes,Shaw Healthcare Ltd,1226.36, 07-Aug-2012
1658,Revenue,CCHD,Bed purchasing - S28A Under 65 - South,Residential Homes,Shaw Healthcare Ltd,10408.68, 07-Aug-2012
1659,Revenue,CCHD,Bed purchasing - S28A Under 65 - South,Residential Homes,Shaw Healthcare Ltd,10410.04, 07-Aug-2012
1660,Revenue,CCHD,Bed purchasing - S28A Under 65 - South,Residential Homes,Shaw Healthcare Ltd,10243.28, 07-Aug-2012
1661,Revenue,CCHD,S117 Placements PCT,Residential Homes,Shaw Healthcare Ltd,15360.76, 07-Aug-2012
1662,Revenue,CCHD,Bed Purchasing - Under 65s PWLD - South,Nursing Homes,Shaw Healthcare Ltd,9662.08, 07-Aug-2012
1663,Revenue,CCHD,Bed Purchasing - Under 65s PWLD - South,Residential Homes,Shaw Healthcare Ltd,8892.88, 07-Aug-2012
1664,Revenue,CCHD,Bed purchasing - Elderly PWLD - South,Residential Homes,Shaw Healthcare Ltd,3875.12, 07-Aug-2012
1665,Revenue,CCHD,Bed purchasing - S28A Under 65 - South,Residential Homes,Shaw Healthcare Ltd,10295.84, 07-Aug-2012
1666,Revenue,CCHD,Bed purchasing - S28A Under 65 - South,Residential Homes,Shaw Healthcare Ltd,11942.52, 07-Aug-2012
1667,Revenue,CCHD,Bed purchasing -S28A  Under 65 - North,Residential Homes,Shaw Healthcare Ltd,4218.4, 07-Aug-2012
1668,Revenue,CCHD,Bed Purchasing - LD S28A- Over 65- South,Residential Homes,Shaw Healthcare Ltd,4404, 07-Aug-2012
1669,Revenue,CCHD,Bed Purchasing - Under 65s PWLD - South,Nursing Homes,Shaw Healthcare Ltd,9995.92, 07-Aug-2012
1670,Revenue,CCHD,Bed Purchasing - LD S28A- Over 65- South,Residential Homes,Shaw Healthcare Ltd,4412.12, 07-Aug-2012
1671,Revenue,CCHD,Bed Purchasing - LD S28A- Over 65- South,Residential Homes,Shaw Healthcare Ltd,4404, 07-Aug-2012
1672,Revenue,CCHD,Bed Purchasing - LD S28A- Over 65- South,Residential Homes,Shaw Healthcare Ltd,4411.68, 07-Aug-2012
1673,Revenue,CCHD,Bed purchasing -S28A  Under 65 - North,Residential Homes,Shaw Healthcare Ltd,9087.56, 07-Aug-2012
1674,Revenue,CCHD,Bed Purchasing - S28A - Over 65- North,Residential Homes,Shaw Healthcare Ltd,8894.24, 07-Aug-2012
1675,Revenue,CCHD,Community Support ACM - South,Preventative Assistance,Shaw Healthcare Specialist Services Limited,1555.56, 08-Aug-2012
1676,Revenue,CCHD,Purchase of Non-Res Care - KD,Private & Voluntary Day Care,Shaw Healthcare Specialist Services Limited,690.27, 31-Aug-2012
1677,Revenue,CCHD,Supported Living - PS,Private & Voluntary Home Care,Silva Care Limited,4415.44, 08-Aug-2012
1678,Revenue,CCHD,Day Care - North,Private & Voluntary Day Care,Silva Care Limited,708.8, 14-Aug-2012
1679,Revenue,CCHD,Bed purchasing - Under 65s PWLD - North,Residential Homes,Small House Homes Limited,17585.6, 07-Aug-2012
1680,Revenue,CCHD,Day Care - South,Private & Voluntary Day Care,Smile Independent Living Support Limited,879.22, 23-Aug-2012
1681,Revenue,CCHD,Day Care - South,Private & Voluntary Day Care,Smile Independent Living Support Limited,773.29, 23-Aug-2012
1682,Revenue,CCHD,Purchase of Non-Res Care - KD,Private & Voluntary Day Care,Smile Independent Living Support Limited,1368.4, 20-Aug-2012
1683,Revenue,CCHD,Purchase of Non-Res Care - KD,Private & Voluntary Day Care,Smile Independent Living Support Limited,800.74, 20-Aug-2012
1684,Revenue,CCHD,Purchase of Non-Res Care - KD,Private & Voluntary Day Care,Smile Independent Living Support Limited,540.72, 20-Aug-2012
1685,Revenue,CCHD,Purchase of Non-Res Care - KD,Private & Voluntary Day Care,Smile Independent Living Support Limited,966.81, 20-Aug-2012
1686,Revenue,CCHD,Purchase of Non-Res Care - KD,Private & Voluntary Day Care,Smile Independent Living Support Limited,590.34, 20-Aug-2012
1687,Revenue,CCHD,Purchase of Non-Res Care - PS,Private & Voluntary Day Care,Smile Independent Living Support Limited,625.28, 14-Aug-2012
1688,Revenue,CCHD,Purchase of Non-Res Care - KD,Private & Voluntary Day Care,Smile Independent Living Support Limited,1176.28, 20-Aug-2012
1689,Revenue,CCHD,Purchase of Non-Res Care - KD,Private & Voluntary Day Care,Smile Independent Living Support Limited,768.89, 20-Aug-2012
1690,Revenue,CCHD,Supported Living - KD,Private & Voluntary Home Care,Smile Independent Living Support Limited,2675.08, 20-Aug-2012
1691,Revenue,CCHD,Supported Living - KD,Private & Voluntary Home Care,Smile Independent Living Support Limited,3362.26, 20-Aug-2012
1692,Revenue,CCHD,Supported Living - KD,Private & Voluntary Home Care,Smile Independent Living Support Limited,3261.51, 20-Aug-2012
1693,Revenue,CCHD,Purchase of Non-Res Care - KD,Private & Voluntary Day Care,Smile Independent Living Support Limited,1173.89, 20-Aug-2012
1694,Revenue,CCHD,Finance,Other Supplies & Services,Smile Independent Living Support Limited,737.1, 29-Aug-2012
1695,Revenue,CCHD,Bed Purchasing - S28A - Over 65- North,Residential Homes,South Gloucestershire Primary Care Trust,43424.57, 23-Aug-2012
1696,Revenue,CCHD,Minor Adaptations Service,Maintenance by Contractor,Southern Electric Contracting Limited,679.29, 08-Aug-2012
1697,Revenue,CCHD,Minor Adaptations Service,Maintenance by Contractor,Southern Electric Contracting Limited,214, 23-Aug-2012
1698,Revenue,CCHD,Newton House,Cleaning & Domestic Supplies,Spot On Supplies (Hygiene) Limited,420.39, 08-Aug-2012
1699,Revenue,CCHD,Bed Purchasing - Under 65s PWLD - South,Residential Homes,St Brigas,2036.8, 07-Aug-2012
1700,Revenue,CCHD,Bed Purchasing - Under 65s PWLD - South,Residential Homes,St Brigas,2944.64, 07-Aug-2012
1701,Revenue,CCHD,Bed Purchasing - Under 65s PWLD - South,Residential Homes,St Brigas,1985.08, 07-Aug-2012
1702,Revenue,CCHD,Frenchay Hospital Purchasing,Nursing Homes,St George Nursing Home,1295.2, 07-Aug-2012
1703,Revenue,CCHD,Southmead Hospital Purchasing,Nursing Homes,St George Nursing Home,4024.37, 07-Aug-2012
1704,Revenue,CCHD,Southmead Hospital Purchasing,Nursing Homes,St George Nursing Home,1295.2, 07-Aug-2012
1705,Revenue,CCHD,Bed Purchasing - Elderly - South,Nursing Homes,St Monicas Trust,997.14, 07-Aug-2012
1706,Revenue,CCHD,Bed Purchasing - Elderly - South,Nursing Homes,St Roses School,3944.36, 03-Aug-2012
1707,Revenue,CCHD,Bed Purchasing - Elderly - South,Nursing Homes,St Roses School,3944.36, 31-Aug-2012
1708,Revenue,CCHD,Bed Purchasing - Under 65s PWLD - South,Residential Homes,Stepping Stones Re-Sett. Unit,8597.28, 07-Aug-2012
1709,Revenue,CCHD,Supported Living - PS,Private & Voluntary Home Care,Supported Independence Ltd,711.24, 10-Aug-2012
1710,Revenue,CCHD,Younger MH non-res purchasing,Private & Voluntary Day Care,Supported Independence Ltd,932.01, 13-Aug-2012
1711,Revenue,CCHD,Section 117 Placements MH Younger,Private & Voluntary Day Care,Supported Independence Ltd,2390.4, 08-Aug-2012
1712,Revenue,CCHD,Younger MH non-res purchasing,Private & Voluntary Day Care,Supported Independence Ltd,2609.01, 08-Aug-2012
1713,Revenue,CCHD,Younger MH non-res purchasing,Private & Voluntary Day Care,Supported Independence Ltd,634.56, 08-Aug-2012
1714,Revenue,CCHD,Younger MH non-res purchasing,Private & Voluntary Day Care,Supported Independence Ltd,516.24, 10-Aug-2012
1715,Revenue,CCHD,Supported Living - PS,Private & Voluntary Home Care,Supported Independence Ltd,713.88, 31-Aug-2012
1716,Revenue,CCHD,Supported Living - KD,Private & Voluntary Home Care,Supported Independence Ltd,793.2, 31-Aug-2012
1717,Revenue,CCHD,Day Care - North,Private & Voluntary Day Care,Supported Independence Ltd,555.24, 31-Aug-2012
1718,Revenue,CCHD,Supporting People Programme,Grants to Voluntary Bodies,Supported Independence Ltd,2958.54, 01-Aug-2012
1719,Revenue,CCHD,Supporting People Programme,Grants to Voluntary Bodies,Supported Independence Ltd,2958.54, 31-Aug-2012
1720,Revenue,CCHD,Supporting People Programme,Grants to Voluntary Bodies,Supported Independence Ltd,6117.49, 01-Aug-2012
1721,Revenue,CCHD,Supporting People Programme,Grants to Voluntary Bodies,Supported Independence Ltd,6117.49, 31-Aug-2012
1722,Revenue,CCHD,Supported Living - PS,Private & Voluntary Home Care,Supported Independent Living Schemes,642.96, 17-Aug-2012
1723,Revenue,CCHD,Supporting People Programme,Grants to Voluntary Bodies,Supported Independent Living Schemes,10545.66, 01-Aug-2012
1724,Revenue,CCHD,Supporting People Programme,Grants to Voluntary Bodies,Supported Independent Living Schemes,10545.66, 31-Aug-2012
1725,Revenue,CCHD,Supported Living - PS,Private & Voluntary Home Care,Supporting Options,760.8, 28-Aug-2012
1726,Revenue,CCHD,Frenchay Hospital Purchasing,Residential Homes,T/A Stonebow House Residential Home,1290.2, 07-Aug-2012
1727,Revenue,CCHD,Minor Adaptations Service,Operational Equipment,Talbot Owen Tools & Fasteners Limited,1305, 02-Aug-2012
1728,Revenue,CCHD,Bed Purchasing - Under 65s PWLD - South,Residential Homes,The Ann Coleman Centre,6046.48, 07-Aug-2012
1729,Revenue,CCHD,Southmead Hospital Purchasing,Residential Homes,The Beeches,696.6, 07-Aug-2012
1730,Revenue,CCHD,Southmead Hospital Purchasing,Residential Homes,The Beeches,1227.4, 07-Aug-2012
1731,Revenue,CCHD,Southmead Hospital Purchasing,Residential Homes,The Beeches,2696.57, 07-Aug-2012
1732,Revenue,CCHD,Frenchay Hospital Purchasing,Residential Homes,The Beeches,1141.52, 07-Aug-2012
1733,Revenue,CCHD,Southmead Hospital Purchasing,Residential Homes,The Beeches,1239.2, 07-Aug-2012
1734,Revenue,CCHD,Purchase of Non-Res Care - PS,Private & Voluntary Day Care,The Brandon Trust,501.96, 17-Aug-2012
1735,Revenue,CCHD,Younger MH non-res purchasing,Private & Voluntary Day Care,The Brandon Trust,1138.86, 08-Aug-2012
1736,Revenue,CCHD,Day Care - North,Private & Voluntary Day Care,The Brandon Trust,625.2, 17-Aug-2012
1737,Revenue,CCHD,Purchase of Non-Res Care - PS,Private & Voluntary Day Care,The Brandon Trust,759.24, 23-Aug-2012
1738,Revenue,CCHD,Purchase of Non-Res Care - KD,Private & Voluntary Day Care,The Brandon Trust,890.91, 31-Aug-2012
1739,Revenue,CCHD,Purchase of Non-Res Care - PS,Private & Voluntary Day Care,The Brandon Trust,630.41, 23-Aug-2012
1740,Revenue,CCHD,Younger MH non-res purchasing,Private & Voluntary Day Care,The Brandon Trust,506.16, 17-Aug-2012
1741,Revenue,CCHD,Purchase of Non-Res Care - KD,Private & Voluntary Day Care,The Brandon Trust,4668.16, 31-Aug-2012
1742,Revenue,CCHD,Purchase of Non-Res Care - PS,Private & Voluntary Day Care,The Brandon Trust,1012.32, 21-Aug-2012
1743,Revenue,CCHD,Purchase of Non-Res Care - KD,Private & Voluntary Day Care,The Brandon Trust,1012.32, 31-Aug-2012
1744,Revenue,CCHD,Purchase of Non-Res Care - KD,Private & Voluntary Day Care,The Brandon Trust,583.52, 31-Aug-2012
1745,Revenue,CCHD,Younger MH non-res purchasing,Private & Voluntary Day Care,The Brandon Trust,1265.4, 17-Aug-2012
1746,Revenue,CCHD,Purchase of Non-Res Care - PS,Private & Voluntary Day Care,The Brandon Trust,2667.52, 21-Aug-2012
1747,Revenue,CCHD,Purchase of Non-Res Care - PS,Private & Voluntary Day Care,The Brandon Trust,506.16, 23-Aug-2012
1748,Revenue,CCHD,Purchase of Non-Res Care - PS,Private & Voluntary Day Care,The Brandon Trust,822.52, 23-Aug-2012
1749,Revenue,CCHD,Purchase of Non-Res Care - KD,Private & Voluntary Day Care,The Brandon Trust,828.39, 31-Aug-2012
1750,Revenue,CCHD,Purchase of Non-Res Care - KD,Private & Voluntary Day Care,The Brandon Trust,552.26, 31-Aug-2012
1751,Revenue,CCHD,Purchase of Non-Res Care - KD,Private & Voluntary Day Care,The Brandon Trust,506.16, 31-Aug-2012
1752,Revenue,CCHD,Purchase of Non-Res Care - KD,Private & Voluntary Day Care,The Brandon Trust,1167.04, 31-Aug-2012
1753,Revenue,CCHD,Purchase of Non-Res Care - PS,Private & Voluntary Day Care,The Brandon Trust,1012.32, 23-Aug-2012
1754,Revenue,CCHD,Purchase of Non-Res Care - PS,Private & Voluntary Day Care,The Brandon Trust,506.16, 21-Aug-2012
1755,Revenue,CCHD,Purchase of Non-Res Care - PS,Private & Voluntary Day Care,The Brandon Trust,1012.32, 23-Aug-2012
1756,Revenue,CCHD,Purchase of Non-Res Care - KD,Private & Voluntary Day Care,The Brandon Trust,1510.9, 31-Aug-2012
1757,Revenue,CCHD,Day Care - South,Private & Voluntary Day Care,The Brandon Trust,632.7, 17-Aug-2012
1758,Revenue,CCHD,Purchase of Non-Res Care - PS,Private & Voluntary Day Care,The Brandon Trust,695.97, 23-Aug-2012
1759,Revenue,CCHD,Purchase of Non-Res Care - KD,Private & Voluntary Day Care,The Brandon Trust,937.8, 31-Aug-2012
1760,Revenue,CCHD,Supported Living - PS,Private & Voluntary Home Care,The Brandon Trust,708.56, 23-Aug-2012
1761,Revenue,CCHD,Day Care - South,Private & Voluntary Day Care,The Brandon Trust,506.16, 17-Aug-2012
1762,Revenue,CCHD,Day Care - South,Private & Voluntary Day Care,The Brandon Trust,506.16, 17-Aug-2012
1763,Revenue,CCHD,Purchase of Non-Res Care - KD,Private & Voluntary Day Care,The Brandon Trust,729.4, 31-Aug-2012
1764,Revenue,CCHD,Bed Purchasing - Under 65s PWLD - South,Nursing Homes,The Brandon Trust  Olympus House,5724.32, 07-Aug-2012
1765,Revenue,CCHD,Bed Purchasing - S28A - Over 65- North,Residential Homes,The Brandon Trust  Olympus House,3587.32, 07-Aug-2012
1766,Revenue,CCHD,Bed Purchasing - Under 65s PWLD - South,Residential Homes,The Brandon Trust  Olympus House,11325.76, 07-Aug-2012
1767,Revenue,CCHD,Bed Purchasing - Under 65s PWLD - South,Residential Homes,The Brandon Trust  Olympus House,3270.6, 07-Aug-2012
1768,Revenue,CCHD,Bed purchasing - Under 65s PWLD - North,Residential Homes,The Brandon Trust  Olympus House,5182.6, 07-Aug-2012
1769,Revenue,CCHD,Bed purchasing - Elderly PWLD - South,Residential Homes,The Brandon Trust  Olympus House,3384.16, 07-Aug-2012
1770,Revenue,CCHD,Bed Purchasing - LD S28A- Over 65- South,Residential Homes,The Brandon Trust  Olympus House,3835.12, 07-Aug-2012
1771,Revenue,CCHD,Bed Purchasing - Under 65s PWLD - South,Nursing Homes,The Brandon Trust  Olympus House,5127.6, 07-Aug-2012
1772,Revenue,CCHD,Bed purchasing - S28A Under 65 - South,Residential Homes,The Brandon Trust  Olympus House,6032.96, 07-Aug-2012
1773,Revenue,CCHD,Bed purchasing - S28A Under 65 - South,Residential Homes,The Brandon Trust  Olympus House,4996.72, 07-Aug-2012
1774,Revenue,CCHD,Bed purchasing - S28A Under 65 - South,Residential Homes,The Brandon Trust  Olympus House,6032.96, 07-Aug-2012
